Asse/Axis;Linea d'azione ;Localizzazione;Fondo/Fund;Codice locale progetto/Local identifier of operation;Codice Unico Progetto/Unique project code;Codice fiscale Beneficiario/Beneficiary fiscal code;Nome Beneficiario/Beneficiary name;Denominazione operazione/Operation name;Sintesi operazione/Operation summary;Data inizio operazione/Operation start date;Data fine operazione/Operation end date;Spesa ammissibile/Eligible expenditure;Tasso di cofinanziamento UE/EU cofinancing rate;CAP/Postcode;Paese/Country;Categoria di operazione/Category of intervention;Data aggiornamento elenco operazioni/Date of last update of the list of operations
1;1.1.1.A;CAM;FESR;293;F99D15000280006;80002190611;Prefettura di Caserta;Prefettura 2.0: servizi innovativi per la prevenzione della corruzione e delle infiltrazioni criminali nell'azione amministrativa degli Enti locali;L'intervento prevede la realizzazione di una piattaforma tecnologica per lo scambio di informazioni tra la Prefettura di Caserta e la Stazione unica appaltante del Provveditorato alle OO.PP, nonch� la gestione informatizzata delle procedure di gara.;21/04/2017;21/12/2020;? 2.462.784,59;75%;81100;ITALIA;078;14/11/2022
1;1.1.2.B;MS;FESR;297;E81H17000070006;1484460587;Unioncamere;Open Data Aziende Confiscate;L'intervento ha consentito il rilascio in formato open delle informazioni relative alla mappatura e allo stato delle aziende legate alla criminalit� organizzata che siano in fase di confisca o avvenuto recupero. CONCLUSO;09/08/2017;30/02/2021;? 1.016.124,00;75%;75010 / 85100 - 90010 / 98168 - 70010 / 76125 - 87010 / 89900 - 80010 / 85135;ITALIA;078;14/11/2022
1;1.1.2.A;MS;FESR;298;F56G17000970007;80202230589;Ministero dell'Interno - Dipartimento della Pubblica Sicurezza - Direzione Centrale dei Servizi Tecnico Logistici e della Gestione Patrimoniale;ARGOPanOptes - Il Gigante che Tutto Vede;L'intervento prevede la realizzazione di un sistema informativo investigativo avanzato, che consenta l'interoperabilit� di banche dati per l'integrazione di flussi multimediali provenienti da apparati di monitoraggio di propriet� di Enti pubblici e privati, al fine di migliorare l'attivit� preventiva e investigativa svolta dagli operatori delle forze dell'ordine nelle centrali operative.;17/11/2017;17/09/2021;? 7.430.000,00;75%;75010 / 85100 - 90010 / 98168 - 70010 / 76125 - 87010 / 89900 - 80010 / 85135;ITALIA;078;14/11/2022
5;5.1.1.B;CAL;FSE;324;F64B17000020001;80001680794;Prefettura di Catanzaro;Supporto ai Comuni nella predisposizione, revisione e monitoraggio dei Piani Anticorruzione;Il progetto intende migliorare la capacit� della Prefettura di analizzare il contesto amministrativo ed economico della provincia di riferimento, individuando le aree di debolezza degli Enti locali ed intervenendo preventivamente a loro supporto per migliorare i livelli di trasparenza dell'azione amministrativa. In particolare, l'intervento prevede l'attivazione di una task force di esperti per l'erogazione dei servizi a supporto degli Enti locali in materia di predisposizione, analisi e revisione dei Piani Triennali di Prevenzione della Corruzione (PTPC).;06/07/2017;06/01/2019;? 695.844,00;75%;88100;ITALIA;119;14/11/2022
5;5.1.1.B;BAS;FSE;341;F86J17000400006;"80005560760
";Prefettura di Potenza;Supporto ai Comuni nello scouting dei Fondi europei e gestione dei progetti ;Il progetto intende qualificare e rafforzare l'azione di supporto della Prefettura allo sviluppo socio economico degli Enti locali nel settore dello scouting dei Fondi della Politica di Coesione e della conseguente gestione dei progetti. Nello specifico, l'intervento prevede l'attivazione di una task force di esperti per fornire un supporto tecnico specialistico agli Enti locali nell'identificazione di opportunit� di finanziamento nell'ambito dei Programmi cofinanziati con i fondi della Politica di Coesione, nella predisposizione delle proposte progettuali e gestione dei fondi ottenuti e nel trasferimento di competenze professionali al personale della Prefettura.;20/07/2017;20/07/2018;? 164.334,00;75%;85100;ITALIA;119;14/11/2022;;;;;;
5;5.1.1.B;BAS;FSE;342;F36J17000260006;80005560760;Prefettura di Potenza;Supporto ai Comuni nella predisposizione, revisione e monitoraggio dei Piani Anticorruzione;Il progetto intende migliorare la capacit� della Prefettura di analizzare il contesto amministrativo ed economico della provincia di riferimento, individuando le aree di debolezza degli Enti locali ed intervenendo preventivamente a loro supporto per migliorare i livelli di trasparenza dell'azione amministrativa. In particolare, l'intervento prevede l'attivazione di una task force di esperti per l'erogazione dei servizi a supporto degli Enti locali in materia di predisposizione, analisi e revisione dei Piani Triennali di Prevenzione della Corruzione (PTPC).;20/07/2017;20/01/2019;? 695.844,00;75%;85100;ITALIA;119;14/11/2022
5;5.2.2;BAS;FSE;348;F36J17000270006;80005560760;Prefettura di Potenza;Il rafforzamento del nucleo di supporto all'ANBSC attivo presso la Prefettura di Potenza;Il progetto finanzia il potenziamento del Nucleo di supporto all'Agenzia Nazionale per i Beni Sequestrati e Confiscati (ANBSC) attraverso il rafforzamento delle competenze multidisciplinari in materia di beni confiscati. L?obiettivo consiste nel rendere pi� fluido il processo di assegnazione del bene e il suo pieno utilizzo a fini sociali e istituzionali. In particolare l'intervento prevede l'attivazione di una task force di esperti con competenze multidisciplinari in materia di beni confiscati per creare un modello di azione per l?esecuzione degli adempimenti del Nucleo e trasferire le competenze professionali necessarie, anche attraverso azioni di training on the job. ;20/07/2017;20/04/2019;? 495.320,00;75%;85100;ITALIA;119;14/11/2022
5;5.2.2;CAL;FSE;361;F49D17000320006;96006600793;Prefettura di Vibo Valentia;Il rafforzamento del nucleo di supporto all?ANBSC attivo presso la Prefettura di Vibo Valentia;Il progetto finanzia il potenziamento del Nucleo di supporto all'Agenzia Nazionale per i Beni Sequestrati e Confiscati (ANBSC) attraverso il rafforzamento delle competenze multidisciplinari in materia di beni confiscati. L?obiettivo consiste nel rendere pi� fluido il processo di assegnazione del bene e il suo pieno utilizzo a fini sociali e istituzionali. In particolare l'intervento prevede l'attivazione di una task force di esperti con competenze multidisciplinari in materia di beni confiscati per creare un modello di azione per l?esecuzione degli adempimenti del Nucleo e trasferire le competenze professionali necessarie, anche attraverso azioni di training on the job. ;20/07/2017;20/04/2019;? 495.320,00;75%;89900;ITALIA;119;14/11/2022
5;5.2.2;CAL;FSE;362;F49G17000150006;80009220809;Prefettura di Reggio Calabria;Il rafforzamento del nucleo di supporto all?ANBSC attivo presso Prefettura di Reggio Calabria;Il progetto finanzia il potenziamento del Nucleo di supporto all'Agenzia Nazionale per i Beni Sequestrati e Confiscati (ANBSC) attraverso il rafforzamento delle competenze multidisciplinari in materia di beni confiscati. L?obiettivo consiste nel rendere pi� fluido il processo di assegnazione del bene e il suo pieno utilizzo a fini sociali e istituzionali. In particolare l'intervento prevede l'attivazione di una task force di esperti con competenze multidisciplinari in materia di beni confiscati per creare un modello di azione per l?esecuzione degli adempimenti del Nucleo e trasferire le competenze professionali necessarie, anche attraverso azioni di training on the job. ;20/07/2017;20/04/2019;? 495.320,00;75%;89125;ITALIA;119;14/11/2022
5;5.1.1.B;CAL;FSE;364;F43J17000180006;96006600793;Prefettura di Vibo Valentia;Supporto ai Comuni nella predisposizione, revisione e monitoraggio dei Piani Anticorruzione;Il progetto intende migliorare la capacit� della Prefettura di analizzare il contesto amministrativo ed economico della provincia di riferimento, individuando le aree di debolezza degli Enti locali ed intervenendo preventivamente a loro supporto per migliorare i livelli di trasparenza dell'azione amministrativa. In particolare, l'intervento prevede l'attivazione di una task force di esperti per l'erogazione dei servizi a supporto degli Enti locali in materia di predisposizione, analisi e revisione dei Piani Triennali di Prevenzione della Corruzione (PTPC).;20/07/2017;20/01/2019;? 695.844,00;75%;89900;ITALIA;119;14/11/2022
5;5.1.1.B;CAL;FSE;365;F64B17000030001;80001680794;Prefettura di Catanzaro;Supporto ai Comuni nello scouting dei Fondi europei e gestione dei progetti ;Il progetto intende qualificare e rafforzare l'azione di supporto della Prefettura allo sviluppo socio economico degli Enti locali nel settore dello scouting dei Fondi della Politica di Coesione e della conseguente gestione dei progetti. Nello specifico, l'intervento prevede l'attivazione di una task force di esperti per fornire un supporto tecnico specialistico agli Enti locali nell'identificazione di opportunit� di finanziamento nell'ambito dei Programmi cofinanziati con i fondi della Politica di Coesione, nella predisposizione delle proposte progettuali e gestione dei fondi ottenuti e nel trasferimento di competenze professionali al personale della Prefettura.;06/07/2017;06/07/2018;? 164.334,00;75%;88100;ITALIA;119;14/11/2022
5;5.1.1.B;CAL;FSE;366;F49G17000130006;80009220809;Prefettura di Reggio Calabria;Supporto ai Comuni nello scouting dei Fondi europei e gestione dei progetti ;Il progetto intende qualificare e rafforzare l'azione di supporto della Prefettura allo sviluppo socio economico degli Enti locali nel settore dello scouting dei Fondi della Politica di Coesione e della conseguente gestione dei progetti. Nello specifico, l'intervento prevede l'attivazione di una task force di esperti per fornire un supporto tecnico specialistico agli Enti locali nell'identificazione di opportunit� di finanziamento nell'ambito dei Programmi cofinanziati con i fondi della Politica di Coesione, nella predisposizione delle proposte progettuali e gestione dei fondi ottenuti e nel trasferimento di competenze professionali al personale della Prefettura.;20/07/2017;20/07/2018;? 164.334,00;75%;89125;ITALIA;119;14/11/2022
5;5.1.1.B;CAL;FSE;368;F49G17000140006;80009220809;Prefettura di Reggio Calabria;Supporto ai Comuni nella predisposizione, revisione e monitoraggio dei Piani Anticorruzione;Il progetto intende migliorare la capacit� della Prefettura di analizzare il contesto amministrativo ed economico della provincia di riferimento, individuando le aree di debolezza degli Enti locali ed intervenendo preventivamente a loro supporto per migliorare i livelli di trasparenza dell'azione amministrativa. In particolare, l'intervento prevede l'attivazione di una task force di esperti per l'erogazione dei servizi a supporto degli Enti locali in materia di predisposizione, analisi e revisione dei Piani Triennali di Prevenzione della Corruzione (PTPC).;20/07/2017;20/01/2019;? 695.844,00;75%;89125;ITALIA;119;14/11/2022
5;5.1.1.B;CAM;FSE;370;F59D17000300006;80025150659;Prefettura di Salerno;Supporto ai Comuni nello scouting dei Fondi europei e gestione dei progetti ;"Il progetto ha qualificato e rafforzato l'azione di supporto della Prefettura allo sviluppo socio economico degli Enti locali nel settore dello scouting dei Fondi della Politica di Coesione e della conseguente gestione dei progetti. Nello specifico, l'intervento ha consentito l'attivazione di una task force di esperti per fornire un supporto tecnico specialistico agli Enti locali nell'identificazione di opportunit� di finanziamento nell'ambito dei Programmi cofinanziati con i fondi della Politica di Coesione, nella predisposizione delle proposte progettuali e gestione dei fondi ottenuti e nel trasferimento di competenze professionali al personale della Prefettura.
CONCLUSO";20/07/2017;20/07/2018;? 164.334,00;75%;84121;ITALIA;119;14/11/2022;;;;;;
5;5.2.2;CAL;FSE;371;F64B17000040001;80001680794;Prefettura di Catanzaro;Il rafforzamento del nucleo di supporto all'ANBSC attivo presso la Prefettura  di Catanzaro;Il progetto finanzia il potenziamento del Nucleo di supporto all'Agenzia Nazionale per i Beni Sequestrati e Confiscati (ANBSC) attraverso il rafforzamento delle competenze multidisciplinari in materia di beni confiscati. L?obiettivo consiste nel rendere pi� fluido il processo di assegnazione del bene e il suo pieno utilizzo a fini sociali e istituzionali. In particolare l'intervento prevede l'attivazione di una task force di esperti con competenze multidisciplinari in materia di beni confiscati per creare un modello di azione per l?esecuzione degli adempimenti del Nucleo e trasferire le competenze professionali necessarie, anche attraverso azioni di training on the job. ;06/07/2017;06/04/2019;? 495.320,00;75%;88100;ITALIA;119;14/11/2022
5;5.2.2;CAM;FSE;372;F29D17000150001;80002190611;Prefettura di Caserta;Il rafforzamento del nucleo di supporto all'ANBSC attivo presso la Prefettura di Caserta;Il progetto finanzia il potenziamento del Nucleo di supporto all'Agenzia Nazionale per i Beni Sequestrati e Confiscati (ANBSC) attraverso il rafforzamento delle competenze multidisciplinari in materia di beni confiscati. L?obiettivo consiste nel rendere pi� fluido il processo di assegnazione del bene e il suo pieno utilizzo a fini sociali e istituzionali. In particolare l'intervento prevede l'attivazione di una task force di esperti con competenze multidisciplinari in materia di beni confiscati per creare un modello di azione per l?esecuzione degli adempimenti del Nucleo e trasferire le competenze professionali necessarie, anche attraverso azioni di training on the job. ;11/09/2017;11/06/2019;? 495.320,00;75%;81100;ITALIA;119;14/11/2022
5;5.2.2;CAL;FSE;373;F81H17000060006;80006370789;Prefettura di Cosenza;Il rafforzamento del nucleo di supporto all'ANBSC attivo presso la Prefettura di Cosenza;Il progetto finanzia il potenziamento del Nucleo di supporto all'Agenzia Nazionale per i Beni Sequestrati e Confiscati (ANBSC) attraverso il rafforzamento delle competenze multidisciplinari in materia di beni confiscati. L?obiettivo consiste nel rendere pi� fluido il processo di assegnazione del bene e il suo pieno utilizzo a fini sociali e istituzionali. In particolare l'intervento prevede l'attivazione di una task force di esperti con competenze multidisciplinari in materia di beni confiscati per creare un modello di azione per l?esecuzione degli adempimenti del Nucleo e trasferire le competenze professionali necessarie, anche attraverso azioni di training on the job. ;07/08/2017;07/05/2019;? 162.260,00;75%;87100;ITALIA;119;14/11/2022
5;5.1.1.B;CAM;FSE;374;F29D17000180001;80002190611;Prefettura di Caserta;Supporto ai Comuni nello scouting dei Fondi europei e gestione dei progetti ;Il progetto intende qualificare e rafforzare l'azione di supporto della Prefettura allo sviluppo socio economico degli Enti locali nel settore dello scouting dei Fondi della Politica di Coesione e della conseguente gestione dei progetti. Nello specifico, l'intervento prevede l'attivazione di una task force di esperti per fornire un supporto tecnico specialistico agli Enti locali nell'identificazione di opportunit� di finanziamento nell'ambito dei Programmi cofinanziati con i fondi della Politica di Coesione, nella predisposizione delle proposte progettuali e gestione dei fondi ottenuti e nel trasferimento di competenze professionali al personale della Prefettura.;11/09/2017;11/09/2018;? 164.334,00;75%;81100;ITALIA;119;14/11/2022
5;5.1.1.B;CAL;FSE;375;F81H17000030006;80006370789;Prefettura di Cosenza;Supporto ai Comuni nello scouting dei Fondi europei e gestione dei progetti ;Il progetto intende qualificare e rafforzare l'azione di supporto della Prefettura allo sviluppo socio economico degli Enti locali nel settore dello scouting dei Fondi della Politica di Coesione e della conseguente gestione dei progetti. Nello specifico, l'intervento prevede l'attivazione di una task force di esperti per fornire un supporto tecnico specialistico agli Enti locali nell'identificazione di opportunit� di finanziamento nell'ambito dei Programmi cofinanziati con i fondi della Politica di Coesione, nella predisposizione delle proposte progettuali e gestione dei fondi ottenuti e nel trasferimento di competenze professionali al personale della Prefettura.;07/08/2017;07/08/2018;? 164.334,00;75%;87100;ITALIA;119;14/11/2022
5;5.1.1.B;CAL;FSE;379;F61H17000010006;80006370789;Prefettura di Cosenza;Supporto ai Comuni nella predisposizione, revisione e monitoraggio dei Piani Anticorruzione;Il progetto intende migliorare la capacit� della Prefettura di analizzare il contesto amministrativo ed economico della provincia di riferimento, individuando le aree di debolezza degli Enti locali ed intervenendo preventivamente a loro supporto per migliorare i livelli di trasparenza dell'azione amministrativa. In particolare, l'intervento prevede l'attivazione di una task force di esperti per l'erogazione dei servizi a supporto degli Enti locali in materia di predisposizione, analisi e revisione dei Piani Triennali di Prevenzione della Corruzione (PTPC).;07/08/2017;07/02/2019;? 695.844,00;75%;87100;ITALIA;119;14/11/2022
5;5.1.1.B;PUG;FSE;380;F29D17000200006;80001900713;Prefettura di Foggia;Supporto ai Comuni nello scouting dei Fondi europei e gestione dei progetti ;Il progetto intende qualificare e rafforzare l'azione di supporto della Prefettura allo sviluppo socio economico degli Enti locali nel settore dello scouting dei Fondi della Politica di Coesione e della conseguente gestione dei progetti. Nello specifico, l'intervento prevede l'attivazione di una task force di esperti per fornire un supporto tecnico specialistico agli Enti locali nell'identificazione di opportunit� di finanziamento nell'ambito dei Programmi cofinanziati con i fondi della Politica di Coesione, nella predisposizione delle proposte progettuali e gestione dei fondi ottenuti e nel trasferimento di competenze professionali al personale della Prefettura.;07/08/2017;07/08/2018;? 164.334,00;75%;71121;ITALIA;119;14/11/2022
5;5.1.1.B;PUG;FSE;381;F29D17000190006;80001900713;Prefettura di Foggia;Supporto ai Comuni nella predisposizione, revisione e monitoraggio dei Piani Anticorruzione;Il progetto intende migliorare la capacit� della Prefettura di analizzare il contesto amministrativo ed economico della provincia di riferimento, individuando le aree di debolezza degli Enti locali ed intervenendo preventivamente a loro supporto per migliorare i livelli di trasparenza dell'azione amministrativa. In particolare, l'intervento prevede l'attivazione di una task force di esperti per l'erogazione dei servizi a supporto degli Enti locali in materia di predisposizione, analisi e revisione dei Piani Triennali di Prevenzione della Corruzione (PTPC).;07/08/2017;07/02/2019;? 695.844,00;75%;71121;ITALIA;119;14/11/2022
5;5.1.1.B;CAL;FSE;382;F74B17000010006;91011070793;Prefettura di Crotone;Supporto ai Comuni nella predisposizione, revisione e monitoraggio dei Piani Anticorruzione;"Il progetto ha consentito di migliorare la capacit� della Prefettura di analizzare il contesto amministrativo ed economico della provincia di riferimento, individuando le aree di debolezza degli Enti locali ed intervenendo preventivamente a loro supporto per migliorare i livelli di trasparenza dell'azione amministrativa. In particolare, l'intervento ha visto l'attivazione di una task force di esperti per l'erogazione dei servizi a supporto degli Enti locali in materia di predisposizione, analisi e revisione dei Piani Triennali di Prevenzione della Corruzione (PTPC).
CONCLUSO";20/07/2017;20/01/2019;? 695.844,00;75%;88900;ITALIA;119;14/11/2022;;;;;;
5;5.1.1.B;CAL;FSE;384;F74B17000020006;91011070793;Prefettura di Crotone;Supporto ai Comuni nello scouting dei Fondi europei e gestione dei progetti ;"Il progetto ha qualificato e rafforzato l'azione di supporto della Prefettura allo sviluppo socio economico degli Enti locali nel settore dello scouting dei Fondi della Politica di Coesione e della conseguente gestione dei progetti. Nello specifico, l'intervento ha visto l'attivazione di una task force di esperti per fornire un supporto tecnico specialistico agli Enti locali nell'identificazione di opportunit� di finanziamento nell'ambito dei Programmi cofinanziati con i fondi della Politica di Coesione, nella predisposizione delle proposte progettuali e gestione dei fondi ottenuti e nel trasferimento di competenze professionali al personale della Prefettura.
CONCLUSO";20/07/2017;20/07/2018;? 164.334,00;75%;88900;ITALIA;119;14/11/2022;;;;;;
5;5.2.2;CAL;FSE;385;F14B17000080006;91011070793;Prefettura di Crotone;Il rafforzamento del nucleo di supporto all?ANBSC attivo presso la Prefettura di Crotone;Il progetto finanzia il potenziamento del Nucleo di supporto all'Agenzia Nazionale per i Beni Sequestrati e Confiscati (ANBSC) attraverso il rafforzamento delle competenze multidisciplinari in materia di beni confiscati. L?obiettivo consiste nel rendere pi� fluido il processo di assegnazione del bene e il suo pieno utilizzo a fini sociali e istituzionali. In particolare l'intervento prevede l'attivazione di una task force di esperti con competenze multidisciplinari in materia di beni confiscati per creare un modello di azione per l?esecuzione degli adempimenti del Nucleo e trasferire le competenze professionali necessarie, anche attraverso azioni di training on the job. ;20/07/2017;20/04/2019;? 495.320,00;75%;88900;ITALIA;119;14/11/2022
5;5.1.1.B;PUG;FSE;386;F89G17000330006;80009550759;Prefettura di Lecce;Supporto ai Comuni nello scouting dei Fondi europei e gestione dei progetti ;Il progetto intende qualificare e rafforzare l'azione di supporto della Prefettura allo sviluppo socio economico degli Enti locali nel settore dello scouting dei Fondi della Politica di Coesione e della conseguente gestione dei progetti. Nello specifico, l'intervento prevede l'attivazione di una task force di esperti per fornire un supporto tecnico specialistico agli Enti locali nell'identificazione di opportunit� di finanziamento nell'ambito dei Programmi cofinanziati con i fondi della Politica di Coesione, nella predisposizione delle proposte progettuali e gestione dei fondi ottenuti e nel trasferimento di competenze professionali al personale della Prefettura.;20/07/2017;20/07/2018;? 164.334,00;75%;73100;ITALIA;119;14/11/2022
5;5.1.1.B;PUG;FSE;387;F89G17000310006;80009550759;Prefettura di Lecce;Supporto ai Comuni nella predisposizione, revisione e monitoraggio dei Piani Anticorruzione;Il progetto intende migliorare la capacit� della Prefettura di analizzare il contesto amministrativo ed economico della provincia di riferimento, individuando le aree di debolezza degli Enti locali ed intervenendo preventivamente a loro supporto per migliorare i livelli di trasparenza dell'azione amministrativa. In particolare, l'intervento prevede l'attivazione di una task force di esperti per l'erogazione dei servizi a supporto degli Enti locali in materia di predisposizione, analisi e revisione dei Piani Triennali di Prevenzione della Corruzione (PTPC).;20/07/2017;20/01/2019;? 695.844,00;75%;73100;ITALIA;119;14/11/2022
5;5.1.1.B;PUG;FSE;388;F91H17000040006;80017920721;Prefettura di Bari;Supporto ai Comuni nello scouting dei Fondi europei e gestione dei progetti ;Il progetto ha qualificato e rafforzato l'azione di supporto della Prefettura allo sviluppo socio economico degli Enti locali nel settore dello scouting dei Fondi della Politica di Coesione e della conseguente gestione dei progetti. Nello specifico, l'intervento ha visto l'attivazione di una task force di esperti per fornire un supporto tecnico specialistico agli Enti locali nell'identificazione di opportunit� di finanziamento nell'ambito dei Programmi cofinanziati con i fondi della Politica di Coesione, nella predisposizione delle proposte progettuali e gestione dei fondi ottenuti e nel trasferimento di competenze professionali al personale della Prefettura. CONCLUSO;20/07/2017;05/11/2020;? 164.334,00;75%;70122;ITALIA;119;14/11/2022
5;5.1.1.B;PUG;FSE;389;F91H17000050006;80017920721;Prefettura di Bari;Supporto ai Comuni nella predisposizione, revisione e monitoraggio dei Piani Anticorruzione;Il progetto intende migliorare la capacit� della Prefettura di analizzare il contesto amministrativo ed economico della provincia di riferimento, individuando le aree di debolezza degli Enti locali ed intervenendo preventivamente a loro supporto per migliorare i livelli di trasparenza dell'azione amministrativa. In particolare, l'intervento prevede l'attivazione di una task force di esperti per l'erogazione dei servizi a supporto degli Enti locali in materia di predisposizione, analisi e revisione dei Piani Triennali di Prevenzione della Corruzione (PTPC). ;20/07/2017;20/01/2019;? 695.844,00;75%;70122;ITALIA;119;14/11/2022
5;5.2.2;PUG;FSE;390;F89G17000320006;80009550759;Prefettura di Lecce;Il rafforzamento del nucleo di supporto all?ANBSC attivo presso la Prefettura di Lecce;Il progetto finanzia il potenziamento del Nucleo di supporto all'Agenzia Nazionale per i Beni Sequestrati e Confiscati (ANBSC) attraverso il rafforzamento delle competenze multidisciplinari in materia di beni confiscati. L?obiettivo consiste nel rendere pi� fluido il processo di assegnazione del bene e il suo pieno utilizzo a fini sociali e istituzionali. In particolare l'intervento prevede l'attivazione di una task force di esperti con competenze multidisciplinari in materia di beni confiscati per creare un modello di azione per l?esecuzione degli adempimenti del Nucleo e trasferire le competenze professionali necessarie, anche attraverso azioni di training on the job. ;20/07/2017;20/04/2019;? 495.320,00;75%;73100;ITALIA;119;14/11/2022
5;5.1.1.B;PUG;FSE;393;F51E17000120006;80001510744;Prefettura di Brindisi;Supporto ai Comuni nello scouting dei Fondi europei e gestione dei progetti ;Il progetto intende qualificare e rafforzare l'azione di supporto della Prefettura allo sviluppo socio economico degli Enti locali nel settore dello scouting dei Fondi della Politica di Coesione e della conseguente gestione dei progetti. Nello specifico, l'intervento prevede l'attivazione di una task force di esperti per fornire un supporto tecnico specialistico agli Enti locali nell'identificazione di opportunit� di finanziamento nell'ambito dei Programmi cofinanziati con i fondi della Politica di Coesione, nella predisposizione delle proposte progettuali e gestione dei fondi ottenuti e nel trasferimento di competenze professionali al personale della Prefettura.;20/07/2017;20/07/2018;? 164.334,00;75%;72100;ITALIA;119;14/11/2022
5;5.1.1.B;PUG;FSE;394;F53G17000130006;80001510744;Prefettura di Brindisi;Supporto ai Comuni nella predisposizione, revisione e monitoraggio dei Piani Anticorruzione;Il progetto intende migliorare la capacit� della Prefettura di analizzare il contesto amministrativo ed economico della provincia di riferimento, individuando le aree di debolezza degli Enti locali ed intervenendo preventivamente a loro supporto per migliorare i livelli di trasparenza dell'azione amministrativa. In particolare, l'intervento prevede l'attivazione di una task force di esperti per l'erogazione dei servizi a supporto degli Enti locali in materia di predisposizione, analisi e revisione dei Piani Triennali di Prevenzione della Corruzione (PTPC).;20/07/2017;20/01/2019;? 695.844,00;75%;72100;ITALIA;119;14/11/2022
5;5.1.1.B;SIC;FSE;398;F24B17000040006;80001080862;Prefettura di Enna;Supporto ai Comuni nello scouting dei Fondi europei e gestione dei progetti ;Il progetto intende qualificare e rafforzare l'azione di supporto della Prefettura allo sviluppo socio economico degli Enti locali nel settore dello scouting dei Fondi della Politica di Coesione e della conseguente gestione dei progetti. Nello specifico, l'intervento prevede l'attivazione di una task force di esperti per fornire un supporto tecnico specialistico agli Enti locali nell'identificazione di opportunit� di finanziamento nell'ambito dei Programmi cofinanziati con i fondi della Politica di Coesione, nella predisposizione delle proposte progettuali e gestione dei fondi ottenuti e nel trasferimento di competenze professionali al personale della Prefettura.;20/07/2017;20/07/2018;? 164.334,00;75%;94100;ITALIA;119;14/11/2022
5;5.1.1.B;SIC;FSE;399;F54B17000070006;80002930891;Prefettura di Siracusa;Supporto ai Comuni nello scouting dei Fondi europei e gestione dei progetti ;Il progetto ha qualificato e rafforzato l'azione di supporto della Prefettura allo sviluppo socio economico degli Enti locali nel settore dello scouting dei Fondi della Politica di Coesione e della conseguente gestione dei progetti. Nello specifico, l'intervento ha visto l'attivazione di una task force di esperti per fornire un supporto tecnico specialistico agli Enti locali nell'identificazione di opportunit� di finanziamento nell'ambito dei Programmi cofinanziati con i fondi della Politica di Coesione, nella predisposizione delle proposte progettuali e gestione dei fondi ottenuti e nel trasferimento di competenze professionali al personale della Prefettura. CONCLUSO;20/07/2017;20/07/2018;? 164.334,00;75%;96100;ITALIA;119;14/11/2022
5;5.1.1.B;SIC;FSE;404;F79G17000230007;80015880828;Prefettura di Palermo;Supporto ai Comuni nello scouting dei Fondi europei e gestione dei progetti ;Il progetto ha qualificato e rafforzato l'azione di supporto della Prefettura allo sviluppo socio economico degli Enti locali nel settore dello scouting dei Fondi della Politica di Coesione e della conseguente gestione dei progetti. Nello specifico, l'intervento ha visto l'attivazione di una task force di esperti per fornire un supporto tecnico specialistico agli Enti locali nell'identificazione di opportunit� di finanziamento nell'ambito dei Programmi cofinanziati con i fondi della Politica di Coesione, nella predisposizione delle proposte progettuali e gestione dei fondi ottenuti e nel trasferimento di competenze professionali al personale della Prefettura. CONCLUSO;20/07/2017;20/07/2018;? 164.334,00;75%;90133;ITALIA;119;14/11/2022
5;5.1.1.B;SIC;FSE;405;F99G17000180001;80003290857;Prefettura di Caltanissetta;Supporto ai Comuni nello scouting dei Fondi europei e gestione dei progetti ;Il progetto ha qualificato e rafforzato l'azione di supporto della Prefettura allo sviluppo socio economico degli Enti locali nel settore dello scouting dei Fondi della Politica di Coesione e della conseguente gestione dei progetti. Nello specifico, l'intervento ha visto l'attivazione di una task force di esperti per fornire un supporto tecnico specialistico agli Enti locali nell'identificazione di opportunit� di finanziamento nell'ambito dei Programmi cofinanziati con i fondi della Politica di Coesione, nella predisposizione delle proposte progettuali e gestione dei fondi ottenuti e nel trasferimento di competenze professionali al personale della Prefettura. CONCLUSO;07/08/2017;07/08/2018;? 164.334,00;75%;93100;ITALIA;119;14/11/2022
5;5.1.1.B;SIC;FSE;407;F93J17000050006;80003020817;Prefettura di Trapani;Supporto ai Comuni nello scouting dei Fondi europei e gestione dei progetti ;Il progetto intende qualificare e rafforzare l'azione di supporto della Prefettura allo sviluppo socio economico degli Enti locali nel settore dello scouting dei Fondi della Politica di Coesione e della conseguente gestione dei progetti. Nello specifico, l'intervento prevede l'attivazione di una task force di esperti per fornire un supporto tecnico specialistico agli Enti locali nell'identificazione di opportunit� di finanziamento nell'ambito dei Programmi cofinanziati con i fondi della Politica di Coesione, nella predisposizione delle proposte progettuali e gestione dei fondi ottenuti e nel trasferimento di competenze professionali al personale della Prefettura.;20/07/2017;20/07/2018;? 164.334,00;75%;91100;ITALIA;119;14/11/2022
5;5.2.2;SIC;FSE;410;F95C17000010006;80003020817;Prefettura di Trapani;Il rafforzamento del nucleo di supporto all'ANBSC attivo presso la Prefettura di Trapani;Il progetto finanzia il potenziamento del Nucleo di supporto all'Agenzia Nazionale per i Beni Sequestrati e Confiscati (ANBSC) attraverso il rafforzamento delle competenze multidisciplinari in materia di beni confiscati. L?obiettivo consiste nel rendere pi� fluido il processo di assegnazione del bene e il suo pieno utilizzo a fini sociali e istituzionali. In particolare l'intervento prevede l'attivazione di una task force di esperti con competenze multidisciplinari in materia di beni confiscati per creare un modello di azione per l?esecuzione degli adempimenti del Nucleo e trasferire le competenze professionali necessarie, anche attraverso azioni di training on the job. ;20/07/2017;20/04/2019;? 495.320,00;75%;91100;ITALIA;119;14/11/2022
5;5.1.1.B;SIC;FSE;411;F24B17000070007;80003310887;Prefettura di Ragusa;Supporto ai Comuni nello scouting dei Fondi europei e gestione dei progetti ;Il progetto ha qualificato e rafforzato l'azione di supporto della Prefettura allo sviluppo socio economico degli Enti locali nel settore dello scouting dei Fondi della Politica di Coesione e della conseguente gestione dei progetti. Nello specifico, l'intervento ha visto l'attivazione di una task force di esperti per fornire un supporto tecnico specialistico agli Enti locali nell'identificazione di opportunit� di finanziamento nell'ambito dei Programmi cofinanziati con i fondi della Politica di Coesione, nella predisposizione delle proposte progettuali e gestione dei fondi ottenuti e nel trasferimento di competenze professionali al personale della Prefettura. CONCLUSO;20/07/2017;02/02/2021;? 164.334,00;75%;97100;ITALIA;119;14/11/2022
5;5.1.1.B;SIC;FSE;415;F34B17000100006;80009650872;Prefettura di Catania;Supporto ai Comuni nello scouting dei Fondi europei e gestione dei progetti ;Il progetto intende qualificare e rafforzare l'azione di supporto della Prefettura allo sviluppo socio economico degli Enti locali nel settore dello scouting dei Fondi della Politica di Coesione e della conseguente gestione dei progetti. Nello specifico, l'intervento prevede l'attivazione di una task force di esperti per fornire un supporto tecnico specialistico agli Enti locali nell'identificazione di opportunit� di finanziamento nell'ambito dei Programmi cofinanziati con i fondi della Politica di Coesione, nella predisposizione delle proposte progettuali e gestione dei fondi ottenuti e nel trasferimento di competenze professionali al personale della Prefettura.;07/08/2017;07/08/2018;? 164.334,00;75%;95124;ITALIA;119;14/11/2022
2;2.1.1;CAM;FESR;416;E94H17000640006;80005370616;Consorzio  per l'Area di Sviluppo Industriale della Provincia di Caserta;"Sicurezza e Ambiente nella ""Terra dei Fuochi"": Infrastrutture per videosorveglianza e monitoraggio ambientali nelle aree ASI di Caserta";"L'intervento ha ad oggetto il presidio di tre agglomerati industriali dell'Area di Sviluppo Industriale della Provincia di Caserta, attraverso l'impiego di apparati di ripresa ""intelligenti"" e sensoristica per il monitoraggio dell'inquinamento ambientale.";02/11/2017;31/05/2020;? 4.989.000,00;75%;81100;ITALIA;048;14/11/2022
5;5.1.1.B;SIC;FSE;419;F34B17000800006;80009650872;Prefettura di Catania;Supporto ai Comuni nella predisposizione, revisione e monitoraggio dei Piani Anticorruzione;Il progetto intende migliorare la capacit� della Prefettura di analizzare il contesto amministrativo ed economico della provincia di riferimento, individuando le aree di debolezza degli Enti locali ed intervenendo preventivamente a loro supporto per migliorare i livelli di trasparenza dell'azione amministrativa. In particolare, l'intervento prevede l'attivazione di una task force di esperti per l'erogazione dei servizi a supporto degli Enti locali in materia di predisposizione, analisi e revisione dei Piani Triennali di Prevenzione della Corruzione (PTPC).;07/08/2017;07/02/2019;? 695.844,00;75%;95124;ITALIA;119;14/11/2022
5;5.1.1.B;CAM;FSE;420;F39D17000350006;80005410644;Prefettura di Avellino;Supporto ai Comuni nello scouting dei Fondi europei e gestione dei progetti ;Il progetto intende qualificare e rafforzare l'azione di supporto della Prefettura allo sviluppo socio economico degli Enti locali nel settore dello scouting dei Fondi della Politica di Coesione e della conseguente gestione dei progetti. Nello specifico, l'intervento prevede l'attivazione di una task force di esperti per fornire un supporto tecnico specialistico agli Enti locali nell'identificazione di opportunit� di finanziamento nell'ambito dei Programmi cofinanziati con i fondi della Politica di Coesione, nella predisposizione delle proposte progettuali e gestione dei fondi ottenuti e nel trasferimento di competenze professionali al personale della Prefettura.;20/07/2017;20/07/2018;? 164.334,00;75%;83100;ITALIA;119;14/11/2022
2;2.1.1;CAM;FESR;421;G51B17000240007;80045420637;Consorzio per l'Area di Sviluppo Industriale della Provincia di Napoli;ASI..CURA;"L'intervento ha ad oggetto il presidio di quattro agglomerati industriali dell'Area di Sviluppo Industriale di Napoli (1. Giugliano-Quagliano, 2. Nola-Marigliano, 3. Caivano, 4. Acerra), attraverso l'impiego di apparati di ripresa ""intelligenti"" e sensoristica per il monitoraggio dell'inquinamento ambientale.";19/12/2017;31/03/2022;? 6.717.746,53;75%;80121;ITALIA;048;14/11/2022
5;5.2.2;SIC;FSE;422;F34B17000090006;80009650872;Prefettura di Catania;Il rafforzamento del nucleo di supporto all?ANBSC attivo presso la Prefettura di Catania;Il progetto finanzia il potenziamento del Nucleo di supporto all'Agenzia Nazionale per i Beni Sequestrati e Confiscati (ANBSC) attraverso il rafforzamento delle competenze multidisciplinari in materia di beni confiscati. L?obiettivo consiste nel rendere pi� fluido il processo di assegnazione del bene e il suo pieno utilizzo a fini sociali e istituzionali. In particolare l'intervento prevede l'attivazione di una task force di esperti con competenze multidisciplinari in materia di beni confiscati per creare un modello di azione per l?esecuzione degli adempimenti del Nucleo e trasferire le competenze professionali necessarie, anche attraverso azioni di training on the job. ;07/08/2017;07/05/2019;? 495.320,00;75%;95124;ITALIA;119;14/11/2022
5;5.1.1.B;CAM;FSE;423;F64H17000360006;80049360631;Prefettura di Napoli;Supporto ai Comuni nella predisposizione, revisione e monitoraggio dei Piani Anticorruzione;Il progetto intende migliorare la capacit� della Prefettura di analizzare il contesto amministrativo ed economico della provincia di riferimento, individuando le aree di debolezza degli Enti locali ed intervenendo preventivamente a loro supporto per migliorare i livelli di trasparenza dell'azione amministrativa. In particolare, l'intervento prevede l'attivazione di una task force di esperti per l'erogazione dei servizi a supporto degli Enti locali in materia di predisposizione, analisi e revisione dei Piani Triennali di Prevenzione della Corruzione (PTPC).;20/07/2017;20/01/2019;? 695.844,00;75%;80142;ITALIA;119;14/11/2022
5;5.1.1.B;CAM;FSE;429;F64H17000340006;80049360631;Prefettura di Napoli;Supporto ai Comuni nello scouting dei Fondi europei e gestione dei progetti ;Il progetto intende qualificare e rafforzare l'azione di supporto della Prefettura allo sviluppo socio economico degli Enti locali nel settore dello scouting dei Fondi della Politica di Coesione e della conseguente gestione dei progetti. Nello specifico, l'intervento prevede l'attivazione di una task force di esperti per fornire un supporto tecnico specialistico agli Enti locali nell'identificazione di opportunit� di finanziamento nell'ambito dei Programmi cofinanziati con i fondi della Politica di Coesione, nella predisposizione delle proposte progettuali e gestione dei fondi ottenuti e nel trasferimento di competenze professionali al personale della Prefettura.;20/07/2017;20/07/2018;? 164.334,00;75%;80142;ITALIA;119;14/11/2022
5;5.2.2;CAM;FSE;431;F64H17000350006;80049360631;Prefettura di Napoli;Il rafforzamento del nucleo di supporto all?ANBSC attivo presso la Prefettura di Napoli;Il progetto finanzia il potenziamento del Nucleo di supporto all'Agenzia Nazionale per i Beni Sequestrati e Confiscati (ANBSC) attraverso il rafforzamento delle competenze multidisciplinari in materia di beni confiscati. L?obiettivo consiste nel rendere pi� fluido il processo di assegnazione del bene e il suo pieno utilizzo a fini sociali e istituzionali. In particolare l'intervento prevede l'attivazione di una task force di esperti con competenze multidisciplinari in materia di beni confiscati per creare un modello di azione per l?esecuzione degli adempimenti del Nucleo e trasferire le competenze professionali necessarie, anche attraverso azioni di training on the job. ;20/07/2017;20/04/2019;? 495.320,00;75%;80142;ITALIA;119;14/11/2022
6;6.1;AN;FESR;434;F59G16000350006;97149560589;Ministero dell'Interno - Dipartimento della Pubblica Sicurezza;Evento informativo - comunicativo per la presentazione del PON Legalit 2014-2020;Realizzazione di un evento informativo - comunicativo per la presentazione del PON Legalit 2014-2020. CONCLUSO;22/12/2017;22/12/2017;? 97.600,00;75%;00000;ITALIA;123;14/11/2022
6;6.1;AN;FESR;435;F89I17000100007;97149560589;Ministero dell'Interno - Dipartimento della Pubblica Sicurezza;Informazione e Comunicazione del PON Legalit 2014-2020;Informazione e Comunicazione del PON Legalit 2014-2020.;30/10/2017;31/12/2023;? 1.012.600,00;75%;00000;ITALIA;123;14/11/2022
6;6.1;AN;FESR;436;F81C17000010007;97149560589;Ministero dell'Interno - Dipartimento della Pubblica Sicurezza;Assistenza tecnica all?Autorit� di Gestione e di Certificazione per l?attuazione del PON;Servizi di Assistenza tecnica all?Autorit� di Gestione e di Certificazione per l?attuazione del Programma Operativo Legalit 2014?2020.;20/11/2017;19/11/2021;? 12.435.712,54;75%;00000;ITALIA;121;14/11/2022
1;1.1.2.A;MS;FESR;437;F21J17000030002;80078750587;INPS - Direzione Centrale Organizzazione e Sistemi informativi;Nuovo sistema di Business Intelligence;L'intervento prevede la realizzazione di un sistema di Business Intelligence che, attraverso l'elaborazione di dati massivi, derivanti da procedure INPS e da altre PA, consenta di individuare potenziali rischi di frode, bloccare le erogazioni delle prestazioni economiche a soggetti potenzialmente fraudolenti, nonch� accertare le frodi compiute e procedere con il recupero delle somme evase o indebitamente pagate. ;19/01/2018;19/01/2023;? 18.699.600,00;75%;00144;ITALIA;078;14/11/2022
4;4.1.2;MS;FSE;464;J43D18000080006;97113870584;Ministero della Giustizia - Dipartimento per la giustizia minorile e di comunit�;Azione di sistema per l'Innovazione sociale dei servizi di reinserimento delle persone in uscita dai circuiti penali (A.S.I.S.)   ;Il progetto finanzia la sperimentazione di percorsi di inserimento socio-lavorativo per adulti in fase di uscita dal circuito penitenziario, in esecuzione penale esterna o sottoposti a misure e sanzioni di comunit�, nelle regioni Basilicata, Calabria, Campania, Puglia e Sicilia. ;01/04/2018;01/10/2020;? 1.600.000,00;75%;75010 / 85100 - 90010 / 98168 - 70010 / 76125 - 87010 / 89900 - 80010 / 85135;ITALIA;110;14/11/2022
4;4.1.2;MS;FSE;465;J22C18000050007;97113870584;Ministero della Giustizia - Dipartimento per la giustizia minorile e di comunit�;Una rete per l'inclusione;Il progetto finanzia la sperimentazione di percorsi di inserimento socio lavorativo rivolti a circa 200 minori e giovani adulti presi in carico dai servizi della Giustizia minorile e di comunit�. ;01/04/2018;31/03/2020;? 1.600.000,00;75%;75010 / 85100 - 90010 / 98168 - 70010 / 76125 - 87010 / 89900 - 80010 / 85135;ITALIA;110;14/11/2022
4;4.1.2;MS;FSE;466;J79D18000020005;97113870584;Ministero della Giustizia - Dipartimento per la giustizia minorile e di comunit�;Liberi di scegliere;Il progetto finanzia percorsi di educazione individuali rivolti ai minori, al fine di fornire agli stessi una valida alternativa al contesto sociale fortemente caratterizzato da una cultura mafiosa. In particolare il progetto contempla l'attivazione di equipes specializzate per fornire ai destinatari il supporto necessario a favorire scelte di vita estranee alle dinamiche criminali delle regioni Calabria, Campania e a partire dal febbraio 2021 anche Sicilia per l'area di competenza del Tribunale di Catania. Per la Campania il progetto � rivolto anche a minori e giovani adulti detenuti e/o sottoposti a misure restrittive, precocemente genitori, per avviare gli stessi a percorsi di responsabilizzazione genitoriale.;01/07/2018;01/07/2020;? 1.600.000,00;75%;87010 / 89900 - 80010 / 84135 / 95121 - 95131;ITALIA;110;14/11/2022
4;4.1.1.A;MS;FSE;468;E55J18000010006 ;97538720588;Ente Nazionale per il Microcredito;F.A.S.I. Formazione, Auto-imprenditoria e Start-Up per Immigrati Regolari ;Il progetto prevede la realizzazione di percorsi formativi rivolti ai migranti regolarmente presenti sul territorio delle Regioni meno sviluppate, con l'obiettivo di favorire lo sviluppo di percorsi di auto-imprenditoria e start-up di impresa ed il conseguimento di una piena autonomia occupazionale.;01/04/2018;30/06/2021;? 14.465.000,00;75%;75010 / 85100 - 90010 / 98168 - 70010 / 76125 - 87010 / 89900 - 80010 / 85135;ITALIA;110;14/11/2022
3;3.1.1;CAL;FESR;480;J69D11000080001;80184430587;Ministero della Giustizia - Dipartimento per la giustizia minorile e di comunit�;Centro polivalente per minori e giovani di Catanzaro;Il progetto finanzia la realizzazione di un Centro polivalente rivolto ai giovani sottoposti a provvedimenti penali e civili dell'Autorit� giudiziaria o a elevato rischio devianza, con l'obiettivo di creare un luogo in grado di favorire percorsi di integrazione ai fini del reinserimento sociale di fasce vulnerabili della popolazione.;19/04/2011;31/12/2023;? 1.448.956,21;75%;88100;ITALIA;055;14/11/2022
3;3.1.1;PUG;FESR;481;F63G10000090007;84000190714;Comune di Vico del Gargano (FG);Costruire la legalit�;L'intervento prevede la ristrutturazione di un anfiteatro comunale e il recupero dell'area verde circostante. L'anfiteatro accoglier� manifestazioni, attivit� culturali e sociali finalizzate ad allontanare i giovani da comportamenti devianti.;10/11/2011;31/12/2023;? 643.066,94;75%;71018;ITALIA;055;14/11/2022
3;3.1.1;SIC;FESR;482;G58C11000100006;744880873;Comune di Trecastagni (CT);Agor� - Centro di aggregazione giovanile;Il progetto ha finanziato la riqualificazione e ristrutturazione dell'ex palazzetto dello sport, destinato alle esigenze di inclusione sociale di giovani a rischio devianza. CONCLUSO;28/09/2011;31/12/2023;? 975.525,45;75%;95039;ITALIA;055;14/11/2022
3;3.1.1;PUG;FESR;483;D72J09000140006;91008570748;Comune di Latiano (BR);Progetto di recupero ex cinema Tanzarella;Il progetto finanzia il recupero dell'ex cinema Tanzarella ove ospitare un Centro di aggregazione per l'inclusione sociale di giovani a rischio di comportamenti devianti. ;28/09/2011;31/12/2023;? 1.192.600,00;75%;72022;ITALIA;055;14/11/2022
3;3.1.1;SIC;FESR;484;I65D11000150001;81000730853;Comune di Acquaviva Platani (CL);Lavori di completamento del Centro socio-culturale;Il progetto ha finanziato il completamento di una struttura destinata a centro sociale e culturale per le esigenze di inclusione sociale di giovani a rischio devianza. CONCLUSO;28/09/2011;31/12/2023;? 1.211.181,76;75%;93010;ITALIA;055;14/11/2022
4;4.1.2;MS;FSE;622;H89D15000510007;11784021005;Autorit� Garante per l'Infanzia e l'Adolescenza;Io sono qui;Il progetto ha promosso il contrasto della devianza giovanile, nell'ottica di prevenire l'abbandono scolastico, attraverso il coinvolgimento in attivit� formative nel campo della comunicazione multimediale e della produzione di materiale audiovisivo da parte degli studenti degli Istituti secondari delle Province di Caserta, Napoli, Reggio Calabria, Vibo Valentia, Bari, Lecce, Agrigento, Catania e Palermo. CONCLUSO;30/09/2015;31/12/2023;? 486.040,00;75%;90010 / 98168 - 70010 / 76125 - 87010 / 89900 - 80010 / 85135;ITALIA;110;14/11/2022
1;1.1.2.A;MS;FESR;623;F59J15000340006;97149560589;Ministero dell'Interno - Dipartimento della Pubblica Sicurezza - Direzione Centrale dei Servizi Tecnico Logistici e della Gestione Patrimoniale;Controllo del territorio in mobilit�;L?intervento ha permesso il potenziamento della dotazione tecnologica dei reparti operativi della Polizia di Stato, attraverso dispositivi sia fissi che mobili (desktop, tablet), in modo da consentire agli operatori del territorio di avere l?immediato accesso ad informazioni e dati utili all?esercizio dell?attivit� di contrasto alla criminalit�. CONCLUSO;30/06/2015;31/12/2023;? 5.020.340,00;75%;75010 / 85100 - 90010 / 98168 - 70010 / 76125 - 87010 / 89900 - 80010 / 85135;ITALIA;078;14/11/2022
3;3.1.1;SIC;FESR;624;E72J13000000005;84000410831;Comune di San Fratello (ME);"Nebrodi Uniti per la legalit� ""San Fratello pulita"". Centro di aggregazione per l?inserimento sociale dei giovani e per diffondere la cultura della legalit�";Il progetto ha finanziato la ristrutturazione di un immobile di propriet� comunale ove svolgere attivit� formative e di sostegno finalizzate all'inserimento sociale dei giovani a rischio devianza. CONCLUSO;30/01/2013;31/12/2023;? 108.699,94;75%;98075;ITALIA;055;14/11/2022
3;3.1.1;SIC;FESR;625;H53G11000060006;80002650846;Comune di Alessandria della Rocca (AG);LEGAL-mente;Il progetto finanzia il recupero di un immobile di propriet� comunale da destinare a centro culturale per lo svolgimento di laboratori di musica, scrittura, fotografia, a favore dei giovani a rischio devianza.;28/09/2011;31/12/2023;? 321.811,20;75%;92010;ITALIA;055;14/11/2022
7;7.1.1;MS;FESR;626;F28B18000020006;97149560589;Ministero dell'Interno - Dipartimento della Pubblica Sicurezza;Io gioco legale;Il progetto nasce nell'ambito del Piano Azione Coesione 2007-2013, Fase II, Priorit� Giovani. Ha come obiettivo generale l'integrazione e l'inclusione sociale dei giovani attraverso lo sport. Nello specifico l?iniziativa finanzia la realizzazione di impianti sportivi (campi a 5 o campi polivalenti) per la pratica di attivit� utili a favorire la diffusione di comportamenti orientati alla positiva socializzazione e al rispetto delle regole. I soggetti attuatori del progetto sono i Comuni di: Andria, Ariano Irpino, Bisceglie, Bitonto, Brindisi, Comiso, Gela, Lamezia Terme, Lecce, Massafra, Monasterace, Napoli - Quartiere di Scampia, Novoli, Salemi, Scicli, Trabia,  Villarosa,  Manfredonia, Agira, Canosa di Puglia, Castrofilippo, Modica,  Nicotera, Agrigento, Poggioreale, San Prisco, Sarno, Sellia Marina, Terzigno, Torchiarolo, Torremaggiore, Troina, Cetraro, Avola, Caltagirone, Cerignola, Girifalco, Marzano di Nola, Milena, Palagonia, Putignano, Raddusa, Raffadali, Roccadaspide, Rossano, San Gregorio d'Ippona, San Nicola dell'Alto, Torre Santa Susanna, Vibo Valentia, Villa San Giovanni.;01/01/2014;31/12/2023;? 23.063.941,55;75%;90010 / 98168- 70010 / 76125 - 87010 / 89900 - 80010 / 84135;ITALIA;055;14/11/2022
3;3.1.1;MS;FESR;627;F28B18000020006;97149560589;Ministero dell'Interno - Dipartimento della Pubblica Sicurezza;Io gioco legale;Il progetto nasce nell'ambito del Piano Azione Coesione 2007-2013, Fase II, Priorit� Giovani. Ha come obiettivo generale l'integrazione e l'inclusione sociale dei giovani attraverso lo sport. Nello specifico l?iniziativa finanzia la realizzazione di impianti sportivi (campi a 5 o campi polivalenti) per la pratica di attivit� utili a favorire la diffusione di comportamenti orientati alla positiva socializzazione e al rispetto delle regole. I soggetti attuatori del progetto sono i Comuni di: Altomonte, Amaroni, Bompensiere, Camporotondo Etneo, Casabona, Castel Volturno, Castello del Matese, Casteltermini, Cava dei Tirreni, Durazzano, Fabrizia, Giffone, Mazzarrone, Monopoli, Monte Sant'Angelo, Motta Sant'Anastasia, Naso, Nissoria, Pantelleria, Piedimonte Matese, Ribera, S. Sostene, S. Vito dei Normanni, San Donaci, San Martino Valle Caudina, Scafati, Sersale, Stefanaconi, Valle di Maddaloni, Provincia di Catanzaro.;01/01/2014;31/12/2023;? 11.601.913,21;75%;75010 / 85100 - 90010 / 98168 - 70010 / 76125 - 87010 / 89900 - 80010 / 85135;ITALIA;055;14/11/2022
3;3.1.1;CAM;FESR;659;G95B18000280006;80049220637;Comune di Giugliano (NA);D.I.G.A'. - Lotta alla Dispersione a Giugliano per la Legalit�;Il progetto finanzia il recupero di alcuni beni confiscati alla camorra, ove ospitare attivit� finalizzate a combattere l'abbandono e la dispersione scolastica attraverso percorsi di istruzione, formazione professionale e orientamento al lavoro dei giovani studenti.;12/06/2018;30/03/2020;? 1.500.000,00;75%;80014;ITALIA;055;14/11/2022
3;3.1.1;CAM;FESR;661;B25C18000000001;82001330651;Comune di Battipaglia (SA);Il Tempo supplementare;Il progetto finanzia il recupero di un bene confiscato ove realizzare una serie di laboratori di lavorazione alimentare destinati alla formazione professionale dei giovani del territorio.;07/06/2018;30/03/2021;? 1.431.012,81;75%;84091;ITALIA;055;14/11/2022
4;4.1.2;MS;FSE;662;F23J18000050007;80202230589;Ministero dell'Interno - Dipartimento della Pubblica Sicurezza - Direzione Centrale per la Polizia Stradale, Ferroviaria, delle Comunicazioni e per i Reparti Speciali della Polizia di Stato;Nei panni di Caino per capire e difendere le ragioni di Abele (Educazione alla legalit� per la prevenzione di comportamenti antisociali espressi anche attraverso l'uso della realt� virtuale immersiva);Il progetto intende creare un filo conduttore tra le forze di polizia e i giovani svantaggiati, mediante la realizzazione di percorsi educativi e di prevenzione di comportamenti antisociali da realizzarsi con metodologie formative innovative.;25/06/2018;30/06/2021;? 3.283.020,00;75%;75010 / 85100 - 90010 / 98168 - 70010 / 76125 - 87010 / 89900 - 80010 / 85135;ITALIA;110;14/11/2022
3;3.1.1;CAM;FESR;664;B61G18000080001;80014890638;Comune di Napoli;Lavori di riqualificazione dei beni confiscati alla criminalit� organizzata per l'integrazione degli immigrati regolari e Centro di accoglienza per le donne vittime di tratta;Il progetto finanzia il recupero di due immobili confiscati alla criminalit� organizzata come Centro per l'integrazione dei migranti regolari e Centro di accoglienza per le donne vittime di tratta.;12/06/2018;04/03/2019;? 1.499.984,27;75%;80133;ITALIA;055;14/11/2022
3;3.1.1;CAM;FESR;665;I54H18000030001;80000330656;Comune di Salerno;Rifunzionalizzazione dell'immobile confiscato sito in via F. Spirito da adibire a casa di accoglienza per donne maltrattate;Il progetto ha finanziato la rifunzionalizzazione di un immobile confiscato alla criminalit� organizzata, con l'obiettivo di realizzare una Casa di accoglienza per le donne vittime di violenza, dove effettuare diverse attivit�: accoglienza e ospitalit�, orientamento, consulenza legale e psicologica, gruppi di auto-aiuto e accompagnamento nel percorso di reinserimento lavorativo. CONCLUSO;12/06/2018;30/04/2020;? 159.810,16;75%;84121;ITALIA;055;14/11/2022
2;2.1.1;CAM;FESR;666;D97D18000180007;216700641;Consorzio per l'Area di Sviluppo Industriale della Provincia di Avellino;Infrastrutture per la videosorveglianza e il monitoraggio ambientale nelle Aree Industriali della Provincia di Avellino;"L'intervento ha ad oggetto il presidio dei principali agglomerati industriali della provincia di Avellino attraverso l'impiego di apparati di ripresa ""intelligenti"" e lettori targhe veicoli.";16/07/2018;30/06/2022;? 3.684.000,00;75%;83100;ITALIA;048;14/11/2022
3;3.1.1;CAM;FESR;667;J12B17000300009;80104380631;Comune di Casalnuovo (NA);"Recupero funzionale dell'immobile a ridosso del parcheggio M.U.S.A da destinare al progetto ""Donne in Centro antiviolenza e Casa rifugio""";Il progetto finanzia la riqualificazione di un bene confiscato alla criminalit� organizzata con l'obiettivo di realizzare un Centro per le donne vittime di violenza, in modo da favorirne il percorso di fuoriuscita dalla condizione di disagio.;12/06/2018;30/01/2020;? 1.500.000,00;75%;80013;ITALIA;055;14/11/2022
3;3.1.1;CAM;FESR;668;G82H18000160006;625680657;Comune di Scafati (SA);"Ristrutturazione e rifunzionalizzazione di un immobile confiscato alla criminalit� organizzata, per adibirlo a Centro per donne vittime di violenza ""Le dimore di Iside""";Il progetto finanzia la riqualificazione di un immobile confiscato alla criminalit� organizzata, con l'obiettivo di realizzare un Centro di accoglienza per le donne maltrattate, fino a un massimo di 20 (eventualmente con i loro bambini). Il Centro sar� articolato in quattro unit� residenziali, che potranno accogliere fino a 5 donne insieme.;12/06/2018;26/02/2021;? 1.499.147,12;75%;84018;ITALIA;055;14/11/2022
3;3.1.1;CAM;FESR;669;H22H18000070001;318580651;Comune di Eboli (SA);IntegrArea - Centro contro la marginalizzazione sociale;Il progetto finanzia la realizzazione di un Centro polifunzionale per l'accoglienza di donne vittime di violenza, tratta e prostituzione, nonch� per la promozione di attivit� di integrazione sociale di fasce vulnerabili della popolazione.;11/06/2018;31/03/2020;? 1.067.026,28;75%;84025;ITALIA;055;14/11/2022
3;3.1.1;CAM;FESR;671;E71H18000010007;81000610618;Comune di Villa Literno (CE);Centro di produzione e trasformazione del pomodoro;Il progetto finanzia la riqualificazione di immobili confiscati alla criminalit� organizzata, con l'obiettivo di realizzare centri per l'inserimento lavorativo di immigrati regolari, nell'ambito delle attivit� di lavorazione del pomodoro.;07/06/2018;30/04/2020;? 1.400.000,00;75%;81039;ITALIA;055;14/11/2022
3;3.1.1;CAM;FESR;672;B46D18000120006;80047540630;Comune di Afragola (NA);Masseria Antonio Esposito Ferraioli;Il progetto finanzia un Centro per le donne vittime di violenza, finalizzato ad offrire sostegno nella gestione delle relazioni con i figli e nella valorizzazione delle competenze utili ad un reinserimento lavorativo.;12/06/2018;30/06/2020;? 1.497.342,58;75%;80021;ITALIA;055;14/11/2022
3;3.1.1;CAM;FESR;673;E85B18000290001;82000270635;Comune di Castellammare di Stabia (NA);Stabia donna; Il progetto ha finanziato la ristrutturazione di un bene confiscato alla camorra, per realizzarvi un Centro antiviolenza a favore delle donne vittime di violenza che vivono nell'area comunale e nei territori limitrofi. CONCLUSO;12/06/2018;31/12/2023;? 58.704,14;75%;80053;ITALIA;055;14/11/2022
3;3.1.1;CAM;FESR;674;D57D18000030001;81002610616;Comune di Gricignano di Aversa (CE);"Adeguamento e recupero funzionale dell'immobile ""Bene confiscato"" sito in via Toti 1 angolo via Marconi";Il progetto finanzia la riqualificazione di un bene confiscato alla mafia, dove ospitare laboratori linguistici e informatici per giovani a rischio devianza.;07/06/2018;30/09/2019;? 634.888,04;75%;81030;ITALIA;055;14/11/2022
3;3.1.1;CAM;FESR;675;J66E17000050002;84003230632;Comune di Saviano (NA);Interventi di recupero e rifunzionalizzazione dell'edificio comunale confiscato alla criminalit� organizzata ed adibito a struttura per servizi a persone socialmente disagiate;Il progetto finanzia la ristrutturazione di un immobile confiscato alla criminalit� dove ospitare un centro di ascolto e di accoglienza per giovani a rischio di comportamenti devianti.;12/06/2018;28/06/2019;? 950.000,00;75%;80039;ITALIA;055;14/11/2022
3;3.1.1;CAM;FESR;677;J71H18000040006;80015980636;Comune di Portici (NA);"Casa delle donne ""Donna Elvira""";Il progetto finanzia la realizzazione di una Casa di accoglienza per le donne vittime di violenza e abusi fisici e psicologici con o senza figli minori.;08/06/2018;30/09/2019;? 48.973,13;75%;80055;ITALIA;055;14/11/2022
3;3.1.1;CAM;FESR;678;G37B18000030002;80017980634;Comune di Ercolano (NA);IntegraSociaLab;Il progetto finanzia la ristrutturazione di un immobile confiscato dove ospitare un Centro di accoglienza e integrazione per gli immigrati regolari.;07/06/2018;30/09/2020;? 282.764,70;75%;80056;ITALIA;055;14/11/2022
3;3.1.1;BAS;FESR;679;B62J18000190006;95000410761;Comune Palazzo San Gervasio (PZ);"Progetto per la realizzazione di un ""Centro antiviolenza e casa rifugio"", sito nel Comune di Palazzo San Gervasio";Il progetto prevede il recupero di un bene confiscato per le esigenze di accoglienza e assistenza delle donne vittime di violenza.;02/07/2018;30/06/2020;? 1.000.000,00;75%;85026;ITALIA;055;14/11/2022
2;2.1.1;PUG;FESR;680;D87D17000320007;00830890729;Consorzio per l'Area di Sviluppo Industriale della Provincia di Bari;ZonASIcura - Videosorveglianza e monitoraggio ambientale. Agglomerati industriali ASI della Provincia di Bari;"L'intervento ha ad oggetto il presidio dei principali agglomerati industriali di Bari, Modugno e Molfetta attraverso l'impiego di apparati di ripresa ""intelligenti"" e sensori per il monitoraggio dell'inquinamento ambientale.";16/07/2018;30/06/2021;? 7.080.537,63;75%;70026;ITALIA;048;14/11/2022
3;3.1.1;CAM;FESR;694;D68C18000030001;1435550635;Comune di San Giorgio a Cremano (NA);Centro antiviolenza Maria - Servizi residenziali e di assistenza per le donne vittime di violenza e abusi;Il progetto finanzia la realizzazione di una struttura per l'erogazione di servizi di assistenza, supporto e ospitalit� alle donne vittime di violenza, abusi fisici e psicologici.;12/06/2018;31/12/2021;? 184.400,87;75%;80046;ITALIA;055;14/11/2022
4;4.1.2;CAM;FSE;731;B69F18001380005;80014890638;Comune di Napoli ;Percorsi di Inclusione Innovazione Territoriale ed Empowerment nel Rione Sanit� di Napoli (PITER);Il progetto intende attivare una modalit� di intervento per la presa in carico precoce e globale di minori a grave rischio di esclusione sociale, criminalit� e devianza, prevenendo la fuoriuscita dal sistema scolastico, attraverso la costituzione di una rete stabile di stakeholders operanti sul territorio del Rione Sanit� di Napoli.;23/08/2018;23/08/2021;? 3.000.000,00;75%;80133;ITALIA;110;14/11/2022
2;2.1.1;CAM;FESR;733;F89D18000110001;80003310622;Consorzio per l?Area di Sviluppo Industriale di Benevento;P.A.R.I.D.E. (Piattaforma per il monitoraggio Areale tramite Remote sensing Integrato con sensoristica a terra, per la Determinazione di rischi antropici e naturali a difesa dello sviluppo Economico locale);Il progetto prevede l'acquisizione di strumentazione tecnologica evoluta per identificare e contrastare forme di illegalit� che possono limitare lo sviluppo delle attivit� produttive.;08/08/2018;31/12/2020;? 957.260,00;75%;82100;ITALIA;048;14/11/2022
2;2.1.1;PUG;FESR;735;D52D18000060001;90048270731;Autorit� del Sistema Portuale del Mar Ionio;Miglioramento degli standard di sicurezza intelligente ed integrata dell'area dello sviluppo produttivo e portuale di Taranto;L'intervento ha ad oggetto il presidio delle aree industriali dei Comuni di Taranto, Massafra e Statte, compresa l'area demaniale del porto di Taranto, su cui insistono rilevanti attivit� produttive.;08/08/2018;08/08/2020;? 3.281.541,00;75%;74123;ITALIA;048;14/11/2022
3;3.1.1;CAM;FESR;737;F84B17000140001;80202230589;Ministero dell'Interno - Dipartimento della Pubblica Sicurezza - Direzione Centrale dei Servizi Tecnico Logistici e della Gestione Patrimoniale;Commissariato di Pubblica Sicurezza di Casal di Principe (CE): Lavori di adeguamento funzionale di un immobile confiscato alla camorra;Il progetto finanzia la realizzazione di lavori di adeguamento funzionale di un immobile confiscato alla camorra da destinare a presidio di sicurezza di un territorio fortemente gravato da problematiche sociali.;26/09/2018;26/08/2020;? 600.000,00;75%;81033;ITALIA;055;14/11/2022
3;3.1.1;SIC;FESR;738;F32D17000050001;80202230589;Ministero dell'Interno - Dipartimento della Pubblica Sicurezza - Direzione Centrale dei Servizi Tecnico Logistici e della Gestione Patrimoniale;Lavori di ristrutturazione impiantistico ed edile dell'immobile sede del Commissariato di Ortigia e uffici della Questura di Siracusa Caserma Greco;Il progetto finanzia la realizzazione di lavori di adeguamento funzionale di un immobile confiscato alla camorra da destinare a presidio di sicurezza di un territorio fortemente gravato da problematiche sociali.;21/03/2018;23/09/2021;? 1.500.000,00;75%;96100;ITALIA;055;14/11/2022
3;3.1.1;SIC;FESR;739;D57E17000030001;97057690824;Comando Legione Carabinieri Sicilia;Rifunzionalizzazione della sede della Stazione Carabinieri di Lampedusa;Il progetto finanzia la realizzazione di lavori di adeguamento funzionale di un immobile da destinare a presidio di sicurezza di un territorio fortemente gravato da problematiche sociali.;19/09/2017;26/11/2019;? 462.000,00;75%;90134;ITALIA;055;14/11/2022
3;3.1.1;SIC;FESR;740;D27E17000110001;97057690824;Comando Legione Carabinieri Sicilia;Rifunzionalizzazione della sede della Stazione Carabinieri di Pantelleria;Il progetto finanzia la realizzazione di lavori di adeguamento funzionale di un immobile da destinare a presidio di sicurezza di un territorio fortemente gravato da problematiche sociali.;26/09/2018;26/05/2019;? 440.000,00;75%;90134;ITALIA;055;14/11/2022
6;6.1;AN;FESR;741;F81F18000060007 ;97149560589;Ministero dell'Interno - Dipartimento della Pubblica Sicurezza;Verifica di efficacia dell'attuazione del PON Legalit 2014-2020 ;Verifica di efficacia dell'attuazione del PON Legalit 2014 2020. CONCLUSO;02/07/2018;02/07/2019;? 29.158,00;75%;00000;ITALIA;121;14/11/2022
3;3.1.1;BAS;FESR;743;I13I18000060001;313580771;Comune di Matera;Sassi di Legalit�;Il progetto finanzia la riqualificazione di un edificio storico confiscato alla criminalit� e situato nel cuore del Rione Sassi, sito UNESCO, per la realizzazione di un ?Centro di educazione alla gestione e sostenibilit� del paesaggio?, a supporto degli Istituti scolastici. L?obiettivo dell?iniziativa consiste nel migliorare le opportunit� didattiche attraverso approfondimenti su tecnologie digitali, metodologie multimediali, strumentazioni satellitari e droni per la gestione del paesaggio agrario e pi� in generale per la valorizzazione dell?ambiente circostante.;12/10/2018;30/06/2020;? 1.000.000,00;75%;75100;ITALIA;055;14/11/2022
2;2.1.1;PUG;FESR;749;E67H18000820006;00380090753;Consorzio per l'Area di Sviluppo Industriale di Lecce;Azienda Sicura - Lecce;"Il progetto ha l'obiettivo di tutelare l'attivit� e lo sviluppo delle imprese operanti all'interno dell'agglomerato industriale di Lecce-Surbo e dell'agglomerato del Comune di Casarano. A tal fine prevede l'impiego di sistemi ""intelligenti"" di videosorveglianza e di sensori per il monitoraggio dell'inquinamento ambientale.";01/08/2018;30/09/2021;? 3.197.000,00;75%;73100;ITALIA;048;14/11/2022
6;6.1;AN;FESR;750;F81H17000080007;97149560589;Ministero dell'Interno - Dipartimento della Pubblica Sicurezza;Sito web del PON Legalit 2014-2020;Realizzazione del portale internet del PON Legalit 2014-2020 ;09/08/2017;29/02/2020;? 74.508,07;75%;00000;ITALIA;123;14/11/2022
4;4.1.1.A;CAL;FSE;798;E17D18000510001;01997410798;Azienda Sanitaria Provinciale di Crotone;AYLAN;Il progetto intende garantire risposte efficaci ai bisogni di salute fisica e mentale dei migranti in condizione di vulnerabilit� psicosanitaria presenti sul territorio regionale, favorendo l'individuazione, l'emersione e la presa in carico degli stessi.;18/10/2018;31/12/2021;? 1.887.552,00;75%;87010 / 89900;ITALIA;110;14/11/2022
4;4.1.1.A;PUG;FSE;800;E39F18001080007;02026690731;Azienda sanitaria locale di Taranto;FARI;Il progetto intende tutelare la salute dei migranti in condizione di vulnerabilit�, presenti sul territorio regionale, garantendo l'accesso ai servizi socio sanitari, mediante il supporto dei mediatori culturali e il potenziamento delle competenze individuali e organizzative degli operatori.;18/10/2018;18/07/2020;? 799.827,11;75%;70010 / 76125;ITALIA;110;14/11/2022
5;5.1.1.A;MS;FSE;821;F73I09000010006;97149560589;Ministero dell'Interno - Dipartimento della Pubblica Sicurezza;Progetto SISFOR - Sistema di formazione online delle forze dell'ordine - LDA 5.1.1.A  ;Il progetto ha finanziato percorsi di formazione per potenziare le conoscenze delle Forze di Polizia in materia di sicurezza. CONCLUSO;01/01/2011;31/05/2019;? 11.102.950,00;75%;90010/98168 - 70010/76125 - 87010/89900 - 80010/84135;ITALIA;119;14/11/2022
4;4.1.1.B;MS;FSE;822;F73I09000010006;97149560589;Ministero dell'Interno - Dipartimento della Pubblica Sicurezza - Direzione Centrale dei Servizi Tecnico Logistici e della Gestione Patrimoniale;SISFOR - Sistema di formazione online delle Forze dell'Ordine;Il progetto ha fornito conoscenze normative, saperi professionali e protocolli operativi alle Forze di Polizia sui temi connessi alla gestione del fenomeno migratorio. CONCLUSO;01/01/2011;31/05/2019;? 147.050,00;75%;75010 / 85100 - 90010 / 98168 - 70010 / 76125 - 87010 / 89900 - 80010 / 85135;ITALIA;110;14/11/2022
2;2.1.1;CAM;FESR;837;I37D18000190006;80018510653;Consorzio per l'Area di Sviluppo Industriale della Provincia di Salerno;Videosorveglianza e monitoraggio ambientale negli agglomerati industriali del Consorzio ASI di Salerno;Il progetto prevede la videosorveglianza e il monitoraggio ambientale negli agglomerati industriali di ASI di Salerno, Battipaglia e Fisciano/Mercato San Severino, caratterizzati da un elevato tasso di criminalit�.;04/10/2018;30/06/2022;? 4.357.000,00;75%;84131;ITALIA;048;14/11/2022
2;2.1.1;CAM;FESR;841;B67D18001310006;80011990639;Regione Campania - Ufficio per il Federalismo e dei Sistemi territoriali e della Sicurezza integrata;Sicurezza per l?area Unesco della citt� di Napoli;Il progetto mira ad innalzare i livelli di sicurezza e legalit� nelle aree del centro storico di Napoli rientranti nel patrimonio UNESCO (area Decumani, Rione Sanit�, Quartiere Chiaia) attraverso strumenti di videosorveglianza.;01/10/2015;30/06/2022;? 2.200.463,46;75%;80133;ITALIA;048;14/11/2022
2;2.1.1;MS;FESR;844;F51G18000310002;97181460581;Agenzia per le erogazioni in agricoltura - AGEA;Criminal Focus Area;Il progetto finanzia l'acquisizione di strumenti che registrano e analizzano le variazioni quali-quantitative degli elementi indicativi di attivit� criminose inibenti lo sviluppo economico-sociale (presenza di discariche abusive, sversamenti, baraccopoli collegate al caporalato, manufatti abusivi), e che consentiranno di identificare dei Criminal Focus Area (CFA) nelle Regioni ?meno sviluppate?, al fine di un loro costante monitoraggio.;02/07/2015;30/06/2022;? 24.195.081,50;75%;75010 / 85100 - 90010 / 98168 - 70010 / 76125 - 87010 / 89900 - 80010 / 85135;ITALIA;048;14/11/2022
1;1.1.2.A;MS;FESR;846;G57H18001530007;97210890584;Agenzia delle Dogane e dei Monopoli;Gioco Legale e Responsabile;Il progetto prevede la realizzazione di nuovi servizi digitali orientati all?analisi dei rischi di frode e infiltrazione criminale nel settore dei giochi con vincita e/o partecipazione in denaro.;29/11/2018;30/06/2022;? 25.471.681,62;75%;75010 / 85100 - 90010 / 98168 - 70010 / 76125 - 87010 / 89900 - 80010 / 85135;ITALIA;078;14/11/2022
4;4.1.1.A;MS;FSE;847;J56G18000280001;80188230587;Presidenza del Consiglio dei Ministri - Dipartimento Pari Opportunit�;Non si tratta. Azioni per l'inclusione delle vittime di tratta;Il progetto intende realizzare servizi di emersione, accoglienza e autonomia delle vittime di tratta. In particolare l'intervento prevede l'attivazione di unit� di strada (anche mobile) per il soccorso di potenziali vittime di tratta e la realizzazione di interventi di prima accoglienza e di supporto all'autonomia ed emancipazione sociale. Sono inoltre previsti specifici interventi anche a favore dei Minori Stranieri Non Accompagnati (MSNA), come l'inserimento in percorsi di istruzione e formazione di base e la realizzazione di tirocini finalizzati all'inserimento lavorativo.;10/06/2016;28/06/2019;? 9.608.004,59;75%;75010 / 85100 - 90010 / 98168 - 70010 / 76125 - 87010 / 89900 - 80010 / 85135;ITALIA;110;14/11/2022
2;2.1.1;PUG;FESR;848;C87D18000270007;176630747;Consorzio per l'Area di Sviluppo Industriale di Brindisi;Sistema di Videosorveglianza ASI con collegamento al Sistema Centralizzato Nazionale Targhe e Transiti (SCNTT) nell'Area di Sviluppo Industriale di Brindisi;Il progetto ha l'obiettivo di incrementare i livelli di sicurezza dell'area industriale di Brindisi attraverso l'impiego di strumentazione tecnologica innovativa.;04/10/2018;04/05/2021;? 3.069.476,12;75%;72100;ITALIA;048;14/11/2022
2;2.1.1;BAS;FESR;849;E27D18000280001;00091600767;Consorzio per lo Sviluppo Industriale della Provincia di Potenza;Realizzazione di un impianto di videosorveglianza a servizio degli agglomerati industriali di Tito, Potenza e San Nicola di Melfi;Il progetto ha l'obiettivo di innalzare i livelli di sicurezza dell'area in cui opera il sistema industriale e produttivo dell?agglomerato di Tito e della zona artigianale del Comune di Tito, Potenza e San Nicola di Melfi attraverso l?integrazione e l'implementazione di tecniche di controllo del territorio con tecnologie evolute.;23/10/2018;31/03/2021;? 3.479.983,46;75%;85100;ITALIA;048;14/11/2022
4;4.1.1.A;BAS;FSE;855;F79G18000150006;81000430769;Comune di San Chirico Raparo (PZ);WorkIntegration;Il progetto intende potenziare i servizi di accoglienza e assistenza specifica per i Minori Stranieri Non Accompagnati (MSNA). In particolare mira a delineare un modello di orientamento volto a garantire il benessere sociale e la crescita personale e professionale dei MSNA presenti nella provincia di Potenza e con un et� compresa tra i 15 ed i 17 anni, intervenendo sia in contesti scolastici, sia extrascolastici attraverso approcci individualizzati di orientamento professionale, in grado di coniugare dimensione informativa, educativa, psicosociale e comunitaria.;29/11/2018;30/03/2020;? 149.158,80;75%;85030;ITALIA;110;14/11/2022
4;4.1.1.A;SIC;FSE;857;H46B18000670008;00547690875;Comune di Scordia (CT);HOPE;Il progetto intende delineare un modello strutturato di accoglienza per i Minori Stranieri Non Accompagnati, in grado di offrire un'effettiva protezione agli stessi.;09/11/2018;11/05/2020;? 340.000,00;75%;95048;ITALIA;110;14/11/2022
5;5.1.1.A;MS;FSE;874;D23H18000050007;80236190585;Comando Generale dell'Arma dei Carabinieri - Ufficio Addestramento e Regolamenti;Minerva - Formazione straordinaria del personale dell'Arma dei Carabinieri per la prevenzione e il contrasto dei reati ambientali e dei crimini informatici;Il progetto finanzia percorsi di formazione rivolti ai Carabinieri in materia di prevenzione e contrasto dei reati ambientali, dei crimini informatici e in relazione agli strumenti patrimoniali/finanziari che hanno la finalit� di aggredire i patrimoni illecitamente accumulati. Le attivit� previste consentiranno concretamente di rafforzare le competenze del personale dell'Arma dei Carabinieri impegnato nelle attivit� di prevenzione e di contrasto alla criminalit� comune e organizzata ed ai reati emergenti, in evoluzione e di rilievo internazionale.;29/11/2018;28/11/2020;? 504.708,84;75%;75100/85100 - 90010/98168 - 70010/76125 - 87010/89900 - 80010/84135;ITALIA;119;14/11/2022
1;1.1.2.A;MS;FESR;880;F66G18000950006;80202230589;Ministero dell'Interno - Dipartimento della Pubblica Sicurezza - Direzione Centrale dei Servizi Tecnico Logistici e della Gestione Patrimoniale;Potenziamento Tecnologico per la gestione centralizzata. Sistemi a supporto delle progettualit� in ambito PON ;Il progetto ha l'obiettivo di adeguare e potenziare l'infrastruttura tecnologica del Centro Elaborazione Dati della Polizia di Stato di Napoli e del relativo sito di Disaster Recovery di Bari, per una pi� efficace e sicura gestione di nuovi flussi informativi determinati dai sistemi di videosorveglianza finanziati dal PON Legalit�.;14/11/2018;14/07/2023;? 7.500.000,00;75%;70121/70132 - 71100/71121/71122 - 73100 - 85100;ITALIA;078;14/11/2022
2;2.1.1;CAM;FESR;882;PROV0000007066;90083400631;Parco Archeologico di Pompei;Safety and security per il Parco Archeologico di Pompei;L'intervento ha ad oggetto il presidio dei siti di natura archeologica e museale che rientrano nella competenza del Parco Archeologico di Pompei attraverso l'impiego di strumenti di videosorveglianza integrati da una piattaforma ITC.;01/01/2018;30/06/2022;? 10.949.362,00;75%;80045;ITALIA;048;14/11/2022
2;2.1.1;CAM;FESR;883;G11C18000060006;95255720633;Autorit� del Sistema Portuale del Mar Tirreno Centrale;SISMATIC - Sistema integrato di sicurezza portuale dell'Autorit� del Sistema Portuale del Mar Tirreno Centrale;Il progetto ha l'obiettivo di innalzare, grazie all'impiego di strumenti tecnologici innovativi, i livelli di sicurezza delle attivit� produttive che gravitano sulle aree portuali di Napoli, Salerno e Castellamare, che compongono l?Autorit� del Sistema portuale del Mar Tirreno centrale.;10/12/2018;31/12/2022;? 9.653.397,13;75%;80133;ITALIA;048;14/11/2022
2;2.1.1;CAM;FESR;884;F66G18001060006;80202230589;Ministero dell'Interno - Dipartimento della Pubblica Sicurezza - Direzione Centrale dei Servizi Tecnico Logistici e della Gestione Patrimoniale;Occhi Aperti su aree UNESCO - Implementazione dei sistemi di videosorveglianza nelle Aree Unesco della citt� di Napoli e allestimento della Control Room;Il progetto ha l'obiettivo di innalzare i livelli di sicurezza e legalit� delle aree del centro storico della Citt� di Napoli rientranti nel patrimonio UNESCO (San Ferdinando, Chiaia, ecc...) attraverso il potenziamento di strumenti di videosorveglianza.;22/11/2018;22/11/2021;? 2.310.000,00;75%;00185;ITALIA;048;14/11/2022
5;5.1.1.A;MS;FSE;885;G83I18000420006;80194230589;Guardia di Finanza - I Reparto - Ufficio Reclutamento e Addestramento;"Corsi di qualificazione e aggiornamento per la formazione di ""Investigatore economico finanziario""";Il progetto ha migliorato le capacit� operative dei reparti del Corpo della Guardia di Finanza nel contrasto alla criminalit� organizzata ed economica, con riferimento allo sviluppo di indagini patrimoniali, anche in ambito internazionale, finalizzate all'aggressione dei patrimoni illecitamente accumulati. CONCLUSO;29/11/2018;28/11/2020;? 999.893,60;75%;75100/85100 - 90010/98168 - 70010/76125 - 87010/89900 - 80010/84135;ITALIA;119;14/11/2022
5;5.1.1.A;MS;FSE;886;J91C18000140006;80184430587;Ministero della Giustizia - Dipartimento dell'Amministrazione Penitenziaria - Provveditorato regionale per la Puglia e la Basilicata;A.M.I.C.O. (Approfondimenti Metodologici Investigativi per la Criminalit� Organizzata);Il progetto intende rafforzare le conoscenze investigative degli agenti di polizia per l'attuazione di interventi operativi volti a prevenire fenomeni criminosi e ridurre le reti criminali che collegano le mafie pugliesi e lucane. Il progetto prevede momenti di formazione basati sullo scambio di buone pratiche investigative ;03/12/2018;02/12/2020;? 221.937,00;75%;70121/70132 - 71100/71121/71122 - 73100 - 85100;ITALIA;119;14/11/2022
5;5.1.1.A;CAM;FSE;897;B23I18000160009;80011990639;Regione Campania - Ufficio per il Federalismo e dei sistemi territoriali e della sicurezza integrata;Formazione per la Polizia locale della Campania;Il progetto ha finanziato percorsi di formazione sulla prevenzione e il contrasto dei reati emergenti, in evoluzione e di rilievo internazionale, al fine di rafforzare le competenze specifiche degli operatori della Polizia locale della Regione Campania. CONCLUSO;17/12/2018;31/12/2020;? 500.000,00;75%;80010/84135;ITALIA;119;14/11/2022
4;4.1.1.A;PUG;FSE;930;E98C18000440001;80001550740;Comune di Oria (BR);Tutti inclusi;Il progetto intende realizzare un programma di attivit� formative ludico - ricreative per l?inserimento lavorativo di giovani ex minori non accompagnati nel settore dell?intrattenimento culturale e sociale e favorire al contempo la loro integrazione nella comunit� locale.;15/04/2019;15/10/2021;? 293.093,00;75%;72024;ITALIA;110;14/11/2022
4;4.1.1.A;PUG;FSE;933;J51H19000000005;83000750758;Comune di San Cassiano (LE);Non meno di uno. Storie ed azioni di straordinaria salvezza per minori stranieri;Il progetto intende realizzare percorsi di integrazione, formazione e socializzazione per i minori stranieri non accompagnati. L?obiettivo del progetto � quello di fornirgli strumenti utili all?inserimento lavorativo e all?inclusione all?interno della comunit� locale.;15/04/2019;15/04/2021;? 322.735,00;75%;73020;ITALIA;110;14/11/2022
4;4.1.1.A;SIC;FSE;936;C11H18000100007;00356650838;Comune di Capo D'Orlando (ME);Metti in scena l'italiano;L?intervento sostiene la realizzazione di percorsi di formazione linguistica rivolti a migranti residenti nell?hinterland dei Comuni di Capo D'Orlando, Milazzo e Patti. L?obiettivo del progetto � quello di fornire al migrante strumenti utili all?inserimento lavorativo e all?inclusione all?interno della comunit� locale.;15/01/2019;15/01/2020;? 201.248,70;75%;98071;ITALIA;110;14/11/2022
4;4.1.2;PUG;FSE;941;C35G19000130006;80000110728;Citt� Metropolitana di Bari;Agricultura ;Il progetto intende promuovere percorsi di inclusione sociale di giovani a rischio devianza dell'area metropolitana di Bari, attraverso l'inserimento lavorativo nella filiera agriculturale.;10/07/2019;10/07/2022;? 3.000.000,00;75%;70127 - 70131- 70128 - 70122 - 70125 - 70126 - 70132 - 70124 - 70123 - 70121;ITALIA;113;14/11/2022
2;2.1.1;BAS;FESR;943;I17D18000180006;00058560772;Consorzio per lo Sviluppo Industriale della Provincia di Matera;"""Progetto Security"" Messa in sicurezza agglomerato industriale di Matera ""Jesce"" ";Il progetto finanzia la realizzazione di un sistema di presidio tecnologico dell?area industriale di Jesce con telecamere evolute ed impianti finalizzati a prevenire e contrastare fenomeni criminosi a danno delle attivit� produttive.;22/01/2019;22/03/2022;? 249.651,27;75%;75100;ITALIA;048;14/11/2022
2;2.1.1;CAM;FESR;949;PROV0000007204;95234870632;Parco Archeologico di Ercolano;Safety and security per il Parco Archeologico di Ercolano;L'intervento intende innalzare i livelli di sicurezza e legalit� nei siti di natura archeologica e museale che rientrano nella competenza del parco archeologico di Ercolano, attraverso l?impiego di sistemi tecnologicamente evoluti (telecamere, apparati di lettura targhe, sensoristica intelligente, una smart tower).;05/04/2019;05/09/2021;? 3.510.086,00;75%;80056;ITALIA;048;14/11/2022
2;2.1.1;PUG;FESR;952;H77D19000030006;80002670711;Consorzio per l'area di sviluppo industriale di Foggia;Interventi integrati finalizzati all'incremento degli standard di sicurezza in aree strategiche per lo sviluppo;Il progetto finanzia la realizzazione di un sistema di presidio tecnologico dell?area industriale di Foggia con telecamere evolute ed impianti finalizzati a prevenire e contrastare fenomeni criminosi a danno delle attivit� produttive.;05/04/2019;05/06/2022;? 2.112.445,00;75%;71122;ITALIA;048;14/11/2022
4;4.2.2;CAM;FSE;968;B69E19000260006;80011990639;Regione Campania - Ufficio per il Federalismo e dei Sistemi territoriali e della sicurezza integrata;Potenziamento delle azioni di prevenzione e contrasto di racket e usura in Campania;Il progetto finanzia il potenziamento dei servizi erogati dal servizio pubblico in tema di prevenzione e contrasto dei fenomeni di racket e usura a favore delle famiglie e delle PMI presenti sul territorio regionale, con particolare attenzione ai territori particolarmente colpiti, come il quartiere Pianura di Napoli e quelli limitrofi.  ;12/05/2014;31/12/2023;? 55.000,00;75%;80132;ITALIA;113;14/11/2022
7;7.2.1;PUG;FESR;971;E38H19000170006;06044201009;Borsa Merci Telematica Italiana S.C.P.A.;Fi.Le. Filiera Legale;Il progetto intende tutelare il sistema produttivo, contrastando la corruzione e le infiltrazioni criminali nell'ambito agroalimentare, attraverso la realizzazione di un sistema informativo incentrato sulla gestione dinamica e legale dell'offerta di lavoro e di analisi del territorio.;24/04/2019;24/04/2022;? 6.051.714,66;75%;71121 / 71122;ITALIA;078;14/11/2022
4;4.1.2;SIC;FSE;972;G65E19000120006;80012000826;Regione Siciliana - Dipartimento Istruzione e formazione professionale;No more Neet. Sperimentazione di percorsi integrati di carattere educativo, formativo e di socializzazione per i ragazzi volti a combattere la povert� e a promuovere l'inclusione sociale e la legalit� ;Il progetto intende promuovere percorsi di formazione e educazione alla legalit� a favore di giovani in condizioni di fragilit�, al fine di promuoverne l'inclusione sociale e l'allontanamento da comportamenti devianti.;12/06/2019;12/06/2022;? 3.292.000,00;75%;95010 - 94010 - 98020 - 90010;ITALIA;110;14/11/2022
6;6.1;AN;FESR;973;F81F18000150007;97149560589;Ministero dell'Interno - Dipartimento della Pubblica Sicurezza ;Sistema informativo ERA (Electronic Reporting Automation) ;Il progetto intende realizzare una piattaforma di monitoraggio e gestione digitale del PON Legalit�. Attraverso il sistema informativo ERA sar� possibile  garantire lo scambio eletronico dei dati e dei documenti tra i soggetti operanti sul PON, assicurando qualit� informativa, tracciabilit� dei dati, sicurezza, digitalizzazione di atti.;12/10/2018;12/10/2022;? 4.280.000,00;75%;00000;ITALIA;123;14/11/2022
7;7.1.2;PUG;FESR;975;B92I19000110006;80017210727;Regione Puglia - Sezione Sicurezza del Cittadino, Politiche per le migrazioni e Antimafia sociale;Progetto Gestione emergenza abitativa immigrati;Il progetto intende avviare un modello sperimentale di accoglienza, attraverso moduli abitativi dignitosi e servizi alla persona per l'accoglienza e la promozione del lavoro degli immigrati regolari, vittime di sfruttamento lavorativo nel settore agricolo.;14/10/2019;14/04/2022;? 5.839.671,70;75%;70121;ITALIA;055;14/11/2022
4;4.1.2;CAM;FSE;979;H59D19000010006;01263370635;Citt� Metropolitana di Napoli;Esserci nel quartiere;Il progetto intende sostenere percorsi di reinserimento sociale di giovani e adolescenti a rischio devianza. Il progetto riguarda le aree periferiche della Citt� metropolitana di Napoli (Comune di Napoli, di Giugliano in Campania, Marigliano, Afragola, Caivano, Castello di Cisterna) dove la percentuale di abbandono scolastico � considerevole.;11/09/2019;11/09/2021;? 2.998.557,70;75%;80121 - 80147 - 80014 - 80034 - 80021 - 80023 - 80030 ;ITALIA;113;14/11/2022
3;3.1.1;SIC;FESR;981;C55I18000220001;00410340871;Comune di Aci Sant'Antonio (CT);Maggiu Sicilianu;Il progetto prevede la realizzazione di spazi per intervenire sulle problematiche legate alla violenza di genere attraverso l'accoglienza, la protezione, l'empowerment e il supporto ai minori.;14/05/2019;14/05/2021;? 1.318.750,00;75%;95025;ITALIA;055;14/11/2022
3;3.1.1;SIC;FESR;982;E15C18000010001;86000850825;Comune di Bolognetta (PA);"Lavori di recupero funzionale di parte del piano terra e del 1 piano di Palazzo Monachelli, da destinare a centro di formazione e inclusione socio lavorativa per giovani a rischio devianza e/o sottoposti a procedimenti penali, detto ""Museo del gusto""";Il progetto prevede la realizzazione di un Museo del gusto destinato, attraverso percorsi di formazione, all'inclusione socio - lavorativa di giovani a rischio devianza e/o sottoposti a procedimenti penali presi in carico dall'Ufficio di Servizio Sociale per Minorenni (USSM) e dall'Ufficio per l'Esecuzione Penale Estrema (UEPE);14/05/2019;14/05/2021;? 1.499.522,69;75%;90030;ITALIA;055;14/11/2022
3;3.1.1;SIC;FESR;983;D85J18000740006;?00601920820;Comune di Partinico (PA);QuaLiFiCo;Il progetto prevede la realizzazione di ambienti di apprendimento altamente motivanti e creativi, destinati ai pre adolescenti e adolescenti a rischio dispersione e insuccesso scolastico.;14/05/2019;14/05/2021;? 910.376,52;75%;90047;ITALIA;055;14/11/2022
3;3.1.1;SIC;FESR;984;H34J18000180001;00146380878;Comune di Aci Catena (CT);Lavori di manutenzione per la rifunzionalizzazione dei beni confiscati alla criminalit� organizzata in Via Mazzaglia n.2;Scopo dell'intervento � di fornire ai giovani un'opportunit� contro la devianza minorile e il coinvolgimento nelle organizzazioni criminali presenti nell'area catanese, fornendo spazi in cui i giovani possano trovare accoglienza, modalit� educative e modelli di comportamento sani.;14/05/2019;14/05/2021;? 230.000,00;75%;95022;ITALIA;055;14/11/2022
3;3.1.1;SIC;FESR;985;B25C18000020006;?82000230878;Comune di Caltagirone (CT);Testimoni di terre liberate - Recupero e rifunzionalizzazione della Masseria Bongiovanni;L'intervento prevede la realizzazione di un centro servizi per minori in situazione di disagio e potenzialmente devianti al fine di sostenerne il processo di inclusione nella comunit�.;14/05/2019;14/05/2021;? 1.337.565,00;75%;95041;ITALIA;055;14/11/2022
3;3.1.1;SIC;FESR;986;B39E18000430001;80001010893;Comune di Siracusa;Le Tele di Aracne;Il progetto prevede la realizzazione di un Centro per giovani ad alto rischio di marginalizzazione e di devianza.  Il Centro conterr� un'accademia sartoriale attrezzata con 10 postazioni di lavoro, un'area espositiva, un ufficio per colloqui individuali con pedagogisti e personale specializzato.;14/05/2019;14/05/2021;? 836.561,80;75%;96100;ITALIA;055;14/11/2022
3;3.1.1;SIC;FESR;987;D65B18007470001;00137020871;Comune di Catania;D.I.GNIT�;Il progetto prevede il recupero di un bene confiscato da destinare all'accoglienza di soggetti vulnerabili a rischio devianza o in stato di grave emarginazione (Centro Servizi Giovani a rischio devianza). ;14/05/2019;14/05/2021;? 1.500.000,00;75%;95124;ITALIA;055;14/11/2022
3;3.1.1;SIC;FESR;988;G36D18000150006;00518510821;Comune di Borgetto (PA) ;"Progetto di riqualificazione e di riconversione del bene confiscato alla criminalit� organizzata sito in via Montegrappa, n. 20 angolo via C. Colombo, da destinare a ""Centro per donne vittime di violenza""";"Il progetto prevede la rifunzionalizzazione di un bene confiscato alla mafia, costituito da tre elevazioni fuori terra ed ubicato in una zona centrale, facilmente accessibile, dotata dei principali servizi, nonch� vicina a un campo di calcio, a campetti di tennis e bocce e a una scuola materna. Il piano primo sar� destinato alla zona giorno e comprender� un salone-refettorio, una zona servizi con cucina, una lavanderia, uno spogliatoio per il personale e un ufficio; il secondo piano sar� interessato dalle camere da letto dimensionate seondo il d.p.r.s. 31/3/2015. Al piano terra sar� realizzata una ludoteca, con spazi ricreativi e un ufficio con annessa sala riunioni. I lavori comprenderanno la realizzazione di un ascensore e di un corpo scala per rendere autonoma e indipendente la porzione dell'edificio destinata al progetto, visto che quella esistente � in comune con un altro proprietario. I lavori di ristrutturazione consistono in una diversa distribuzione dei locali, nel rifacimento degli impianti tecnologici ed in opere di efficientamento energetico dell'edificio.";14/05/2019;14/01/2021;? 1.042.080,79;75%;90042;ITALIA;055;14/11/2022
3;3.1.1;SIC;FESR;989;D79E19000100006;80016350821;Comune di Palermo;Centro formativo accoglienza e aggregazione per soggetti a rischio devianza;Il progetto intende realizzare un Centro di formazione e accoglienza temporanea per giovani adulti in uscita dai circuiti penali e/o in misura alternativa alla detenzione o messa alla prova che potranno fruire di una gamma di servizi diversificati in termini di orientamento e accompagnamento al lavoro grazie all?attivazione di una rete integrata territoriale.;14/05/2019;14/05/2021;? 985.416,26;75%;90133;ITALIA;055;14/11/2022
3;3.1.1;SIC;FESR;990;I75B18000650001;80002630814;Comune di Alcamo (TP);Riscattiamoci;Il progetto prevede la manutenzione straordinaria e la riqualificazione energetica di un immobile confiscato alla mafia per la realizzazione di un centro residenziale e diurno per i giovani a rischio devianza.;14/05/2019;14/06/2020;? 800.000,00;75%;91011;ITALIA;055;14/11/2022
3;3.1.1;SIC;FESR;992;H52H18000260001;85000650821;Comune di Vicari (PA);"Progetto di ristrutturazione/adeguamento per il recupero e rifunzionalizzazione dell'immobile confiscato alla mafia ""Fondo ex Dolce""";Il progetto prevede la riconversione di beni confiscati per l'erogazione di servizi (laboratori scolastici: ceramica ed educazione musicale) atti a prevenire la marginalizzazione sociale e la formazione di fenomeni criminali.;14/05/2019;14/05/2021;? 1.080.500,00;75%;90020;ITALIA;055;14/11/2022
3;3.1.1;SIC;FESR;993;C87B18000190007;80028020826;Comune di San Cipirello (PA);Iside;Il progetto prevede la realizzazione di un centro per sostenere le donne vittime di violenza nella ricostruzione del un proprio percorso di vita.;14/05/2019;14/05/2021;? 1.152.000,00;75%;90040;ITALIA;055;14/11/2022
3;3.1.1;SIC;FESR;994;D22H18000240006;?00147540827;Comune di Carini (PA);"Intervento di recupero e rifunzionalizzazione di un bene confiscato alla criminalit� organizzata, sito in viale Europa, da destinare a Centro per donne vittime di violenza denominato ""La finestra della legalit�""";La finestra della legalit� � un intervento di rifunzionalizzazione di un immobile da adibire a Centro per donne vittime di violenza,  con la creazione di laboratori didattici sartoriali funzionali a rafforzare il processo di autodeterminazione delle donne.;14/05/2019;14/05/2021;? 1.490.000,00;75%;90044;ITALIA;055;14/11/2022
3;3.1.1;SIC;FESR;995;J85I18000370001;00233230846;Comune di Menfi (AG);Giglio di mare;Il progetto prevede la rifunzionalizzazione di un immobile per l?accoglienza di quattro giovani maggiorenni in uscita dai circuiti penali.;14/05/2019;14/05/2021;? 70.896,38;75%;92013;ITALIA;055;14/11/2022
3;3.1.1;SIC;FESR;996;D56B18000290002;82000830883;Comune di Vittoria (RG);Ri.prov;Il progetto prevede la rifunzionalizzazione di due immobili di cui uno con terreno agricolo circostante per lo svolgimento di attivit� di agricoltura sociale per giovani in uscita dai circuiti penali e ulteriori fasce marginalizzate della popolazione. (Centro servizi giovani a rischio devianza);14/05/2019;14/05/2021;? 1.374.945,03;75%;97019;ITALIA;055;14/11/2022
3;3.1.1;SIC;FESR;997;I12H18000410001;00145100830;Comune di Roccalumera (ME);LEG@L-LAB;Il progetto prevede la realizzazione di un laboratorio sociale finalizzato a diffondere la cultura della legalit� contro il bullismo e favorire percorsi di reinserimento di giovani svantaggiati (Centro servizi giovani a rischio devianza).;14/05/2019;14/05/2021;? 170.000,00;75%;98027;ITALIA;055;14/11/2022
3;3.1.1;SIC;FESR;998;C16B18001820006;00356650838;Comune di Capo d'Orlando (ME);Rifunzionalizzazione dell'immobile di Via Consolare Antica da adibire a un centro per donne vittime di violenza;Il progetto prevede la realizzazione di un Centro per il reinserimento sociale e lavorativo delle donne vittime di violenza e dei loro figli.;14/05/2019;14/05/2021;? 1.284.000,00;75%;98071;ITALIA;055;14/11/2022
3;3.1.1;SIC;FESR;999;H25J18000190006;?00162000871;Comune di Aci Castello (CT);Progetto di recupero e rifunzionalizzazione di un immobile confiscato alla mafia, sito in Aci Castello Via Empedocle 15 da destinare a Struttura e Centro servizi per soggetti vulnerabili a rischio devianza ;Il progetto prevede la realizzazione di un Centro di servizio per soggetti vulnerabili a rischio devianza finalizzata a favorirne il recupero e l'inserimento socio lavorativo.;14/05/2019;14/05/2021;? 770.592,00;75%;95021;ITALIA;055;14/11/2022
7;7.1.1;ABR;FESR;1004;I39H19000230005;83000690699;Comune di Vasto (CH);"Riqualificazione del campo di calcio comunale ""Ezio Pepe""";Il progetto intende realizzare uno spazio aggregativo, che attraverso la pratica sportiva, favorisca l'integrazione dei migranti.;30/07/2019;30/07/2021;? 500.000,00;50%;66054;ITALIA;055;14/11/2022
7;7.1.1;MOL;FESR;1005;B95C18000010001;80000990947;Comune di Castel del Giudice (IS);Interventi di recupero e rifunzionalizzazione dell'immobile Frezza, volti alla realizzazione di un centro polifunzionale di aggregazione sociale e culturale anche per migranti presenti nella comunit� locale;Il progetto intende realizzare uno spazio polifunzionale da destinare ai migranti per lo svolgimento di attivit� ricreative, formative e culturali anche attraverso l'approntamento di una biblioteca altamente innovativa e di una ludoteca per bambini. ;30/07/2019;30/07/2021;? 388.386,08;50%;86080;ITALIA;055;14/11/2022
7;7.1.1;MOL;FESR;1006;G49H18000540001;80002130708;Comune di Gambatesa (CB);Ristrutturazione e adeguamento del campo sportivo polivalente e riqualificazione delle aree circostanti;Il progetto intende ristrutturare e riqualificare un centro sportivo e di aggregazione, al fine di migliorare l'integrazione e favorire le occasioni di incontro tra migranti e comunit� locale, anche grazie all'organizzazione di attivit� sportive e culturali.;30/07/2019;30/07/2021;? 400.000,00;50%;86013;ITALIA;055;14/11/2022
7;7.1.1;MOL;FESR;1007;C23H19000320001;00225310705;Comune di Tavenna (CB);Miglioramento dell'accoglienza e dell'integrazione/inclusione dei migranti attraverso la realizzazione del centro sportivo e polifunzionale ;Il progetto intende ristrutturare un immobile pubblico da destinare a centro sportivo e polifunzionale per favorire la socializzazione e l'integrazione tra popolazione locale e migranti, attraverso scambi culturali volti a far conoscere le diverse tradizioni.;30/07/2019;30/07/2021;? 500.000,00;50%;86030;ITALIA;055;14/11/2022
7;7.1.1;ABR;FESR;1009;C12E18000370001;00239980691;Comune di Guardiagrele (CH);WOW Windows on the word (recupero, adeguamento e rifunzionalizzazione dell'ex mercato coperto);Il progetto � volto alla realizzazione di un centro polifunzionale di innovazione per l'integrazione sociale di migranti e comunit� locale, nel quale saranno realizzati spazi di coworking e aule per la formazione. ;30/07/2019;30/07/2021;? 500.000,00;50%;66016;ITALIA;055;14/11/2022
7;7.1.1;ABR;FESR;1011;G99E19000500001;00176150670;Comune di Roseto degli Abruzzi (TE);Lavori di manutenzione straordinaria della sede SPRAR di Roseto degli Abruzzi;Il progetto intende migliorare, da un punto di vista strutturale, edilizio e di dotazioni, lo stabile di via Silvio Pellico, in modo da creare nuovi spazi di integrazione tra migranti e popolazione locale. All'interno dello stabile verranno realizzate aule multimediali, fornite di apparecchiature informatiche, all'interno delle quali erogare corsi di alfabetizzazione ed allestito uno sportello informativo.;30/07/2019;30/07/2021;? 300.000,00;50%;64026;ITALIA;055;14/11/2022
7;7.1.1;ABR;FESR;1012;H53H19000300001;83000350690;Comune di Lentella (CH);Arti e mestieri per l'integrazione ;Il progetto intende recuperare una struttura comunale con l'obiettivo di trasformare la stessa in uno spazio per l'inclusione sociale dei migranti, dove erogare corsi di approfondimento su arti e mestieri locali, come sartoria, falegnameria e lavorazioni del vetro e metalli. Il progetto intende favorire l'attivit� formativa e l'integrazione sociale con la popolazione locale, grazie anche al coinvolgimento delle Associazioni territoriali.;30/07/2019;30/07/2021;? 500.000,00;50%;66050;ITALIA;055;14/11/2022
7;7.1.1;MOL;FESR;1013;G85D19000130001;00053710943;Comune di Sant'Agapito (IS);Adeguamento, miglioramento e messa in sicurezza del campo da calcio in Sant'Agapito;Il progetto intende ristrutturare il campo da calcio comunale con l'obiettivo di creare un punto di incontro per l'inclusione sociale dei migranti.;30/07/2019;30/07/2021;? 500.000,00;50%;86070;ITALIA;055;14/11/2022
3;3.1.1;CAL;FESR;1014;I24I18000050001;00297210791;Comune di Crucoli (KR);Adeguamento strutturale e funzionale di un immobile confiscato per la realizzazione di un centro per donne vittime di violenza;Il progetto intende realizzare una struttura per erogare servizi di assistenza, supporto e ospitalit� alle donne vittime di violenza, abusi fisici e psicologici. Tale struttura si presenter� come un Centro servizi e un Centro residenziale per la prima accoglienza.;03/06/2019;03/12/2020;? 550.000,00;75%;88812;ITALIA;055;14/11/2022
3;3.1.1;CAL;FESR;1015;J75B18001320001;00238090799;Comune di Conflenti (CZ);Una fattoria sociale;Il progetto prevede l'attivazione di percorsi di inclusione sociale per soggetti in difficolt�;03/06/2019;03/06/2021;? 686.531,44;75%;88040;ITALIA;055;14/11/2022
3;3.1.1;CAL;FESR;1017;J46D18000130001;81004130795;Comune di Isola di Capo Rizzuto (KR);Dalla buona terra alla buona tavola - laboratorio di cucina sociale;Il progetto prevede la realizzazione di un Centro di degustazione e Laboratorio di cucina sociale a ?km 0? , fornendo cos� la possibilit�, agli studenti degli Istituti Alberghiero ed Agrario locali, di usufruire dell'area per la realizzazione di progetti di sperimentazione di filiera: dalla produzione sui terreni alla lavorazione e somministrazione.  ;03/06/2019;03/06/2021;? 570.000,00;75%;88841;ITALIA;055;14/11/2022
3;3.1.1;CAL;FESR;1018;G16D19000020006;80002470807;Comune di Bagnara Calabra (RC);"Centro per donne vittime di violenza ""Astrea""";Il progetto prevede la riqualificazione di un bene da adibire a casa rifugio e d'accoglienza per donne vittime di violenza e di eventuali figli minorenni. ;03/06/2019;03/06/2021;? 990.000,00;75%;89011;ITALIA;055;14/11/2022
3;3.1.1;CAL;FESR;1019;D76B18000080006;00337960793;Comune di San Calogero (VV);Spazio generazione: centro di incontro e sperimentazione giovanile;Il progetto consiste nella realizzazione di un centro multidisciplinare di sperimentazione generazionale di incontro anziani-giovani, a servizio degli Istituti scolastici, per la realizzazione di laboratori tematici.;03/06/2019;03/06/2021;? 1.000.000,00;75%;89842;ITALIA;055;14/11/2022
3;3.1.1;CAL;FESR;1020;D95J18000920001;81002790806;Comune di Plat� (RC);Laboratori didattici ad inclusione sociale;Il progetto prevede la realizzazione di laboratori didattici mediante il recupero e il riuso di un immobile gi� allo stato rustico e di una porzione dell?area antistante.;03/06/2019;03/06/2021;? 1.000.000,00;75%;89039;ITALIA;055;14/11/2022
3;3.1.1;CAL;FESR;1021;E45J19000050006;00302030796;Comune di Vibo Valentia;Insieme si pu�...;"Il progetto prevede la ristrutturazione di due immobili confiscati alla criminalit� organizzata da destinare a centro per donne vittime di violenza: a) ascolto e supporto; b) accoglienza e ospitalit�";03/06/2019;03/06/2021;? 440.840,00;75%;89900;ITALIA;055;14/11/2022
3;3.1.1;CAL;FESR;1022;C69G18000280007;81000710806;Comune di Bovalino (RC);La casa della legalit�;Il progetto prevede la rifunzionalizzazione di un immobile confiscato per le esigenze di inclusione di giovani a rischio devianza, attraverso la fruizione di laboratori didattici (teatro, cucina, fotografia, giardinaggio).;03/06/2019;03/06/2021;? 985.000,00;75%;89034;ITALIA;055;14/11/2022
3;3.1.1;CAL;FESR;1023;D69G19000230006;00129520797;Comune di Catanzaro;Catanzaro inclusiva: progetto Ginestra;Il progetto prevede il recupero di due beni confiscati per percorsi di inclusione socio-lavorativa (in particolare in agricoltura) di giovani in uscita dai circuiti penali.;03/06/2019;03/04/2021;? 599.773,60;75%;88100;ITALIA;055;14/11/2022
3;3.1.1;CAL;FESR;1024;J49E19000360001;81000830802;Comune di Africo (RC);Centro per l'accoglienza e l'integrazione giovanile e dei soggetti appartenenti alle fasce deboli;Il progetto prevede il recupero e l?adeguamento impiantistico di un bene confiscato da destinare a centro di accoglienza per fasce deboli e persone in condizione di svantaggio sociale, principalmente giovani.;03/06/2019;03/06/2021;? 285.305,79;75%;89030;ITALIA;055;14/11/2022
3;3.1.1;CAL;FESR;1025;J26B19000270001;82001070802;Comune di Sinopoli (RC);Recupero e rifunzionalizzazione di immobili confiscati alla criminalit� organizzata da adibire a centro per l'inclusione dei giovani e delle fasce deboli presenti nella comunit� sinopolese;Il progetto prevede la realizzazione di una struttura pubblica che funga da accoglienza per le fasce deboli e le persone in condizione di svantaggio sociale, principalmente giovani da formare sui principi di legalit�, cultura e solidariet� sociale.;03/06/2019;03/06/2021;? 62.500,00;75%;89020;ITALIA;055;14/11/2022
3;3.1.1;PUG;FESR;1032;I23G09000070001;80011020759;Comune di Cavallino (LE);Centro per attivit� di volontariato a favore di categorie disagiate;Il progetto prevede la realizzazione di un centro polifunzionale a scopo sociale che si integrer� con idee imprenditoriali afferenti alle antiche tradizioni artistiche del territorio salentino, all'agricoltura e alle nuove tecnologie per il re-inserimento sociale e lavorativo di giovani e minori a rischio. ;10/07/2019;31/05/2021;? 1.000.000,00;75%;73020;ITALIA;055;14/11/2022
3;3.1.1;PUG;FESR;1033;J35C18000080007;00362170714;Comune di Cerignola (FG);Un'altra vita;Il progetto � stato diretto alla rifunzionalizzazione di due immobili da adibire a centro di ascolto per donne vittime di violenza e a casa rifugio per l'accoglienza per donne sole o nuclei madre con figli minori. CONCLUSO ;10/07/2019;31/05/2021;? 335.687,36;75%;71042;ITALIA;055;14/11/2022
3;3.1.1;PUG;FESR;1034;C25C18000170007;091001750743;Comune di Cellino San Marco (BR);Prima casa delle donne;Il progetto prevede la ristrutturazione di un ex opificio industriale per ospitare prevalentemente detenute ed ex detenute da impiegare nel settore tessile;10/07/2019;31/12/2020;? 1.000.000,00;75%;72020;ITALIA;055;14/11/2022
3;3.1.1;PUG;FESR;1035;F12G18000150001;0878940725;Comune di Cassano delle Murge (BA);Ricreo;Il progetto prevede la creazione di una struttura laboratoriale multidisciplinare aperta per la definizione e l'attuazione di percorsi formativi supplementari e di ausilio alle istituzioni scolastiche;10/07/2019;31/12/2020;? 428.195,63;75%;70020;ITALIA;055;14/11/2022
3;3.1.1;PUG;FESR;1036;D55B19000540006;00382650729;Comune di Bitonto (BA);Bitonto on the road Casa Alma Sole;Il progetto prevede la realizzazione di un B&B sociale con annesso Centro di supporto a fasce deboli della popolazione, attraverso un percorso volto alla creazione di una iniziativa sociale che impiegher� come lavoratori soggetti vulnerabili ;10/07/2019;30/07/2021;? 587.234,50;75%;70032;ITALIA;055;14/11/2022
3;3.1.1;PUG;FESR;1038;J89G18000660001;00081030744;Comune di Mesagne (BR);Porte Aperte;Il progetto prevede il recupero di due immobili confiscati per la realizzazione di un Centro Antiviolenza (Porte Aperte) in favore di donne vittime di violenza e di eventuali figli minori.;10/07/2019;30/07/2021;? 198.500,00;75%;72023;ITALIA;055;14/11/2022
3;3.1.1;PUG;FESR;1039;C59G18000170001;00306180720;Comune di Molfetta (BA);Sui passi della legalit�;Il progetto prevede il recupero di un immobile da adibire a Centro Servizi per soggetti vulnerabili a rischio devianza e per le fasce deboli della popolazione;10/07/2019;30/07/2021;? 269.759,99;75%;70056;ITALIA;055;14/11/2022
3;3.1.1;PUG;FESR;1040;F51E18000100001;81001530757;Comune di Parabita (LE);Intervento di recupero funzionale di Parco Angelica. Allevare lavoro, coltivare legalit�;Il progetto prevede la realizzazione di un Centro di Formazione professionale aperto ai giovani dai 16 ai 29 anni incappati nel circuito penale e seguiti dall'Ufficio Distrettuale Esecuzione Penale Estrema (UDEPE) e dall'Ufficio Servizi Sociali per Minorenni (USMM) ;10/07/2019;30/07/2021;? 947.374,84;75%;73052;ITALIA;055;14/11/2022
3;3.1.1;PUG;FESR;1041;J89G18000650001;80000250748;Comune di Brindisi;Prima la casa. Rete cittadina di case per i senza fissa dimora;Il progetto prevede il recupero di appartamenti confiscati da adibire all'erogazione di servizi a favore delle fasce vulnerabili della popolazione.;10/07/2019;30/07/2021;? 393.854,35;75%;72100;ITALIA;055;14/11/2022
3;3.1.1;PUG;FESR;1042;C76D18000160001;83000350724;Comune di Trani;Cantieri di libert�;Il progetto prevede la ristrutturazione del bene confiscato da adibire a cantiere navale e a Centro polifunzionale per la formazione professionale a favore di giovani a rischio devianza.;10/07/2019;30/07/2021;? 998.000,00;75%;76125;ITALIA;055;14/11/2022
3;3.1.1;PUG;FESR;1043;C86D19000010001;80008510754;Comune di Lecce;Faro di comunit�;Il progetto prevede la riqualificazione di un fabbricato confiscato, comprensivo della relativa area esterna per lo svolgimento di attivit� sportive da parte di giovani a rischio devianza.;10/07/2019;30/07/2021;? 740.328,69;75%;73100;ITALIA;055;14/11/2022
3;3.1.1;PUG;FESR;1044;F91G18000300001;80012570729;Comune di Casamassima (BA);Recupero funzionale di immobili sottoposti a sequestro per attivit� complementari didattitiche e di recupero delle tradizioni, arte, emozioni e storia;Il progetto prevede la realizzazione di uno spazio comune attrezzato per attivit� complementari didattiche e di recupero di tradizioni, arte ed amozioni, storia per ragazzi a rischio dispersione scolastica o fuori dal circuito scolastico.;10/07/2019;30/07/2021;? 893.877,38;75%;70010;ITALIA;055;14/11/2022
3;3.1.1;PUG;FESR;1045;H56D19000090001;80001910746;Comune di San Pietro Vernotico (BR);Voice;Il progetto prevede la realizzazione di un Centro per donne vittime di violenza. ;10/07/2019;30/07/2021;? 61.045,02;75%;72027;ITALIA;055;14/11/2022
3;3.1.1;PUG;FESR;1046;E96B18000470002;80001550740;Comune di Oria (BR);Centro di aggregazione per la legalit�;Il progetto prevede la realizzazione di un Centro di aggregazione per la legalit� a favore di giovani a rischio devianza, ossia un laboratorio di idee avente quale scopo principale il miglioramento delle condizioni di legalit� e lo sviluppo del territorio. ;10/07/2019;30/07/2021;? 1.000.000,00;75%;72024;ITALIA;055;14/11/2022
3;3.1.1;PUG;FESR;1047;E36D18000180001;81002890747;Comune di San Michele Salentino (BR);San Michelegale;Il progetto prevede la ristrutturazione di beni confiscati per ospitare laboratori musicali, laboratori creativi di prodotti locali e del legno, oltre che nuove opportunit� e un centro di assistenza psicologica, sostegno scolastico e pedagogico per giovani a rischio devianza;10/07/2019;30/07/2021;? 508.879,91;75%;72018;ITALIA;055;14/11/2022
3;3.1.1;PUG;FESR;1048;E71G18000160002;81000350751;Comune di Casarano (LE);Centro di aggregazione per la legalit�;Il progetto prevede la realizzazione di un Centro di aggregazione per la legalit� con un laboratorio di idee per il miglioramento e lo sviluppo del territorio a favore delle fasce pi� deboli della collettivit�;10/07/2019;30/07/2021;? 259.161,00;75%;73042;ITALIA;055;14/11/2022
3;3.1.1;CAL;FESR;1059;G96B13000000005;06340981007;Agenzia del Demanio;Completamento dei lavori di trasformazione di due immobili confiscati alla criminalit� organizzata a Tenenza dei carabinieri di Rosarno (RC);Il progetto prevede il completamento dei lavori di ristrutturazione e adeguamento funzionale di due immobili confiscati alla criminalit� organizzata, da destinare a nuova sede della Tenenza dei carabinieri di Rosarno (CT);02/08/2019;02/02/2020;? 490.000,00;75%;89025;ITALIA;055;14/11/2022
7;7.1.1;ABR;FESR;1010;C66D18000330001;83000010690;Comune di Carunchio (CH);Realizzazione di un centro polifunzionale di aggregazione per l'erogazione dei servizi di integrazione sociale nell'immobile comunale di via provinciale 41;Il progetto intende realizzare uno spazio polifunzionale da destinare ai migranti per lo svolgimento di attivit� ricreative, formative e culturali e per ricevere assistenza medico specialistica.;30/07/2019;30/07/2021;? 500.000,00;50%;66050;ITALIA;055;14/11/2022
7;7.1.1;ABR;FESR;1008;B11F18000170001;00253650691;Comune di Palmoli (CH);Lavori di ristrutturazione, con interventi di efficientamento energetico, abbattimento delle barriere architettoniche, adeguamento igienico - sanitario, con la creazione di ulteriori spazi per il miglioramento dell'accoglienza e integrazione dei migranti ;Il progetto intende ristrutturare uno stabile comunale per incrementare la capacit� di accoglienza e integrazione offerta dallo SPRAR comunale. Il progetto prevede la realizzazione di spazi di aggregazione e integrazione, laboratori, centri culturali nonch� un presidio sanitario fisso e alcune aule per la formazione di adulti e minori.;30/07/2019;30/07/2021;? 500.000,00;50%;66050;ITALIA;055;14/11/2022
4;4.1.2;CAL;FSE;1029;B31E19000040006;80000100802;Citt� Metropolitana di Reggio Calabria;I walk the line;Il progetto, dedicato ai minori tra i 14 e i 25 anni, intende contribuire a incentivare l'inclusione sociale di soggetti a rischio devianza, contrastando i fenomeni di dispersione scolastica, di bullismo e cyberbullismo attraverso un intervento sinergico tra diverse amministrazioni centrali, enti territoriali e realt� associative.;17/10/2019;31/12/2021;? 2.932.200,00;75%;89125;ITALIA;110;14/11/2022
6;6.1;AN;FESR;1051;F89F19000070007;97149560589;Ministero dell'Interno - Dipartimento della Pubblica Sicurezza;Trasferte di lavoro del personale delle strutture dell'Autorit� di Gestione del PON Legalit 2014-2020;Il progetto ha l'obiettivo di supportare l'Autorit� di Gestione del PON Legalit� nello svolgimento di attivit� di presidio dell'attuazione dei progetti finanziati, di promozione del Programma e di divulgazione delle diverse iniziative avviate.;01/03/2019;29/12/2023;? 146.400,00;75%;00000;ITALIA;121;14/11/2022
2;2.1.1;CAM;FESR;1152;D77I19000220006;93109350616;Autorit� di Bacino distrettuale dell'Appennino meridionale;Sistema di protezione e sorveglianza del Bacino di alimentazione del gruppo Sorgivo di Cassano Irpino ;Il progetto prevede la realizzazione di un sistema di raccolta dati mediante strumenti di videosorveglianza e sonde in grado di identificare e prevenire gli autori di fenomeni illegali che possano minacciare il patrimonio idrico del bacino di alimentazione del gruppo sorgivo di Cassano Irpino, destinato all'approvvigionamento idrico di oltre due milioni di persone e vaste aree produttive campane, lucane e pugliesi. Il progetto prevede il coinvolgimento diretto del reparto del Comando Carabinieri tutela per l'ambiente per le conseguenti azioni di repressione di atti illeciti.;09/08/2019;02/11/2021;? 13.945.380,80;75%;81100;ITALIA;048;14/11/2022
2;2.1.1;CAM;FESR;1167;F69J19000440006;95213790637;Polo museale Campania;Safety and security per il Polo museale della Campania;Il progetto mira ad innalzare i livelli di sicurezza e legalit� del Polo museale della Campania, i cui siti insistono su tutta la regione.;13/12/2019;30/06/2021;? 10.263.800,00;75%;80129;ITALIA;048;14/11/2022
7;7.1.1;MOL;FESR;1064;H99H19000290001;80002330704;Comune di Sepino (CB);Realizzazione di una palestra e di un locale di servizio sanitario in strutture preesistenti finalizzate alla creazione di spazi di interazione e inclusione tra comunit� locali e migranti;Il progetto intende realizzare, attraverso la rifunzionalizzazione di strutture preesistenti, spazi di inclusione tra migranti e comunit� locale.;02/12/2019;31/05/2021;? 422.632,93;50%;86017;ITALIA;055;14/11/2022
7;7.1.3;PUG;FESR;1072;D52I19000370001;80021050721;Comando Legione Carabinieri Puglia;Rifunzionalizzazione dell'immobile sede della Compagnia Carabinieri di Turi (BA);Il progetto ha l'obiettivo di riqualificare la sede della stazione dei Carabinieri di Turi, per migliorare la capacit� di reazione del locale presidio territoriale di polizia a fenomeni criminali, quale quello del caporalato, che interessano l'area.;06/09/2019;29/07/2022;? 2.000.000,00;75%;70100;ITALIA;055;14/11/2022
5;5.1.1.A;MS;FSE;1154;F29F19000130006;80007150594;Ministero dell'Interno - Dipartimento per gli Affari Interni e Territoriali ;Rafforzamento del monitoraggio ai fini antimafia nel settore delle infrastrutture e degli insediamenti prioritari M.A.S.I.I.P.;Il progetto intende realizzare attivit� di formazione, diffusione e rafforzamento del monitoraggio ai fini antimafia nel settore delle infrastrutture e degli insediamenti prioritari, al fine di contribuire al contrasto della criminalit� nell'ambito delle grandi opere.;26/11/2019;31/07/2023;? 2.123.379,29;75%;00184;ITALIA;119;14/11/2022
7;7.1.1;PUG;FESR;1096;J39F19000530001;00362170714;Comune di Cerignola (FG);Centro residenziale, di inclusione sociale e di formazione per immigrati;Il progetto prevede la realizzazione di interventi di manutenzione straordinaria di  una struttura pubblica da destinare ad attivit� di inclusione dei migranti.;24/12/2019;30/04/2021;? 500.000,00;75%;71042;ITALIA;055;14/11/2022
7;7.1.1;CAL;FESR;1097;C69H19000950001;82001270808;Comune di Melicucc� (RC);ULISSE;Il progetto prevede la ristrutturazione di un campo da calcetto utile a favorire l'integrazione e la socializzazione tra la popolazione locale e i migranti presenti sul territorio.;24/12/2019;30/11/2021;? 495.000,00;75%;89020;ITALIA;055;14/11/2022
7;7.1.1;PUG;FESR;1098;G66J19000060001;94012430719;Comune di Monte Leone di Puglia (FG);Mens sana in corpore sano;Il progetto prevede interventi di manutenzione straordinaria di alcuni immobili di propriet� comunale per realizzare nuovi luoghi e spazi di integrazione e inclusione per i migranti.;24/12/2019;31/01/2022;? 500.000,00;75%;71020;ITALIA;055;14/11/2022
7;7.1.1;PUG;FESR;1099;J17C19000140007;80035910712;Comune di Candela (FG);Centro di seconda accoglienza diffusa;Il progetto prevede il risanamento di un centro di accoglienza diffusa, al fine di potenziare i servizi  a favore dei migranti.;24/12/2019;29/10/2021;? 497.000,00;75%;71024;ITALIA;055;14/11/2022
7;7.1.1;CAM;FESR;1100;D67F18000390001;01608070643;Comune di Sant'Angelo dei Lombardi (AV);Integrationlab: coltivare la legalit�;Il progetto prevede il recupero di spazi pubblici da destinare ad attivit� formative in campo agricolo a favore dei migranti, con l'obiettivo di favorirne la collocazione lavorativa.;24/12/2019;31/01/2022;? 500.000,00;75%;83054;ITALIA;055;14/11/2022
7;7.1.1;PUG;FESR;1101;J81H19000130001;80000250748;Comune di Brindisi;Oltre il mare noi;Il progetto prevede la ristrutturazione di un immobile di propriet� comunale per realizzare una struttura di seconda accoglienza per i minori stranieri non accompagnati.;24/12/2019;30/04/2021;? 483.561,92;75%;72100;ITALIA;055;14/11/2022
7;7.1.1;CAL;FESR;1102;H35H18000240001;00250760808;Comune di Campo Calabro (RC);"Riqualificazione campo sportivo ""Campo Calabro per l'aggregazione""";Il progetto prevede il completamento di un impianto sportivo comunale utile a favorire l'integrazione dei migranti presenti sul territorio.;24/12/2019;31/08/2021;? 497.089,23;75%;89052;ITALIA;055;14/11/2022
7;7.1.1;BAS;FESR;1104;H95J19000550001;82001390762;Comune di San Severino Lucano (PZ);Miglioramento dell'accoglienza e dell'integrazione/inclusione dei migranti nel Comune di San Severino Lucano;Il progetto prevede il recupero di spazi pubblici da destinare allo sviluppo di attivit� finalizzate a favorire l'integrazione e l'inclusione sociale dei migranti.;24/12/2019;30/06/2021;? 287.983,18;75%;85030;ITALIA;055;14/11/2022
7;7.1.1;PUG;FESR;1105;H75C18000020006;82001370756;Comune di Nard� (LE);Centro polifunzionale per l'erogazione di servizi di integrazione sociale e lavorativa degli immigrati;Il progetto prevede il recupero di un immobile pubblico da destinare a centro polifunzionale e formativo per migranti.;24/12/2019;31/12/2021;? 500.000,00;75%;73048;ITALIA;055;14/11/2022
7;7.1.1;CAM;FESR;1106;D76B18000120001;84000950653;Comune di Santa Marina (SA);Colora la mente;Il progetto prevede il recupero di un immobile pubblico per realizzare un centro polifunzionale per l'integrazione dei migranti.;24/12/2019;30/07/2021;? 500.000,00;75%;84067;ITALIA;055;14/11/2022
7;7.1.1;CAL;FESR;1107;B96D18000120001;81000090787;Comune di Villapiana (CS);Recupero e ampliamento di un edificio pubblico in localit� Lido, da adibire a Centro di aggregazione sociale ;Il progetto prevede la realizzazione di un centro di aggregazione sociale utile a favorire l'integrazione dei migranti nel contesto locale.;24/12/2019;29/10/2021;? 300.000,00;75%;87076;ITALIA;055;14/11/2022
7;7.1.1;CAL;FESR;1108;I99E18000350006;84000230783;Comune di San Giorgio Albanese (CS);Recupero funzionale di immobile di propriet� comunale da adibire a Centro di aggregazione sociale ;Il progetto prevede la realizzazione di un centro polifunzionale utile a favorire ll'integrazione dei migranti nel contesto sociale.;24/12/2019;29/10/2021;? 500.000,00;75%;87070;ITALIA;055;14/11/2022
7;7.1.1;CAL;FESR;1109;F12J19005030001;00256490806;Comune di Calanna (RC);Riqualificazione del Centro sportivo Villamesa di Calanna per l'aggregazione;Il progetto prevede il completamento di un impianto sportivo comunale utile a favorire l'integrazione dei migranti presenti sul territorio.;24/12/2019;29/10/2021;? 500.000,00;75%;89050;ITALIA;055;14/11/2022
7;7.1.1;CAL;FESR;1110;H9G18000190006;81000110783;Comune di Roseto Capo Spulico (CS);Recupero di un edificio pubblico da adibire a Centro polifunzionale per l'erogazione di servizi di integrazione sociale e lavorativa;Il progetto prevede il recupero di un bene pubblico da destinare a laboratori di formazione e qualificazione professionale utili a favorire l'integrazione degli immigrati nella comunit� locale.;24/12/2019;29/10/2021;? 500.000,00;75%;87070;ITALIA;055;14/11/2022
7;7.1.1;CAL;FESR;1111;I85C19000180001;81000170787;Comune di Cerchiara di Calabria (CS);Recupero funzionale di un immobile di propriet� comunale da adibire a Centro di aggregazione sociale  ;Il progetto prevede il recupero di un bene pubblico da destinare a laboratori di formazione e qualificazione professionale utili a favorire l'integrazione degli immigrati nella comunit� locale.;24/12/2019;29/10/2021;? 300.000,00;75%;87070;ITALIA;055;14/11/2022
7;7.1.1;CAL;FESR;1112;I75C19000170001;84000210785;Comune di Vaccarizzo Albanese (CS);Recupero di un edificio pubblico da adibire a Centro polifunzionale per l'erogazione di servizi di integrazione sociale e lavorativa;Il progetto prevede il recupero e la rifunzionalizzazione  di spazi pubblici da destinare a centro di formazione professionale, di integrazione e socializzazione dei migranti.;24/12/2019;29/10/2021;? 500.000,00;75%;87060;ITALIA;055;14/11/2022
7;7.1.1;CAL;FESR;1113;G61E19000020007;00323390799;Comune di Settingiano (CZ) ;Luoghi di incontro -Lavori di ristrutturazione edilizia ad un edificio comunale da destinare a struttura polivalente a servizio del Centro SPRAR del Comune di Settingiano;Il progetto prevede la ristrutturazione di un edificio comunale da destinare a struttura polivalente, funzionale al Centro SPRAR e alla cittadinanza, con l'obiettivo di rafforzare l'integrazione dei migranti nella comunit� locale.;24/12/2019;31/01/2022;? 238.931,62;75%;88040;ITALIA;055;14/11/2022
7;7.1.1;PUG;FESR;1114;I51H19000010001;81002750750;Comune di Andrano (LE);Fucina delle culture;Il progetto prevede l'ampliamento di un'aula sociale per lo svolgimento di lezioni formativo-didattiche, laboratori ludico-espressivi, attivit� teorico-pratiche professionalizzanti, volte a favorire il processo di integrazione dei migranti attraverso la didattica, l'espressione creativa, l'ideazione, lo scambio relazionale e la collaborazione.;24/12/2019;30/07/2021;? 263.960,60;75%;73032;ITALIA;055;14/11/2022
7;7.1.1;PUG;FESR;1115;J99G18000250001;80002200717;Comune di Orsara di Puglia (FG);Miglioramento infrastrutturale dell'immobile di Via Ponte Cap� per il miglioramento dell'accoglienza e integrazione dei migranti;Il progetto prevede la realizzazione di interventi di manutenzione straordinaria di  una struttura pubblica da destinare ad attivit� di inclusione dei migranti.;24/12/2019;29/10/2021;? 500.000,00;75%;71027;ITALIA;055;14/11/2022
7;7.1.1;CAL;FESR;1116;B62I18000390001;80003570795;Comune di Miglierina (CZ);Integra a Miglierina - Borgo Ospitale;Il progetto prevede la riqualificazione generale di una struttura pubblica da destinare a spazio di socializzazione e integrazione dei migranti.;24/12/2019;29/04/2022;? 500.000,00;75%;88040;ITALIA;055;14/11/2022
7;7.1.1;CAL;FESR;1117;E45C18000040001;00355620782;Comune di San Cosmo Albanese (CS);Recupero di un edificio pubblico da adibire a centro polifunzionale per l'erogazione di servizi di integrazione sociale e lavorativa;Il progetto prevede la realizzazione di laboratori di formazione e qualificazione professionale in grado di stimolare l?integrazione e l?inclusione dei migranti nella comunit� locale.;24/12/2019;29/10/2021;? 300.000,00;75%;87060;ITALIA;055;14/11/2022
7;7.1.1;CAL;FESR;1118;E93B19000310006;81001370782;Comune di Plataci (CS);"Realizzazione del percorso trekking e punti ristoro Bosco di propriet� comunale ""La Montagnola"""; Il progetto prevede la realizzazione di una struttura sportiva e ricreativa per favorire l'integrazione dei migranti nella comunit� locale.;24/12/2019;29/10/2021;? 500.000,00;75%;87070;ITALIA;055;14/11/2022
7;7.1.1;CAL;FESR;1119;J23J19000190001;80003150804;Comune di Sant'Alessio in Aspromonte (RC);Sant'Alessio - Integrazione 2.0;Il progetto prevede la realizzazione di un campo sportivo polivalente coperto, utile a favorire occasioni di incontro e positiva socializzazione per i migranti presenti sul territorio.;24/12/2019;31/01/2022;? 500.000,00;75%;89050;ITALIA;055;14/11/2022
7;7.1.1;CAL;FESR;1120;C72G19000820001;80009020803;Comune di Cardeto (RC);Riqualificazione di un immobile pubblico da destinare a Centro di integrazione e aggregazione per immigrati regolari.;Il progetto prevede la riqualificazione di un edificio pubblico per realizzare un centro di aggregazione per la popolazione locale e i migranti.;24/12/2019;29/10/2021;? 500.000,00;75%;89060;ITALIA;055;14/11/2022
7;7.1.1;CAM;FESR;1121;F28G18025250001;84000170658;Comune di Torre Orsaia (SA) ;"""Accoglienza ursetina"" - Miglioramento del sistema di integrazione e aggregazione dei migranti - Riqualificazione struttura sportiva Campo polifunzionale in Via San Lorenzo e rifunzionalizzazione Centro sociale di Via Pagano ";Il progetto prevede il potenziamento di un campetto polifunzionale da destinare a centro di aggregazione intergenerazionale e interculturale, incentivando percorsi di inclusione sociale. Lo spazio prevede una sala per la musica e per l'avvio di una web radio gestita da giovani e cittadini stranieri.;24/12/2019;30/10/2020;? 360.000,00;75%;84077;ITALIA;055;14/11/2022
7;7.1.1;BAS;FESR;1122;B62G18000260001;95000410761;Comune di Palazzo San Gervasio (PZ);"Progetto per la realizzazione di un ""Centro culturale di aggregazione sociale"", sito nel Comune di Palazzo San Gervasio";Il progetto prevede il recupero di un centro culturale da destinare ad attivit� utili a contribuire al processo di integrazione dei migranti presenti sul territorio.;24/12/2019;24/12/2021;? 500.000,00;75%;85026;ITALIA;055;14/11/2022
7;7.1.1;CAL;FESR;1123;C99F19000450001;83001070784;Comune di Acquaformosa (CS);Intervento di ristrutturazione e adeguamento di un plesso di propriet� comunale destinato all'ospitalit� e ai servizi di integrazione e inclusione dei migranti;Il progetto prevede la realizzazione di un centro polivalente, da destinare all'ospitalit� dei minori stranieri non accompagnati, una volta diventati maggiorenni. Lo spazio ospiter� un laboratorio di cioccolateria, che oltre a favorire l'inserimento lavorativo dei giovani migranti, contribuir� a stimolare l?integrazione con la popolazione locale.;24/12/2019;30/07/2021;? 233.156,46;75%;87010;ITALIA;055;14/11/2022
7;7.1.1;CAL;FESR;1124;G66D19000220001;81000930800;Comune di Gioiosa Ionica (RC) ;Officina del riciclo: spazi sociali per l'integrazione e l'inclusione dei migranti;Il progetto prevede la ristrutturazione di una struttura pubblica da destinare a centro  ove valorizzare le competenze e le abilit� dei migranti in laboratori di varia natura: falegnameria, tappezzeria, pittura, riuso e riciclo dei rifiuti.;24/12/2019;29/10/2021;? 500.000,00;75%;89042;ITALIA;055;14/11/2022
7;7.1.1;CAM;FESR;1125;I97H18000900005;82002290656;Comune di Roscigno (SA);Intervento di riqualificazione della casa di riposo per miglioramento accoglienza, ospitalit�, integrazione e assistenza sanitaria;Il progetto prevede la ristrutturazione di un immobile per ospitare i migranti di seconda accoglienza, dotato di un presidio medico, uno spazio di aggregazione, una mediateca, una sala polifunzionale da adibire a cineforum e ad attivit� teatrali e di ludoteca, uno sportello informa - giovani, una sala per convegni.;24/12/2019;30/09/2020;? 498.000,00;75%;84020;ITALIA;055;14/11/2022
7;7.1.1;PUG;FESR;1126;E72H18000350001;80003450717;Comune di Rocchetta Sant'Antonio (FG);Lavori di ristrutturazione dell'immobile ex Macello da destinare a Centro polifunzionale per l'erogazione di servizi per l'integrazione sociale e lavorativa dei migranti con la comunit� locale;Il progetto intende riqualificare e recuperare un'area di propriet� comunale da destinare a Centro polifunzionale per il potenziamento della rete di accoglienza integrata dei migranti accolti nello SPRAR. Nel Centro sar� possibile organizzare attivit� ludiche e ricreative, interventi educativi e  formativi, per stimolare il dialogo e le relazioni tra la comunit� locale e i migranti presenti sul territorio.;24/12/2019;26/02/2021;? 500.000,00;75%;71020;ITALIA;055;14/11/2022
7;7.1.1;SIC;FESR;1127;C29G19000330001;82001570876;Comune di Licodia Eubea (CT);Lavori di recupero e rifunzionalizzazione del 2� piano dell'ex scuola - Carmine -finalizzato a spazi di integrazione e inclusione sociale ;Il progetto prevede interventi di manutenzione straordinaria e riqualificazione del secondo piano di un edificio pubblico da adibire a Centro per l?integrazione e l?inclusione dei migranti presenti sul territorio comunale e sull'intera area del Calatino. Lo spazio potr� ospitare un Centro SPRAR per l'accoglienza dei nuclei familiari e organizzare attivit� utili all?integrazione multiculturale tra autoctoni e migranti.;24/12/2019;31/03/2021;? 500.000,00;75%;95040;ITALIA;055;14/11/2022
7;7.1.1;CAL;FESR;1128;C56D18000210001;?00162630800;Comune di Condofuri (RC);Condofuri ? Formazione = Integrazione;Il progetto prevede la ristrutturazione di un edificio scolastico in disuso da destinare a centro culturale, di aggregazione sociale e spazio per attivit� formative per i migranti di seconda accoglienza.;24/12/2019;31/01/2022;? 500.000,00;75%;89030;ITALIA;055;14/11/2022
7;7.1.1;SIC;FESR;1129;J99H19000270001;?00094260890;Comune di Canicattini Bagni (SR);Sport � integrazione ;Il progetto intende contribuire alla realizzazione di iniziative per il potenziamento del sistema di accoglienza e integrazione dei migranti, attraverso la valorizzazione, il recupero e l'adeguamento di beni immobili pubblici.;24/12/2019;29/10/2021;? 499.580,50;75%;?96010;ITALIA;055;14/11/2022
7;7.1.1;PUG;FESR;1130;G99G19000250002;00427390752;Comune di Castrignano de' Greci (LE);Tutti gi� per terra - Parco Pozzelle - Recupero e rifunzionalizzazione dell'anfiteatro e del parco Pozzelle con inserimento di attrezzature sportive, ricreative e per il teatro di inclusione ;Il progetto prevede il recupero del Parco Pozzelle e la rifunzionalizzazione dell?anfiteatro per lo svolgimento di attivit� sportive e creative.;24/12/2019;31/01/2022;? 500.000,00;75%;73020;ITALIA;055;14/11/2022
7;7.1.1;PUG;FESR;1131;C46B18000380001;80010610758;Comune di Caprarica di Lecce (LE);Home - Risanamento conservativo e adeguamento normativo di un edificio pubblico in disuso da destinare all'accoglienza integrata di minori stranieri non accompagnati e neo maggiorenni ;Il progetto prevede la realizzazione di una struttura per l'accoglienza dei minori stranieri non accompagnati, in grado di creare percorsi sociali e culturali e prevenire possibili inserimenti in contesti vicini alla criminalit�. ;24/12/2019;30/04/2021;? 500.000,00;75%;73010;ITALIA;055;14/11/2022
7;7.1.1;CAM;FESR;1132;D27D18000450007;00547700658;Comune di Ottati (SA);"Adeguamento e rifunzionalizzazione struttura comunale a ""Centro polifunzionale"" a servizio degli immigrati per l'integrazione sociale - economica - culturale nella comunit� locale ";Il progetto prevede la realizzazione di un centro polifunzionale ove ospitare attivit� formative per aiutare i migranti ad accedere ai percorsi di inserimento lavorativo, nonch� un presidio di orientamento all'integrazione.;24/12/2019;29/10/2021;? 495.549,29;75%;84020;ITALIA;055;14/11/2022
7;7.1.1;CAM;FESR;1133;D66C19000250001;82001850641;Comune di Bisaccia (AV);Rione Libert�: integrazione e legalit�;Il progetto intende riqualificare e recuperare, da un punto di vista architettonico e strutturale, un'area del centro storico del Comune, per favorire l'integrazione sociale dei migranti presenti sul territorio.;24/12/2019;31/01/2022;? 500.000,00;75%;83044;ITALIA;055;14/11/2022
7;7.1.1;SIC;FESR;1134;B52J19030860006;80000660862;Comune di Regalbuto (EN);Progetto per la ristrutturazione dell'area sportiva sita in c/da Acquamara, quale luogo d'integrazione dei migranti con le comunit� locali;Il progetto prevede la ristrutturazione dell'impianto sportivo comunale per realizzare uno spazio d?integrazione dei migranti con la comunit� locale, migliorare la rete di accoglienza integrata dei minori stranieri e favorirne il processo di integrazione nel tessuto sociale ed economico.;24/12/2019;29/01/2021;? 500.000,00;75%;94017;ITALIA;055;14/11/2022
7;7.1.1;CAM;FESR;1135;F39G19000660001;82000590644;Comune di Sant?Andrea di Conza (AV);Play - Inclusion: giochiamo alla legalit�;Il progetto prevede la realizzazione di uno spazio all'aperto per favorire l?integrazione e l?inclusione sociale dei migranti presenti sul territorio attraverso attivit� socio-culturali e ricreative, in modo da contrastare situazioni di isolamento, degrado e comportamenti a rischio devianza.;24/12/2019;31/01/2022;? 499.691,35;75%;83053;ITALIA;055;14/11/2022
7;7.1.1;PUG;FESR;1136;J52G19000020001;83000750758;Comune di San Cassiano (LE);Il giardino planetario ;Il progetto prevede il recupero di un parco pubblico da destinare a luogo utile a favorire l'integrazione dei migranti.;24/12/2019;31/01/2022;? 500.000,00;75%;73020;ITALIA;055;14/11/2022
7;7.1.1;PUG;FESR;1137;F15B19001840009;81000090746;Comune di Ostuni (BR);Ostuni accoglie meglio;Il progetto prevede il miglioramento dei centri per l?accoglienza dei migranti, al fine di migliorare le condizioni di permanenza degli ospiti del progetto SPRAR.;24/12/2019;01/04/2021;? 220.000,00;75%;72017;ITALIA;055;14/11/2022
7;7.1.1;CAM;FESR;1138;C93B18000260001;00634830632;Comune di Procida (NA);Centro polifunzionale Isola di Procida;ll progetto intende rendere fruibile anche durante il periodo invernale una struttura pubblica all'aperto, attraverso una copertura removibile, al fine di rafforzare il sistema di accoglienza e integrazione sociale tra la comunit� locale e i migranti regolari presenti sul territorio.;24/12/2019;30/10/2020;? 499.980,00;75%;80079;ITALIA;055;14/11/2022
7;7.1.1;CAM;FESR;1139;F56D19000070007;00307600635;Comune di Pomigliano D'Arco (NA);Centro integrazione socio - culturale Palazzo Pranzataro;Il progetto prevede la ristrutturazione di un immobile comunale da destinare a centro di integrazione socio - culturale, per rafforzare le relazioni tra la comunit� locale e i migranti regolari presenti sul territorio.;24/12/2019;29/01/2021;? 498.076,18;75%;80038;ITALIA;055;14/11/2022
7;7.1.1;CAL;FESR;1140;C79G19000350001;00374200780;Comune di Figline Vegliaturo (CS);Lavori di recupero di un fabbricato di propriet� del Comune di Figline Vegliaturo, da destinare a Centro di aggregazione sociale per l'integrazione degli immigrati regolari ;Il progetto prevede la ristrutturazione di un immobile pubblico da destinare a luogo di integrazione tra comunit� locale e migranti presenti sul territorio.;24/12/2019;29/04/2022;? 182.941,55;75%;87050;ITALIA;055;14/11/2022
7;7.1.1;CAL;FESR;1141;G59G19000290001;00378820781;Comune di Trebisacce (CS);Ristrutturazione e adeguamento di un immobile da destinare a centro di aggregazione sociale e culturale per l'integrazione/inclusione dei migranti ;ll progetto prevede il recupero di un bene pubblico ove ospitare percorsi di specializzazione e di inclusione sociale, di promozione di offerte formative rivolti ai migranti per sviluppare un'azione di valorizzazione e integrazione dei giovani immigrati attraverso l'incontro tra pari e l'incontro intergenerazionale ed interculturale.;24/12/2019;29/01/2021;? 443.027,00;75%;87075;ITALIA;055;14/11/2022
7;7.1.1;CAL;FESR;1142;D49E18003100001;"00250850781	";Comune di Domanico (CS) ;"Lavori di ristrutturazione e adeguamento dei locali di Palazzo Stancati, dell'area esterna e del fabbricato denominato ""La Filanda?, di propriet� del Comune di Domanico.";Il progetto prevede la ristrutturazione di un immobile pubblico per realizzare spazi di integrazione e inclusione dei migranti, come ad esempio centri culturali, centri di aggregazione sociale, spazi per attivit� formative, strutture sportive, centri polifunzionali per l?erogazione di servizi di integrazione sociale e lavorativa.;24/12/2019;29/04/2022;? 500.000,00;75%;87030;ITALIA;055;14/11/2022
7;7.1.1;CAM;FESR;1143;G55I18000120001;"00231130642	";Comune di Sant'Angelo a Scala (AV);Recupero, adeguamento e rifunzionalizzazione dell'immobile comunale di Viale Europa, da destinarsi a struttura per l'accoglienza e integrazione degli immigrati regolari;Il progetto prevede il recupero di un immobile comunale da destinare allo svolgimento di azioni di integrazioni e inclusione sociale dei migranti regolari presenti sul territorio. ;24/12/2019;29/01/2021;? 499.792,68;75%;83010;ITALIA;055;14/11/2022
7;7.1.1;CAM;FESR;1144;C31D18000010001;"80010890640	";Comune di Petruro Irpino (AV);"""Giochi-Amo Opendoor"" - Adeguamento e rifunzionalizzazione del campetto sportivo e spogliatoio, volto all'integrazione/inclusione dei migranti";Il progetto prevede il recupero del campetto sportivo comunale per realizzare luoghi di integrazione dei migranti con la comunit� locale.;24/12/2019;30/04/2021;? 500.000,00;75%;83010;ITALIA;055;14/11/2022
7;7.1.1;CAM;FESR;1145;H99G19000490001;82000470649;Comune di Lacedonia (AV);In ? Community La Comunit� dell'inclusione ;Il progetto prevede la ristrutturazione di una chiesa in disuso con annessa area verde per realizzare un centro per la promozione e realizzazione di attivit� culturali, ricreative e di aggregazione, finalizzate a stimolare l'integrazione dei migranti presenti sul territorio.;24/12/2019;29/01/2021;? 499.604,07;75%;83046;ITALIA;055;14/11/2022
7;7.1.1;SIC;FESR;1146;H66B19002780001;00084640838;Comune di Barcellona Pozzo di Gotto (ME);Lavori di manutenzione straordinaria, adeguamento impianti ex scuola materna - Frazione Acquaficara - Via Stretto II Feo - del Comune di Barcellona P.G. da adibire a luogo e spazio di integrazione e inclusione sociale dei migranti con la comunit� locale ;Il progetto prevede la ristrutturazione di una scuola materna, situata in una zona periferica della citt�, per realizzare uno spazio di incontro e aggregazione per i migranti.;24/12/2019;28/02/2022;? 500.000,00;75%;98051;ITALIA;055;14/11/2022
7;7.1.1;CAM;FESR;1147;G79E19001130007;80001750621;Comune di Pietrelcina (BN) ;Potenziamento inclusione SPRAR Pietrelcina;Il progetto prevede la realizzazione di spazi di integrazione e inclusione sociale per i migranti ospiti dello SPRAR.;24/12/2019;31/07/2020;? 313.807,08;75%;82020;ITALIA;055;14/11/2022
7;7.1.1;BAS;FESR;1149;J79G19000450001;85000910761;Comune di San Fele (PZ);Recupero e adeguamento del Centro sociale da destinare a struttura per l'accoglienza e l'integrazione de immigrati regolari;Il progetto prevede la realizzazione di un centro di formazione per migranti, con l'obiettivo di rafforzarne il processo di integrazione sociale.;24/12/2019;24/12/2021;? 210.000,00;75%;85020;ITALIA;055;14/11/2022
7;7.1.1;CAM;FESR;1151;C72F18000150001;80007110648;Comune di Torrioni (AV);Realizzazione di un Centro polifunzionale per l'erogazione di servizi di integrazione sociale e lavorativa;Il progetto prevede la realizzazione di un Centro polifunzionale per l?erogazione di servizi di integrazione sociale e lavorativa per i migranti, dotato di tecnologie moderne e in grado di attirare i giovani con nuovi stimoli e pi� ampie prospettive di vita e di integrazione sociale.;24/12/2019;31/01/2022;? 500.000,00;75%;83010;ITALIA;055;14/11/2022
4;4.1.2;PUG;FSE;1069;B39D19000060006;80017210727;Regione Puglia  ;Progetto integrazione / formazione musicale;Il progetto prevede la creazione di laboratori di musica d'insieme, orchestre e cori al fine di promuovere l'inclusione di minori e giovani in situazioni di disagio, recuperare le loro competenze, sviluppare nuove attitudini e abilit� e favorire la loro capacit� di socializzazione.;17/01/2020;17/07/2022;? 548.800,00;75%;70121;ITALIA;110;14/11/2022
2;2.1.1;CAM;FESR;1165;F24I19000560006;80051580639;Reggia di Caserta;Safety and security per il Parco e la Reggia di Caserta;Il progetto intende innalzare i livelli di sicurezza e legalit� del Museo autonomo della Reggia di Caserta, attraverso diversi strumenti di videosorveglianza integrati da una piattaforma ITC.;05/11/2019;30/05/2021;? 7.885.240,00;75%;81020;ITALIA;048;14/11/2022
1;1.1.1.B;AN;FESR;1181;F51D20000000007;80009650872;Commissario straordinario del Governo per il coordinamento delle iniziative antiracket e antiusura;STEP Sviluppo tecnologico per l'accesso al fondo di solidariet� e potenziamento dell'azione del Commissario antiracket e antiusura;Il progetto intende realizzare una piattaforma gestionale e informativa per l?ottimizzazione delle procedure e dei tempi di lavorazione delle istanze di accesso al Fondo di rotazione per la Solidariet� alle vittime dei reati di tipo mafioso, delle richieste estorsive e dell?usura, al fine di velocizzare le valutazioni e l'inserimento delle vittime di racket e usura nell?attivit� economica e nell?economia legale.;31/01/2020;31/12/2022;? 6.328.140,00;75%;00000;ITALIA;078;14/11/2022
7;7.1.1;SIC;FESR;1087;D65C19000070006;00137020871;Comune di Catania;The other welcome (L'altro Benvenuto);Il progetto intende recuperare un immobile pubblico per realizzarvi un centro per l'accoglienza e l'integrazione dei migranti regolari: giovani, adulti, nuclei familiari e donne vittime di tratta.;29/01/2020;30/04/2021;? 3.400.000,00;75%;95121 - 95131;ITALIA;055;14/11/2022
7;7.1.1;PUG;FESR;1086;J81H20000020001;?80000250748;Comune di Brindisi;Casa delle culture - Centro polifunzionale per l'integrazione e l'inclusione sociale dei migranti.;Il progetto intende recuperare un bene confiscato alla criminalit� organizzata per realizzarvi un centro polifunzionale in cui svolgere attivit� finalizzate all'integrazione e inclusione dei migranti.;29/01/2020;30/09/2021;? 1.600.000,00;75%;72100;ITALIA;055;14/11/2022
7;7.1.1;CAL;FESR;1088;G39G19000570001;03557570789;Comune di Corigliano Rossano;Recupero adeguamento e allestimento secondo piano di edificio Taverna da destinare ad inclusione sociale e miglioramento condizioni di sicurezza e legalit�.; Il progetto intende recuperare un immobile pubblico per disporre di spazi di formazione e socializzazione per i migranti.;29/01/2020;29/04/2022;? 1.800.000,00;75%;87064;ITALIA;055;14/11/2022
7;7.1.1;SIC;FESR;1091;C15C20000010001;00170330880;Comune di Pozzallo ;IRIS - InteRventi Inclusione Sociale.;Il progetto intende riqualificare parte di un complesso immobiliare ove realizzare un nuovo centro giovanile per migranti regolari, al fine di stimolare l'integrazione sociale e culturale degli stessi. Analogamente, il progetto prevede la riqualificazione dello stadio comunale per favorire inziative sportive, musicali utili a creare i presupposti per una pi� ampia integrazione dei migranti con la popolazione locale.;29/01/2020;28/02/2022;? 2.980.544,27;75%;97016;ITALIA;055;14/11/2022
7;7.1.1;CAL;FESR;1092;H32H19000050006;00136380805;Comune di Reggio Calabria;Recupero e valorizzazione dell'immobile comunale Le Vele da destinarsi alla integrazione dei migranti regolari - localit� Archi, via Lupardini.;Il progetto intende recuperare e valorizzare l'immobile comunale Le Vele per svolgervi attivit� volte a favorire l'integrazione dei migranti regolari.;29/01/2020;31/08/2021;? 2.400.000,00;75%;89121 - 89135;ITALIA;055;14/11/2022
7;7.1.1;SIC;FESR;1093;I98D20000050001;80003210814;Comune di Trapani;Recupero funzionale e riuso di alcuni capannoni dell'ex mattatoio comunale per realizzare laboratori artigianali e spazi formativi per i migranti regolari.;Il progetto intende recuperare e riutilizzare alcuni capannoni dell'ex mattatoio comunale per realizzarvi laboratori artigianali e spazi formativi per i migranti regolari.;29/01/2020;28/02/2022;? 2.400.000,00;75%;91100;ITALIA;055;14/11/2022
7;7.1.1;LIG;FESR;1077;B35B18010650007;80007350103;Citt� Metropolitana di Genova;LEG.GE. LEGALIT� IN CM DI GENOVA;Il progetto intende riqualifare alcuni piani di un edificio storico ubicato a Genova, denominato Massoero, ove creare uno spazio polifunzionale per la socializzazione e l'integrazione dei migranti.;31/01/2020;31/01/2022;? 1.789.170,00;50%;16122�;ITALIA;055;14/11/2022
7;7.1.1;LIG;FESR;1192;H29E18000410007;80007350103;Citt� Metropolitana di Genova;LEG.GE. LEGALIT� IN CM DI GENOVA (Fontanigorda);Il progetto intende dotare la struttura SPRAR, situata nel Comune di Fontanigorda, di un centro ricreativo culturale per i migranti regolari presenti sul territorio.;31/01/2020;07/07/2020;? 63.509,65;50%;16122�;ITALIA;055;14/11/2022
7;7.1.1;LIG;FESR;1193;C99E18000300007;80007350103;Citt� Metropolitana di Genova;LEG.GE. LEGALIT� IN CM DI GENOVA (Lumarzo);Il progetto intende recuperare un immobile comunale, situato a Lumarzo, frazione Lagomarsino, per l?accoglienza e l?integrazione dei migranti. ;31/01/2020;07/08/2021;? 147.320,00;50%;16122�;ITALIA;055;14/11/2022
7;7.1.1;SIC;FESR;1078;D66B19007810001;397470873;Citt� Metropolitana di Catania ;IIS Cannizzaro Catania. Interventi di ristrutturazione e sistemazione dell'area esterna del plesso officine, previa parziale demolizione;Il progetto intende riqualificare un immobile in disuso (ITI S. Cannizzaro) da destinare allo svolgimento di attivit� formative e integrative per i minori stranieri. ;08/01/2020;07/01/2022;? 2.000.000,00;75%;95124�;ITALIA;055;14/11/2022
4;4.1.2;SIC;FSE;1166;B55F20000060007;80002760835;Citt� Metropolitana Messina;Pandora;Il progetto intende realizzare, su tutta l'area metropolitana, interventi di inclusione sociale di minori a rischio devianza, attraverso l?allestimento di laboratori educativi di arti e mestieri (teatro, informatica, arti grafiche...) e attivit� formative. ;24/02/2020;23/02/2023;? 2.976.532,20;75%;98122;ITALIA;110;14/11/2022
4;4.1.2;SIC;FSE;1065;D78I20000170001;80021470820;Citt� Metropolitana Palermo;Argonauti...eroi in viaggio. Percorsi di individuazione di abilit� e costruzione di competenze;Il progetto intende realizzare laboratori socio - educativi volti a fornire ai giovani tra i 18 e i 26 anni gli strumenti per gestire le difficolt� legate al rischio di emarginazione e percorsi formativi per l'autoimprenditorialit� e creazione d'impresa.;19/03/2020;17/03/2023;? 990.020,00;75%;90134�;ITALIA;110;14/11/2022
7;7.1.1;LAZ;FESR;1079;F69E20000080003;80034390585;Citt� Metropolitana di Roma Capitale;Valorizzazione e risanamento infrastrutturale dell'ex colonia montana del Comune di Gerano;Il progetto intende recuperare e mettere a norma gli spazi presenti nell'ex Colonia montana situata nel Comune di Gerano per offrire accoglienza alle numerose famiglie di migranti presenti sul territorio.;08/01/2020;07/01/2022;? 250.000,00;50%;00187�;ITALIA;055;14/11/2022
1;1.1.2.A;MS;FESR;1200;F69E20000080003;97149560589;Ministero dell'Interno - Dipartimento della Pubblica Sicurezza ? Direzione Centrale Anticrimine;Sistemi evoluti per il monitoraggio e l'aggressione dei patrimoni illeciti;Il progetto intende realizzare un sistema informativo di Business Intelligence, Capacity Building e cooperazione interistituzionale per le Divisioni Anticrimine e le Squadre mobili delle Questure di Basilicata, Calabria, Campania, Puglia e Sicilia, per potenziare il sistema di vigilanza e monitoraggio dei casi di illeciti patrimoniali e semplificare le attivit� investigative. ;31/03/2020;30/09/2023;? 14.624.628,00;75%;70121/70132 - 71100/71121/71122 - 73100 - 85100;ITALIA;078;14/11/2022
7;7.1.1;CAL;FESR;1094;E49E20000100006;00302030796;Comune di Vibo Valentia;Recupero e rifunzionalizzazione immobili siti nelle frazioni Vena Media e Vena Inferiore, da destinare a Centro culturale e Centro di aggregazione sociale - Aggreghiamo nelle frazioni ;Il progetto intende recuperare e rifunzionalizzare immobili comunali per attivit� di inclusione sociale, accoglienza e integrazione migranti regolari.;29/01/2020;31/01/2022;? 1.135.000,00;75%;89900;ITALIA;055;14/11/2022
5;5.1.1.A;CAM;FSE;1213; F23I20000010006;90083400631;Parco Archeologico di Pompei;ISIDE - Percorso formativo condiviso e federato per la safety & security dei luoghi della cultura MiBACT della Regione Campania;Il progetto prevede l?erogazione di attivit� formative a favore del personale impegnato nel settore del Safety and Security del Ministero per i beni e le attivit� culturali e per il Turismo in Campania e del personale delle Forze di Polizia impegnato nella tutela del patrimonio culturale campano. L'obiettivo � quello di contribuire alla costruzione e diffusione di una comune cultura della sicurezza e aumentare il livello di tutela complessivo dei principali siti culturali della regione Campania, quali i Parchi archeologici di Ercolano e Pompei, la Reggia di Caserta, il Polo museale di Napoli. La formazione sar� erogata sia in modalit� frontale sia e - learning sia immersiva 3D. ;10/07/2020;30/06/2023;? 8.250.180,00;75%;80045;ITALIA;119;14/11/2022
7;7.1.2;SIC;FESR;1223;H51H20000010001;82000870889;Comune di Comiso (RG);A casa senza caporale;Il progetto intende ristrutturare un immobile al fine di fornire alloggi ai lavoratori stagionali vittime del fenomeno del caporalato. ;30/07/2020;31/12/2021;? 970.000,00;75%;97013;ITALIA;055;14/11/2022
7;7.1.2;SIC;FESR;1225;I71B20000330001;81000670885;Comune di Ispica (RG);L'ultimo gattopardo;Il progetto intende fornire alloggi e ospitalit� ai lavoratori stagionali vittime del fenomeno del caporalato attraverso il recupero di due unit� abitative ove, peraltro, erogare diversi servizi, quali assistenza sociale, legale e sanitaria, corsi settimanali di lingua e cultura italiana nonch� attivit� ludiche per i minori dei nuclei familiari ospitati.;30/07/2020;31/03/2022;? 1.294.926,47;75%;97014;ITALIA;055;14/11/2022
7;7.1.2;SIC;FESR;1224;D36G20000530007;00196160881;Comune di Santa Croce Camerina (RG);Campagna di civilt�. Stop caporalato;Il progetto intende ristrutturare immobili da destinare ad alloggi ed erogare servizi a favore dei lavoratori stagionali, vittime del caporalato: trasporti, corsi di alfabetizzazione della lingua italiana e inziative mirate all'emersione e al sostegno delle vittime di tratta e sfruttamento lavorativo.;30/07/2020;31/12/2021;? 776.700,00;75%;97017;ITALIA;055;14/11/2022
7;7.1.1;CAL;FESR;1089;F14H20000290006;81000250795;Comune di Crotone;Sport senza frontiere;Il progetto intende riqualificare un bene pubblico da destinare ad azioni di inclusione e integrazione migranti. Il Centro di aggregazione, oltre a promuovere la pratica sportiva, ospiter� attivit� sociali e ricreative e funger� da Centro di informazione e orientamento per l'accesso ai servizi.;06/08/2020;30/06/2022;? 1.814.957,45;75%;88900;ITALIA;055;14/11/2022
7;7.1.2;SIC;FESR;1228;F24B19001020006;00180270886;Comune di Ragusa;Ospitalit� e formazione per il contrasto al caporalato. Ristrutturazione dell'ex scuola rurale di Contrada Genisi;Il progetto prevede la ristrutturazione di un immobile di propriet� comunale ubicato in contrada Genisi per la successiva destinazione a struttura di accoglienza per i lavoratori stagionali vittime di caporalato, con una capienza massima di 16 persone.;07/09/2020;31/03/2022;? 587.453,50;75%;97100;ITALIA;055;14/11/2022
7;7.1.1;LOM;FESR;1075;I49F18000680001;8911820960;Citt� Metropolitana di Milano;Ponte Lambro spazio di coesione e accoglienza;Il progetto intende recuperare parte di uno stabile ove realizzare unit� abitative di residenza temporanea per Minori Stranieri Non Accompagnati, nell'ottica di accrescere il numero di posti letto destinati ai migranti regolari sul territorio della Citt� metropolitana.;08/01/2020;07/01/2022;? 2.000.000,00;50%;20122�;ITALIA;055;14/11/2022
4;4.2.1;CAM;FSE;1234;J28I20000150006;06925920636;L'Orsa Maggiore - Cooperativa sociale;"S.T.A.R.T. Campania: ""Sviluppo territoriale di affiancamento, riqualificazione e training agli operatori che gestiscono beni confiscati della Campania""";Il progetto � rivolto a 46 soggetti, operanti sul territorio della regione Campania nell?ambito dell?economia sociale, che gestiscono beni confiscati alla criminalit� organizzata. L?intervento � articolato in azioni specifiche volte a colmare le criticit� rilevate nell?analisi del contesto territoriale e delle aree di intervento, e, quindi, rafforzare l?economia sociale e promuovere l?effettivo riutilizzo dei beni a vantaggio della collettivit�.;23/09/2020;23/03/2022;? 250.000,00;75%;"82010 - 82100
81010 - 81100
80010 - 80081
80121 - 80147
84010 - 84099 - 84121 - 84135";ITALIA;113;14/11/2022;;;;;;
4;4.2.1;CAL;FSE;1236;C34B20000230006;02372250809;Consorzio Macram� - Trame solidali nelle terre del sole;Giano - Conoscere il passato e guardare al futuro. Azioni di accompagnamento ed empowerment a favore di enti gestori di beni confiscati;Il progetto propone lo sviluppo ed il rafforzamento delle capacit� di 30 organizzazioni operanti nella regione Calabria nella gestione dei beni confiscati alla criminalit�, al fine di migliorare la conduzione dei beni affidati (tra cui anche imprese e terreni agricoli) e rafforzare la capacit� di tessere relazioni e co-progettare azioni di sviluppo con le comunit� di appartenenza.;23/09/2020;23/03/2022;? 167.000,00;75%;"87010 - 87100
88811 - 88900
89010 - 89069 - 89121 - 89135
89812 - 89900";ITALIA;113;14/11/2022;;;;;;
7;7.1.2;PUG;FESR;1233;J79J20000210006;00336360714;Comune di San Severo (FG);Il Mosaico di San Severo - Progetto sperimentale per l'inclusione socio - lavorativa: ex macello comunale;Il progetto intende recuperare e riqualificare il manufatto storico Ex Macello per realizzare uno spazio destinato all?ospitalit� e inclusione sociale e lavorativa dei migranti;07/09/2020;07/03/2022;? 4.300.000,00;75%;71016;ITALIA;055;14/11/2022
4;4.2.1;MS;FSE;1237;J93J20000150006 ;03827160619;Nuova Cooperazione Organizzata - Consorzio di Cooperative - Cooperativa Sociale;NCO - Nuove Comunit� Organizzate - Percorsi di sostegno nella rigenerazione dei territori attraverso i beni confiscati alla criminalit�;Il progetto intende rafforzare la valenza imprenditoriale e sociale dei soggetti del Terzo settore che gestiscono ? o si apprestano a gestire ? beni confiscati alla criminalit� organizzata nelle regioni Basilicata, Calabria, Campania e Puglia. Nello specifico, prevede l?erogazione di attivit� formative in materie gestionali e imprenditoriali, l?analisi dei fabbisogni di sviluppo aziendale, la consulenza su progetti di sviluppo singoli e di rete. Il progetto prevede inoltre l?attivazione di pacchetti consulenziali personalizzati nelle aree marketing, comunicazione e vendite, innovazione tecnologica, management, pianificazione e sviluppo, sostenibilit� ambientale, produzione e trasformazione agricola, ristorazione, commercializzazione, turismo e didattica, agricoltura sociale.;23/09/2020;23/03/2022;? 661.369,25;75%;81031;ITALIA;113;14/11/2022
4;4.2.1;CAM;FSE;1238;G42D20000040006 ;03478010618;Apeiron Cooperativa Sociale;Social Hub;Il progetto prevede il rafforzamento delle competenze professionali delle Associazioni/Cooperative della regione Campania impegnate nella gestione di beni confiscati attraverso appositi percorsi di formazione su temi economici, di governance e progettazione partecipata con le comunit�, tramite tecniche di ascolto attivo dei territori, al fine di costruire una rete di imprese sociali con competenze qualificate in grado di rispondere, attraverso un?adeguata analisi della domanda, ai bisogni delle fasce vulnerabili della popolazione e contrastare la criminalit� organizzata.  ;23/09/2020;23/03/2022;? 81.296,04;75%;81052;ITALIA;113;14/11/2022
4;4.2.1;MS;FSE;1235;E26H20000020007;01743960815;CRESM - Centro di Ricerche economiche e sociali per il Meridione Coop. Soc. onlus;ADI - Accompagnamento, Diagnosi, Impresa: per un rafforzamento della gestione dei beni confiscati;Il progetto intende rafforzare le competenze delle Cooperative impegnate nella gestione dei beni confiscati nelle regioni Basilicata, Calabria, Campania, Puglia e Sicilia, attraverso l?attivazione di percorsi formativi in ambito giuridico, gestionale, finanziario e di marketing, nonch� sviluppare buone pratiche nella gestione dei beni confiscati.;23/09/2020;23/03/2022;? 180.092,50;75%;91024;ITALIA;113;14/11/2022
7;7.1.2;SIC;FESR;1286;D58B20000910006;8200083088;Comune di Vittoria (RG);Siamo uomini o ... ?;Il progetto prevede il recupero dei locali della Delegazione Municipale di Scoglitti, presso i quali attivare un servizio di formazione per adulti gestito dal CPIA ? Centro Provinciale Istruzione Adulti (partner di progetto) e appositi uffici con funzione di Politiche Migratorie. Destinatari dell?intervento sono i lavoratori migranti vittime, anche potenziali, del fenomeno del caporalato e crimini similari residenti/domiciliati nel territorio di Vittoria, e, particolarmente, i soggiornanti nella zona rurale della fascia trasformata a coltura protetta.;07/12/2020;30/09/2022;? 1.683.589,48;75%;97019;ITALIA;055;14/11/2022
7;7.1.2;SIC;FESR;1281;F34H20001410007;00080280886;Comune di Acate (RG);Coltiviamo la legalit� e contrastiamo il caporalato.;"Il progetto prevede la rifunzionalizzazione di una serie di immobili e, precisamente: il recupero dell'ex macello comunale di largo Chambly, per la successiva destinazione dello stesso all?erogazione di attivit� di assistenza e tutela della salute, formazione, orientamento, assistenza legale delle vittime, anche potenziali, del caporalato; il recupero di una porzione dell'immobile ex Istituto del Sacro Cuore per l?allestimento di uno spazio a favore di lavoratori e lavoratrici vittime di caporalato e dei figli minori degli stessi; il recupero dell?ex Mattatoio comunale sito in contrada Biddine Sottana, da destinare ad alloggi, attivit� sociali e integrative. ";07/12/2020;31/05/2022;? 1.800.000,00;75%;97011;ITALIA;055;14/11/2022
4;4.2.1;SIC;FSE;1239�;J76G20000200001;97238390823;Associazione People help the people;Beni in comune;Il progetto intende migliorare le competenze delle imprese sociali operanti nel settore dei beni confiscati alla criminalit� organizzata nella regione Sicilia (area metropolitana di Palermo), partendo da un?analisi dei fabbisogni formativi delle stesse nelle materie gestionali, finanziarie, giuridiche e di marketing. Prevede inoltre una campagna di comunicazione rivolta a imprese di natura differente, per favorire lo scambio di esperienze e la creazione di potenziali reti di collaborazione.;23/09/2020;23/03/2022;? 244.061,32;75%;90141;ITALIA;113;14/11/2022
7;7.2.1;AN;FESR;1298;D56G20002430001;80236190585;Comando generale dell'Arma dei Carabinieri - Comando Carabinieri per la tutela del lavoro;SISLAV 2.0;Il progetto costituisce l?evoluzione del sistema informativo Sislav in dotazione al Comando Tutela del Lavoro dell?Arma dei Carabinieri per l?esercizio delle attivit� ispettive. Prevede la realizzazione di molteplici funzioni necessarie a potenziare la base informativa e previsionale dell?Arma, quali lo scambio dati tra soggetti diversi (AGEA, INPS, INAIL, Ispettorato Nazionale del Lavoro, Ministero delle Politiche Agricole...) e l?applicazione della business intelligence da cui desumere i settori a maggior rischio di fenomeni di sfruttamento lavorativo e caporalato ove indirizzare le attivit� ispettive.;12/01/2021;12/08/2023;? 10.339.190,00;75%;00000;ITALIA;055;14/11/2022
7;7.1.1;CAL;FESR;1244;B42E20000080001;80000100802; Citt� metropolitana di Reggio Calabria;Recupero funzionale attraverso un intervento di manutenzione straordinaria e di adeguamento statico dell'immobile adibito a ex Caserma dei Carabinieri sita nel Comune di San Lorenzo (RC), da adibire a struttura per l'inclusione sociale e culturale;Il progetto prevede il recupero di un immobile del Comune di San Lorenzo per realizzarvi un centro all?interno del quale svolgere iniziative utili a favorire lo scambio interculturale fra le diverse etnie presenti nell'area e i residenti autoctoni e per realizzare laboratori di arti e mestieri a favore dei migranti;30/10/2020;31/10/2022;? 2.000.000,00;75%;89010 - 89069 89135;ITALIA;055;14/11/2022
4;4.2.2;MS;FSE;1248;I62J20000950001;94183600637;Associazione Finetica onlus;Adozione sociale delle vittime di racket e usura;Il progetto prevede la presa in carico e l?erogazione di un pacchetto di servizi di supporto e accompagnamento a favore delle vittime di racket e usura delle regioni Basilicata, Calabria, Campania e Puglia, con particolare attenzione a coloro che abbiano fatto o intendano fare domanda di accesso al Fondo di solidariet� per le vittime delle richieste estorsive e dell?usura. Nello specifico, i servizi riguardano il supporto psicologico alle vittime e ai loro familiari, l?assistenza nella fase di presentazione della domanda di accesso al Fondo di solidariet�, nonch� la consulenza giuridica, economico ? finanziaria e commerciale per il reinserimento nel circuito economico legale delle attivit� imprenditoriali che hanno subito le conseguenze dei reati di usura ed estorsione;12/11/2020;12/05/2022;? 240.500,00;75%;75010 - 75100 - 85010 -85100 - 87010 - 87100 - 88811 - 88900 - 89010 - 89069 - 89121 - 89135 - 89812 - 89900 - 83010 - 83100 - 82010 - 82100 - 81010 - 81100 - 80010 - 80081 - 80121 - 80147 - 84010 - 84099 - 84121 - 84135 - 70010 - 70056 - 70121 - 70132 - 76011 - 76125 - 72012 - 72100 - 71010 - 71051 - 71121 - 71122 - 73010 - 73100 - 74010- 74028 - 74121 - 74123;ITALIA;113;14/11/2022
4;4.2.2;PUG;FSE;1249;F79C20000290005;94029890715;"Fondazione Antiusura ""Buon Samaritano""";I conti non tornano;Il progetto prevede la presa in carico e l?erogazione di servizi di assistenza e accompagnamento a favore delle vittime dei fenomeni del racket e dell?usura della regione Puglia, e, in particolare, della provincia di Foggia. In particolare, i servizi consistono nella presa in carico delle vittime, nell?accompagnamento nella fase di denuncia dei reati e nella successiva fase di accesso al Fondo di solidariet�, nonch� nell?assistenza di tipo legale, economico-finanziario e commerciale finalizzata al reinserimento nel circuito socio ? economico legale degli operatori economici danneggiati. Il progetto prevede inoltre l?attivazione di una rete di solidariet� per gli imprenditori che denunciano o si costituiscono parte civile nei processi.;12/11/2020;12/05/2022;? 170.000,00;75%;71010 - 71122;ITALIA;113;14/11/2022
4;4.2.2;PUG;FSE;1250;G51D20000570001;90205720734;Associazione antiracket TARAS - APS;Potenziamento e sviluppo dello sportello di solidariet� per gli operatori economici vittime di racket e usura;Il progetto intende realizzare uno Sportello di Solidariet� dedicato agli operatori economici vittime di racket e usura presenti sul territorio di Taranto e provincia. Lo sportello, grazie a una rete di professionisti (legali, psicologi, commercialisti, esperti del sistema bancario, ecc.), intende offrire assistenza e supporto agli imprenditori e, ove necessario, alle famiglie degli stessi nelle fasi di denuncia dei reati subiti, di accesso al Fondo di solidariet� dedicato alle vittime di racket e usura, di riabilitazione sociale e di ripresa dell?attivit� economica.;12/11/2020;12/05/2022;? 200.000,00;75%;74010 - 74123;ITALIA;113;14/11/2022
4;4.2.2;CAM;FSE;1251;B89C20001830002;03570800650;Nashak Reintegrazione solidale. Fondazione Antiusura;Insieme si pu�;Il progetto, che interessa le province di Napoli e Salerno, prevede l?erogazione di servizi di supporto e assistenza alle vittime di racket e usura, come l?ascolto e il primo orientamento, consulenza di natura legale, economica e psicologica, sia al fine di favorire l?attivit� di denuncia sia al fine di promuovere la ripresa delle attivit� imprenditoriali.;12/11/2020;12/05/2022;? 148.500,00;75%;84121 - 84135 - 80100 - 80141;ITALIA;113;14/11/2022
4;4.2.2;MS;FSE;1252;I71D20000570006;90036390756;Fondazione Mons. Vito De Grisantis onlus;Supporto alle vittime di racket e usura;Il progetto prevede l?erogazione di servizi di supporto e accompagnamento alle vittime di racket e usura, che abbiano fatto o intendano fare domanda di accesso al Fondo di solidariet� per le vittime delle richieste estorsive e dell?usura delle regioni Basilicata, Calabria, Campania e Puliga. Nello specifico, i servizi che saranno attivati (ascolto, assistenza psicologica, giuridica ed economico-finanziaria) intendo garantire alle vittime prese in carico un adeguato supporto nelle fasi che vanno dalla denuncia fino alla piena ripresa dell?attivit� imprenditoriale.;12/11/2020;12/05/2022;? 244.595,00;75%;75010 - 75100 - 85010 -85100 - 87010 - 87100 - 88811 - 88900 - 89010 - 89069 - 89121 - 89135 - 89812 - 89900 - 83010 - 83100 - 82010 - 82100 - 81010 - 81100 - 80010 - 80081 - 80121 - 80147 - 84010 - 84099 - 84121 - 84135 - 70010 - 70056 - 70121 - 70132 - 76011 - 76125 - 72012 - 72100 - 71010 - 71051 - 71121 - 71122 - 73010 - 73100 - 74010- 74028 - 74121 - 74123;ITALIA;113;14/11/2022
4;4.2.2;MS;FSE;1254;I91520000910006;96037200761;Fondazione nazionale interesse Uomo onlus;Economie in libert�;Il progetto prevede l?istituzione di cinque presidi di legalit� tra la Basilicata e la Calabria dove, grazie alla presenza di �quipe specializzate, sar� possibile erogare servizi di supporto e accompagnamento alle vittime di racket e usura, come l?assistenza nella fase di denuncia dei reati subiti, consulenza e orientamento commerciale e legale finalizzata al reinserimento nel circuito socio ? economico, oltre al supporto psicologico per gli operatori e i loro familiari. Il progetto prevede inoltre la promozione di reti e forme di partenariato antiracket e antiusura.;12/11/2020;12/05/2022;? 169.999,69;75%;85100 - 75024 - 75010 - 75100 - 87011 - 87022 - 89844;ITALIA;113;14/11/2022
4;4.2.2;PUG;FSE;1255;E54G20000120007;90263740731;SOS Rete per la legalit� - Maruggio;Adozione sociale per le imprese vittime di racket e usura in Puglia;Il progetto prevede la presa in carico e l?erogazione di servizi di supporto e accompagnamento alle vittime di racket e usura presenti sul territorio pugliese, quali l?ascolto e la consulenza psicologica, l?assistenza nelle fasi di denuncia e di accesso al Fondo di solidariet�, la consulenza di tipo legale e commerciale, con l?obiettivo di aiutare ciascuna vittima nel reinserimento della propria attivit� produttiva nel circuito economico legale. Il progetto prevede inoltre attivit� di sensibilizzazione destinate alle vittime ?silenti?, al fine di sostenere la denuncia dei reati, in accordo con le istituzioni pubbliche e le associazioni di categoria.;12/11/2020;12/05/2022;? 158.527,94;75%;70010 - 70132 - 76011 - 76125 - 72012 - 72100 - 71010 - 71051 - 71121 - 71122;ITALIA;113;14/11/2022
4;4.2.2;SIC;FSE;1256;D84G20000070007;95008220832;"Acis Antiracket Sant'Agata Militello -Nebrodi APS ""Giovanni Falcone""";Programma di adozione sociale;Il progetto prevede l?attivazione di programmi personalizzati di adesione sociale a favore delle vittime di racket e usura della Sicilia orientale. In particolare, per ciascun destinatario sar� attivato un servizio di consulenza multidisciplinare (legale, economico-finanziaria e psicologica) finalizzato a supportare le vittime nella fase di denuncia, accesso al Fondo di solidariet� e nella fase di riabilitazione economico e sociale. Le attivit� saranno realizzate sotto la supervisione di un tutor esperto in materia di assistenza alle vittime di tali reati.;12/11/2020;12/05/2022;? 160.480,32;75%;98121 - 98149 - 95100 - 95127 - 94100 - 96100 - 97100;ITALIA;113;14/11/2022
4;4.2.2;CAM;FSE;1257;G29C20000340006;96354090589;FAI ? Federazione delle Associazioni Antiracket e Antiusura Italiane;Sportello di solidariet�;Il progetto prevede, attraverso uno Sportello di solidariet�, l?erogazione di servizi di supporto e assistenza agli operatori economici della regione Campania vittime di reati di estorsione e usura. Le attivit� previste, come consulenza psicologica, giuridica ed economica ? finanziaria intendono sostenere le vittime nella gestione delle problematiche aziendali connesse agli eventi subiti al fine del pieno reinserimento nel circuito economico e sociale legale.;12/11/2020;12/05/2022;? 249.025,00;75%;84022;ITALIA;113;14/11/2022
4;4.2.2;SIC;FSE;1258;H31D20001630006;90016750854;FAI ? Antiracket Gela ? Associazione ?G. Giordano?;Sostegno attivo;Il progetto, che insiste sul territorio della regione siciliana, prevede la presa in carico delle vittime dei fenomeni del racket e dell?usura e l?offerta agli stessi di servizi di supporto e accompagnamento nelle fasi di accesso al Fondo di solidariet� e di risanamento dell?attivit� economica danneggiata, quali counseling psicologico, istruzione delle pratiche di risarcimento e ristoro, consulenza legale sia sotto il profilo penale che civile, sostegno nel rapporto con gli Istituti bancari, ecc?;12/11/2020;12/05/2022;? 239.400,00;75%;95010 - 95049 - 95121 - 95131 - 94010 - 94100 - 98020 - 98079 - 98121 - 98168 - 90010 - 90051 - 90121 - 90151;ITALIA;113;14/11/2022
4;4.2.2;CAM;FSE;1260;C64G20000050007;95046870630;Associazione Antiracket ?Pianura per la legalit� ed in memoria di Gigi e Paolo?;Accompagnare le imprese fuori dal Racket e dall?Usura;Il progetto prevede la presa in carico e l?attivazione di percorsi di assistenza e accompagnamento personalizzati per vittime campane di racket e usura. In particolare, il progetto prevede servizi di counseling psicologico, consulenza commerciale, legale ed economico-finanziaria finalizzati a favorire la denuncia dei reati da parte delle vittime, l?accesso al Fondo di solidariet� ed il risanamento economico dell?attivit� imprenditoriale compromessa dai fatti delittuosi subiti.;12/11/2020;12/05/2022;? 140.613,98;75%;84022;ITALIA;113;14/11/2022
4;4.2.2;SIC;FSE;1261;D69C20000240007;93054210815;Associazione Antiracket ed Antiusura - Trapani;Realizzazione di uno sportello di solidariet� alle vittime di racket e usura;Il progetto prevede l?apertura di uno Sportello di solidariet� per la presa in carico e l?erogazione di servizi di assistenza e supporto alle vittime di racket e usura della provincia di Trapani. Lo sportello � pensato per offrire, attraverso consulenza legale, bancaria e psicologica, un valido aiuto alle vittime sia ai fini della denuncia sia ai fini del reinserimento delle stesse nel comparto socio-economico.;12/11/2020;12/05/2022;? 245.016,40;75%;91100;ITALIA;113;14/11/2022
4;4.2.2;SIC;FSE;1262;G74G20000070007;5107940826;Solidaria Societ� Cooperativa Sociale Onlus;Insieme si pu�;Il progetto si propone di realizzare nella regione siciliana un percorso di ?adozione sociale? degli operatori economici che hanno avviato, o intendono avviare, il processo di fuoriuscita dal condizionamento criminale legato ai fenomeni del racket e dell?usura, mediante l?attivazione di progetti individuali di supporto che prevedono l?erogazione di consulenze di tipo professionale (legale, economico-finanziaria e psicologica) e di una attivit� di tutoraggio e accompagnamento nel percorso di risanamento dell?attivit� economico-produttiva e di riabilitazione sociale delle vittime.;12/11/2020;12/05/2022;? 190.780,80;75%;'95010 - 95049 - 95121 - 95131 - 94010 - 94100 - 98020 - 98079 - 98121 - 98168 - 90010 - 90051 - 90121 - 90151;ITALIA;113;14/11/2022
4;4.2.2;CAM;FSE;1263;E64G20000110007;95154260632;SOS Impresa. Rete per la legalit� della Campania;Tutoraggio e solidariet� alle imprese vittime di racket e usura;Il progetto, che insiste sul territorio della Regione Campania, prevede l?erogazione di servizi integrati di consulenza e assistenza legale, commerciale, bancaria e psicologica per le vittime di racket e usura, oltre a un servizio di tutoraggio permanente, con l?obiettivo di favorire il reinserimento delle stesse nell?economia legale.;12/11/2020;12/05/2022;? 140.683,98;75%;84022;ITALIA;113;14/11/2022
4;4.2.2;SIC;FSE;1264;H89C20000180006;90017080830;Associazione Antiracket e Antiusura di Terme Vigliatore Fonte di Libert�;Messina e Enna unite contro il racket e l?usura;Il progetto prevede di attuare una rete solidale antiracket e antiusura sul territorio delle province di Enna e Messina e la creazione di uno ?Sportello di Solidariet� Itinerante? al fine di supportare le vittime con servizi di consulenza psicologica, legale, economico-finanziaria e favorirne il reinserimento nel circuito economico legale.;12/11/2020;12/05/2022;? 225.777,30;75%;98121 - 98165 - 94100;ITALIA;113;14/11/2022
4;4.2.2;CAL;FSE;1265;B59C20002780006;92017790798;ALA ? Associazione Antiracket Lamezia onlus;Mani libere in Calabria;Il progetto prevede l?erogazione di servizi di supporto e accompagnamento -  assistenza psicologica, consulenza legale, bancaria e commerciale - alle vittime di racket e usura nell?area della Piana di Gioia Tauro (RC), della Piana di Sant?Eufemia (CZ) e nell?area urbana di Cosenza-Rende-Castrolibero (CS) attraverso una rete di Sportelli antiracket e antiusura e di uno Sportello ambulante.;12/11/2020;12/05/2022;? 249.715,90;75%;88046 - 89013 - 87036 - 87040;ITALIA;113;14/11/2022
4;4.2.2;MS;FSE;1266;J64G20000300001;94165920631;A.L.I.L.A.C.C.O. SOS Impresa Campania;Assistenza alle vittime di Racket e Usura;Il progetto, che sar� realizzato nelle regioni Basilicata, Calabria, Campania e Puglia, prevede l?erogazione di servizi di supporto e accompagnamento alle vittime di racket e usura, che abbiano fatto o intendano fare domanda di accesso al Fondo di solidariet� per le vittime delle richieste estorsive e dell?usura. Nello specifico, il progetto prevede l?erogazione di servizi di supporto psicologico alle vittime e/o loro familiari, assistenza nelle fasi di denuncia o di accesso al Fondo di solidariet�, consulenza di tipo legale, commerciale, finanziaria nella fase di ripresa delle attivit� imprenditoriali che abbiano subito le conseguenze dei fenomeni criminosi di usura e estorsione.;12/11/2020;12/05/2022;? 244.595,00;75%;75010 - 75100 - 85010 -85100 - 87010 - 87100 - 88811 - 88900 - 89010 - 89069 - 89121 - 89135 - 89812 - 89900 - 83010 - 83100 - 82010 - 82100 - 81010 - 81100 - 80010 - 80081 - 80121 - 80147 - 84010 - 84099 - 84121 - 84135 - 70010 - 70056 - 70121 - 70132 - 76011 - 76125 - 72012 - 72100 - 71010 - 71051 - 71121 - 71122 - 73010 - 73100 - 74010- 74028 - 74121 - 74123;ITALIA;113;14/11/2022
4;4.2.2;SIC;FSE;1267;F72F20002150007;97205850825;Associazione Comitato Addiopizzo ODV;Liberazione in corso;Il progetto prevede l?erogazione di servizi di assistenza coordinata e continuativa al fine di re-immettere nel mercato imprese sane, stabili, etiche e prive di condizionamenti criminali. Nello specifico, il progetto prevede l?attivazione di supporti di natura psicologica, legale, sia nella fase post-denuncia dei reati sia nella fase di accesso al Fondo di solidariet� per le vittime di richieste estorsive e di usura, nonch� consulenza aziendale. Il progetto promuove inoltre l?adesione dei destinatari alla rete pizzo-free o a reti di impresa etica.;12/11/2020;12/05/2022;? 169.933,72;75%;90121 - 90151;ITALIA;113;14/11/2022
4;4.2.2;CAM;FSE;1273;I84G20000080007;92076470647;SOS Impresa Avellino;Imprese libere da racket e usura. Il metodo dell?adozione sociale;Il progetto prevede l?erogazione di consulenze professionali, di natura legale, commerciale e psicologica per le vittime di racket e usura del territorio campano e, in particolare, delle province di Avellino e Benevento. Prevede inoltre l?accompagnamento degli operatori economici dalla fase di accesso al Fondo di solidariet� fino al graduale reinserimento nel tessuto economico e sociale.;12/11/2020;12/05/2022;? 132.798,40;75%;83010 - 83100 - 82010 - 82100 - 81010 - 81100 - 80010 - 80081 - 80121 - 80147 - 84010 - 84099 - 84121 - 84135;ITALIA;113;14/11/2022
4;4.2.2;CAM;FSE;1253;J51D20000570007;95128700655;Associazione Antiracket e Antiusura SOS Impresa Salerno;SOS Antiracket Antiusura Salerno APS. Tutoraggio e monitoraggio delle vittime di usura ed estorsione;"Il progetto intende realizzare, sul territorio della provincia di Salerno, percorsi individualizzati di aiuto e assistenza a favore delle vittime di racket e usura. I percorsi i prevedono l?erogazione di un pacchetto integrato di servizi, quali presa in carico, consulenze specialistiche di natura psicologica, legale, commerciale, bancaria e aziendale, finalizzati ad accompagnare le vittime alla denuncia, all?accesso ai benefici previsti dal Fondo di solidariet� e al reinserimento nel circuito legale.
";12/11/2020;12/05/2022;? 167.664,00;75%;84010 - 84099 - 84121 - 84135;ITALIA;113;14/11/2022;;;;;;
4;4.3.1;AN;FSE;1326; F59J21000300006;97149560589;Ministero dell'Interno - Dipartimento della Pubblica Sicurezza;Operazione S�Cura; Il progetto ha previsto il sostegno all?impegno profuso dalle Forze di Polizia, dai Vigili del Fuoco e dal personale delle Prefetture per la gestione dell?emergenza sanitaria da COVID - 19, e, in particolare, il sostegno a spese per il lavoro straordinario, per l?acquisizione di dispositivi di protezione individuale e per il lavoro agile. CONCLUSO;11/03/2021;31/07/2021;? 161.000.000,00;100%;00000;ITALIA;112;14/11/2022
5;5.2.1;MS;FSE;1310;E53B21000000006;01484460587;Unioncamere;OK. Open Knowledge. Animazione e formazione per creare valore sociale, economico e civico per il territorio attraverso la conoscenza e l'utilizzo degli open data sulle aziende confiscate;Il progetto prevede lo svolgimento di incontri, webinar e laboratori per approfondire le modalit� di utilizzo dei dati presenti sul portale Open Data Aziende Confiscate, finanziato con risorse dell?Asse 1 del PON ?Legalit�?, con l?obiettivo di favorire l'attivit� di gestione, monitoraggio e controllo sociale sulle aziende confiscate da parte delle istituzioni e del partenariato sociale e associativo. ;10/02/2021;10/02/2023;? 1.988.942,43;75%;75010 - 75100 - 85010 -85100 - 87010 - 87100 - 88811 - 88900 - 89010 - 89069 - 89121 - 89135 - 89812 - 89900 - 83010 - 83100 - 82010 - 82100 - 81010 - 81100 - 80010 - 80081 - 80121 - 80147 - 84010 - 84099 - 84121 - 84135 - 70010 - 70056 - 70121 - 70132 - 76011 - 76125 - 72012 - 72100 - 71010 - 71051 - 71121 - 71122 - 73010 - 73100 - 74010- 74028 - 74121 - 74123;ITALIA;119;14/11/2022
6;6.1;AN;FESR;1314;F81I20001690007;97149560589;Ministero dell'Interno - Dipartimento della Pubblica Sicurezza;Servizio di valutazione indipendente del Programma Operativo Nazionale Legalit 2014-2020;Il  progetto intende produrre una valutazione indipendente sul PON Legalit 2014-2020, in coerenza con le disposizioni regolamentari, finalizzato a migliorare la qualit� dell'esecuzione del Programma e a valutarne l'efficacia, l'efficienza e l'impatto.;18/12/2020;31/12/2023;? 1.061.400,00;75%;00000;ITALIA;122;14/11/2022
7;7.1.2;SIC;FESR;1356;B31B21001980001;80001010893;Comune di Siracusa;ACCA. Azioni di contrasto al caporalato. Emergenza alloggiativa con riguardo ai cittadini extracomunitari impegnati nei lavori stagionali in agricoltura - ampliamento progetto di fattibilit� tecnico economica;"Il progetto prevede l'allestimento di un'area attrezzata stabile per offrire un'accoglienza dignitosa ai lavoratori agricoli stagionali migranti. Prevede altres� l?erogazione di un presidio di legalit�, un presidio sanitario, un servizio di consulenza legale e un punto informazioni per promuovere i diritti dei lavoratori e contrastare il caporalato.
";07/04/2021;07/10/2022;? 1.675.453,18;75%;96100;ITALIA;055;14/11/2022;;;;;;
2;2.1.1;CAL;FESR;21089;F19J21003140006;88000230784;Parco Archeologico di Sibari;Safety and security per il Parco archeologico di Sibari;Il progetto prevede la realizzazione di un sistema di presidio tecnologico dei siti di natura archeologica e museale del Parco archeologico di Sibari, con il duplice obiettivo di innalzare gli standard di sicurezza e legalit� e realizzare un modello multidisciplinare integrato per la gestione della sicurezza dell'area.;19/05/2021;01/03/2023;? 13.013.800,00;75%;87011;ITALIA;048;14/11/2022
7;7.1.2;SIC;FESR;OP_373;169J21002280001;00183900893;Comune di Lentini;Accoglienza a Km 0;Il progetto prevede la riqualificazione di un bene confiscato alla criminalit� (sito in contrada Sant'Andrea) e assegnato al Comune di Lentini con l'obiettivo di offrire ospitalit� ai lavoratori stagionali a rischio caporalato, oltre al recupero di un immobile sito nel centro urbano di Lentini (via Roma) di propriet� comunale da adibire alla fornitura di servizi quali assistenza sanitaria, legale, sindacale, segretariato sociale.;09/06/2021;31/09/2022;? 1.747.923,36;75%;96016;ITALIA;055;14/11/2022
7;7.1.2;SIC;FESR;OP_375;H97F20000130001;00174260893; Comune di Pachino;Akkasiamoci con cura;Il progetto prevede la ristrutturazione di un bene confiscato di propriet� comunale con l'obiettivo di offrire ospitalit� ai lavoratori stagionali vittime di caporalato ed erogare servizi di formazione e orientamento, assistenza legale, pronto intervento sociale e assistenza psicologica a favore degli stessi.;17/06/2021;31/09/2022;? 176.847,60;75%;96018;ITALIA;055;14/11/2022
7;7.1.2;BAS;FESR;OP_376;G84E21001530006;80002950766;Regione Basilicata;Progetto per la realizzazione di un centro di accoglienza migranti stagionali nel Borgo Boreano in Agro del Comune di Venosa (PZ);Il progetto prevede la realizzazione di un Centro di accoglienza per lavoratori migranti stagionali, potenziali vittime di caporalato, attraverso cui sperimentare un modello esemplare di edilizia di accoglienza, replicabile in altri contesti.;09/06/2021;09/06/2023;? 2.750.000,00;75%;85029;ITALIA;055;14/11/2022
7;7.1.1;PUG;FESR;1328;J91E17000030001;80000110728;Citt� Metropolitana di Bari;"Centro per l'integrazione socio-culturale e l'ospitalit� in condizioni di emergenza ""Ex Socrate"" in Bari alla via Fanelli ";Il progetto prevede la ristrutturazIone e rifunzionalizzazione di un immobile, l'ex Liceo Classico ?Socrate?, del Comune di Bari da destinare a centro per l'integrazione socio-culturale e l'ospitalit� dei migranti;14/04/2021;24/04/2023;? 2.000.000,00;75%;70132;ITALIA;055;14/11/2022
2;2.1.1;CAL;FESR;21090;F41B21006630001;91005020804;Autorit� di sistema portuale dei Mari Tirreno Meridionale e Ionio;Gioia Sicura: Infrastrutture e servizi infotelematici per la sicurezza integrata delle aree logistiche a vocazione produttiva dell'Autorit� di Sistema portuale dei Mari Tirreno Meridionale e Ionio;Il progetto prevede l'innalzamento dei livelli di sicurezza e legalit� in cui opera il sistema economico e imprenditoriale dell'area logistico?portuale dell?Autorit� portuale di Gioia Tauro - Porti di Gioia Tauro, Crotone  (porto vecchio e nuovo), Corigliano Calabro e Vibo Valentia, attraverso l?integrazione di piattaforme di controllo e sistemi avanzati di gestione, al fine di rafforzare la sicurezza delle aree e aumentarne l?attrattivit� anche in vista dell?attuazione della Zona Economica Speciale.;28/09/2021;28/09/2023;? 18.200.000,00;75%;89013;ITALIA;048;14/11/2022
7;7.1.2;BAS;FESR;OP_382 17002MP000000001;G14E21003640006;00949000764;Regione Basilicata;Realizzazione di un centro accoglienza migranti stagionali nel Borgo Gaudiano in agro del Comune di Lavello (PZ);Il progetto prevede la realizzazione, in Borgo Gaudiano, di un una struttura da destinare all?ospitalit� di lavoratori stagionali a rischio coinvolgimento nel fenomeno del caporalato. L?obiettivo dell?iniziativa � creare un modello esemplare di edilizia di accoglienza, che possa al contempo favorire e promuovere la cultura della legalit�.;24/11/2021;24/11/2023;? 4.200.000,00;75%;85024;ITALIA;055;14/11/2022
2;2.1.1;SIC;FESR;22004;G67G22000120006;80012000826;Regione Siciliana - Dipartimento regionale della programmazione;SCS - Sicily Cyber Security;Il progetto prevede la realizzazione di un sistema che, attraverso l?ausilio di strumentazioni tecnologiche avanzate, consenta il controllo di aree produttive maggiormente colpite da fenomeni di illegalit�.;27/05/2022;31/12/2023;? 30.886.334,10;75%;90010-90051-90121-90151-97010-97100-96010-96100-91010-91100;ITALIA;048;14/11/2022
6;6.1;AN;FESR;OP_381 21091MP000000001;F81B21002370007;97149560589;Ministero dell'Interno - Dipartimento della Pubblica Sicurezza;Servizi complementari inerenti l?assistenza tecnica e il supporto specialistico per la corretta attuazione delle modifiche intervenute nel quadro normativo comunitario e nazionale di riferimento e sull?articolazione del PON Legalit 2014-2020;Servizi complementari inerenti l?Assistenza tecnica e il supporto tecnico specialistico per la corretta attuazione delle modifiche intervenute nel quadro normativo comunitario e nazionale di riferimento e, conseguentemente, sull?articolazione del PON Legalit 2014-2020;27/09/2021;31/12/2023;? 4.500.745,92;75%;00000;ITALIA;121;14/11/2022
7;7.1.1;LIG;FESR;OP_390 22003MP000000002;B34H22001070006;00856930102;Comune di Genova;Via del Molo 13 (Massoero);Il progetto prevede la rifunzionalizzazione del piano terra e dei primi due piani dell?immobile di propriet� comunale denominato ?Massoero?, da destinare a laboratori, mensa, lavanderia ed ospitalit� notturna di migranti.;28/06/2022;28/03/2023;? 466.596,00;50%;16124;ITALIA;055;14/11/2022
7;7.1.1;PIE;FESR;OP391 22003MP000000003;C14H22000680006;00514490010;Comune di Torino;Riqualificazione funzionale ed energetica del centro di accoglienza per i beneficiari SAI di Via Negarville 30 2;Il progetto prevede la ristrutturazione di un immobile di propriet� pubblica dove dare ospitalit� a migranti, anche di nazionalit� ucraina.;28/06/2022;28/03/2023;? 500.000,00;50%;10121;ITALIA;055;14/11/2022
7;7.1.1;CAM;FESR;OP_145 21059MP000000001;B69E19001890001;80014890638;Comune di Napoli;Lavori di riqualificazione e adeguamento funzionale dell'immobile di propriet� comunale sito in Via Nuova dietro la vigna polifunzionale - Lotto 14-b;Il progetto prevede la riqualificazione di parte di un complesso immobiliare pubblico, con l'obiettivo di realizzarvi un nuovo centro giovanile a vocazione sportiva e formativa, per favorire l'integrazione dei migranti regolari con la comunit� locale.;29/01/2020;29/01/2022;? 3.400.000,00;75%;80121;ITALIA;055;14/11/2022
2;2.1.1;BAS;FESR;22007MP000000001;H54F22000480001;105190771;Provincia di Matera;Progetto di implementazione del sistema di videosorveglianza dell'area del Metapontino;Il progetto prevede la realizzazione di un sistema di videosorveglianza finalizzato al rafforzamento del presidio tecnologico del tratto dell?area metapontina della statale ionica 106, strategico per lo sviluppo economico e socio-culturale del territorio. ;28/06/2022;31/12/2023;? 1.106.000,00;75%;75100;ITALIA;048;14/11/2022
5;5.2.2;PUG;FSE;391;F29D17000190006;"
80001900713";Prefettura di Foggia;Il rafforzamento del nucleo di supporto all'ANBSC attivo presso la Prefettura di Foggia;Il progetto finanzia il potenziamento del Nucleo di supporto all'Agenzia Nazionale per i Beni Sequestrati e Confiscati (ANBSC) attraverso il rafforzamento delle competenze multidisciplinari in materia di beni confiscati. L?obiettivo consiste nel rendere pi� fluido il processo di assegnazione del bene e il suo pieno utilizzo a fini sociali e istituzionali. In particolare l'intervento prevede l'attivazione di una task force di esperti con competenze multidisciplinari in materia di beni confiscati per creare un modello di azione per l?esecuzione degli adempimenti del Nucleo e trasferire le competenze professionali necessarie, anche attraverso azioni di training on the job.;08/07/2017;31/01/2020;? 495.320,00;75%;71121;ITALIA;119;14/11/2022;;;;;;
7;7.1.1;LOM;FESR;OP_389 22003MP000000001;B47H20018390004;01199250158;Comune di Milano;Casa Jannacci accogliente e sicura;Il progetto prevede la rifunzionalizzazione dell'immobile al fine di ospitare immigrati, anche ucraini. In particolare si propone di renderla pi� confortevole ed efficiente da un punto di vista energetico e con la messa in opera di un nuovo sistema di sorveglianza pi� moderno ed efficace la struttura sar� pi� sicura da eventuali atti vandalici o intrusioni.;28/06/2022;28/03/2023;? 500.000,00;50%;10121;ITALIA;055;14/11/2022
7;7.1.1;MOL;FESR;22005MP000000001;H94H22000790001;80002330704;Comune di Sepino;S.M.A.I.L. Interventi strategici per il miglioramento dell?accoglienza e dell?integrazioone dei migranti presenti sul territorio locale;Il progetto prevede il potenziamento delle dotazioni dell?immobile pubblico sito in Contrada da Campo delle Pere attualmente adibito all?ospitalit� e all?integrazione socio ? economica dei migranti.;10/05/2022;28/03/2023;? 199.193,20;50%;86017;ITALIA;055;14/11/2022
7;7.1.1;MOL;FESR;22005MP000000002;G43I22000250001;80002130708;Comune di Gambatesa; Efficientamento energetico e realizzazione impianto di videosorveglianza al campo sportivo polivalente in localit� Frutteto;Il progetto prevede la realizzazione di una pensilina fotovoltaica e dell?impianto di videosorveglianza a servizio del campo polivalente. Saranno inoltre realizzati altri interventi di efficientamento quali la sostituzione degli infissi e della caldaia ai locali spogliatoi. La pensilina sar� realizzata per la copertura di posti auto all'aperto. Tale pensilina permetter� di produrre energia elettrica mediante conversione fotovoltaica.;10/05/2022;28/03/2023;? 150.000,00;50%;86013;ITALIA;055;14/11/2022
7;7.1.1;MOL;FESR;22005MP000000003;B84D22002210001;0061480943;Comune di Pietrabbondante;Accoglienza Pietrabbondante;Il progetto prevede l'adeguamento di alloggi ed attivit� di  integrazione sociale della popolazione locale con i profughi ucraini.;10/05/2022;28/03/2023;? 47.500,00;50%;86085;ITALIA;055;14/11/2022
7;7.1.1;MOL;FESR;22005MP000000005;D64D22001740001 ;00251170940;Comune di Vastogirardi;Accoglienza Vastogirardi;Il progetto prevede l'adeguamento di alloggi ed attivit� di  integrazione sociale della popolazione locale con i profughi ucraini.;10/05/2022;28/03/2023;? 71.000,00;50%;86089;ITALIA;055;14/11/2022
7;7.1.1;MOL;FESR;22005MP000000006;J44F22001970006;00055460943;Comune di Pesche;Pesche solidale;Il progetto prevede l'acquisto e posa in opera di attrezzature, forniture per migliorare l'efficienza energetica dell'immobile comunale sito in Via Valle.;10/05/2022;28/03/2023;? 200.000,00;50%;86090;ITALIA;055;14/11/2022
7;7.1.1;MOL;FESR;22005MP000000007;I64H22000790001;00057170946;Comune di Capracotta;Montagna Accogliente;Il progetto prevede l'adeguamento dell'ex caserma del corpo forestale da arredare ed adibire all'accoglienza degli ucraini.;10/05/2022;28/03/2023;? 127.295,08;50%;86082;ITALIA;055;14/11/2022
7;7.1.1;MOL;FESR;22005MP000000008;J54D22001900006;00034670943;Comune di Isernia;Intervento sull?immobile X Settembre;Il progetto prevede l?adeguamento dell'immobile sito in via X Settembre per l'accoglienza degli ucraini.;10/05/2022;28/03/2023;? 199.000,00;50%;86170;ITALIA;055;14/11/2022
7;7.1.1;MOL;FESR;22005MP000000009;G88C22005720006;00053710943;Comune di Sant'Agapito;Riqualificazione ex edificio scolastico;Il progetto prevede la riqualificazione dell'ex edificio scolastico per finalit� di accoglienza.;10/05/2022;28/03/2023;? 198.000,00;50%;86070;ITALIA;055;14/11/2022
7;7.1.1;MOL;FESR;22005MP000000010;C44F22000230007;80002910679;Comune di Basciano;Fornitura e posa in opera di arredo e attrezzature per l'accoglienza - Adeguamento funzionale degli spazi dell'immobile sito in via Brecciola;Il progetto prevede la fornitura e posa in opera di arredo e attrezzature per l'accoglienza e l'adeguamento funzionale degli spazi dell'immobile sito in via Brecciola.;10/05/2022;28/03/2023;? 41.000,00;50%;64030;ITALIA;055;14/11/2022
7;7.1.1;MOL;FESR;22005MP000000004;H52B22001060001;00060680949;Comune di Cantalupo del Sannio;Rifunzionalizzazione di un Centro polifunzionale di aggregazione per l?erogazione dei servizi di integrazione sociale dei migranti nell?immobile comunale ?CRAM?;Il progetto prevede la rifunzionalizzazione di un Centro polifunzionale di aggregazione per l?erogazione dei servizi di integrazione sociale dei migranti nell?immobile comunale ?CRAM?.;10/05/2022;28/03/2023;? 199.784,99;50%;86092;ITALIA;055;14/11/2022
